{"text_format":"1","workbook":"xlsx","n_sheets":24,"sheets":["Prijavnica","Kratka navodila","Osnovne informacije","Povzetek projekta","Projektno partnerstvo","Opis projekta","Logični okvir (B1)","Logični okvir (B2)","Logični okvir (B3)","Delovni načrt projekta (B1)","Delovni načrt projekta (B2)","Delovni načrt projekta (B3)","Oprema","Gradnja","Investicijska dokumentacija","Finančni načrt","Finančna vrzel","Časovni načrt","Tveganja","Vpliv projekta","Načrt informiranja","Kontrolni seznam","Izjava prijavitelja","Podpis prijavitelja"],"not_rendered":{"charts":0,"images":369,"macros":1,"external_links":1,"defined_names":38,"comments":2,"pivot_tables":0},"unopened":[],"bounds":{"document_bytes":16777216,"sheet_cells":100000,"rows_first":2000,"rows_last":500,"rows_between":2000,"halvings":0,"cell_chars":16384,"cell_head_chars":4096},"cells_cut":0,"cells_raw":0,"read":"whole","date_system":"1900"}

{"sheet":"Prijavnica","index":0,"n_rows":13,"n_cols":5,"rows_kept":13,"cut":false,"hidden":false,"merged":[[6,1,6,5],[7,1,7,5],[8,1,8,5],[9,1,9,5],[0,1,0,5],[1,1,1,5],[2,1,2,5],[3,1,3,5],[4,1,4,5],[5,1,5,5]]}
[]
[null,"PRIJAVNICA "]
[]
[null,"na javni razpis za sofinanciranje projektov"]
[]
[null,"Programa Norveškega finančnega mehanizma 2009–2014 \nin"]
[null,"Programa Finančnega mehanizma EGP 2009–2014"]
[]
[]
[null,"Sklop B – Program Finančnega mehanizma EGP 2009-2014"]
[]
[null,"Izpolni MGRT:",null,"SPIS št."]
[null,null,null,"Št. programa","SI02"]

{"sheet":"Kratka navodila","index":1,"n_rows":34,"n_cols":1,"rows_kept":34,"cut":false,"hidden":false,"merged":[]}
["1. Kratka navodila za izpolnjevanje prijavnice"]
[]
["Pred izpolnjevanjem prijavnice obvezno preberite Navodila za izpolnjevanje prijavnice – Sklop B, ki prijavnico dopolnjujejo z dodatnimi napotki."]
["Prijavnico obvezno izpolnite v celoti (vsa polja označena z zeleno barvo in spustni seznami označeni z rumeno barvo), razen če so podana drugačna navodila (polja označena z belo barvo) in tistih delov, ki se izpolnijo samodejno (polja označena s sivo barvo)."]
["Legenda: "]
["Obvezno polje"]
["Pogojno obvezno polje, obvezno le v kolikor to zahtevajo navodila"]
["Spustni seznam"]
["Samodejno polje"]
[]
["Prijavnico v slovenskem jeziku in prijavnico v angleškem jeziku izpolnite elektronsko v Excelovi datoteki; prijavnice izpolnjene v rokopisu bodo zavržene."]
["Elektronska in tiskana različica morata biti enaki. To velja tako za prijavnico v slovenskem, kot za prijavnico v angleškem jeziku."]
["Tiskana različica je ustrezno podpisana in žigosana."]
["Vsi finančni podatki morajo biti prikazani v evrih."]
["Pred oddajo prijavnice preverite, ali so vsi podatki pravilni, vključno s številčnimi podatki, tudi tistimi, ki so izračunani avtomatsko."]
["Vsi podatki iz odprtih vlog so informacije javnega značaja, razen tistih, ki jih vlagatelj posebej označi kot poslovno skrivnost. Vlagatelji morajo podatke, ki jih smatrajo za poslovno skrivnost v svoji vlogi tako tudi označiti. Kot poslovno skrivnost se lahko označi posamezni podatek ali del vloge, ne more pa se nanašati na celotno vlogo in na podatke, ki so potrebni za oceno vloge po merilih javnega razpisa."]
["Pošljite en izvod v celoti izpolnjene prijavnice v slovenskem IN en izvod v celoti izpolnjene prijavnice v angleškem jeziku v tiskani različici IN en izvod v elektronski različici (na CD, DVD ali USB ključu), skupaj z ostalo dokumentacijo na naslov:      "]
[]
[]
[]
["Ministrstvo za gospodarski razvoj in tehnologijo"]
["Kotnikova ulica 5"]
["1000 Ljubljana"]
[]
[]
["Tehnični napotki pri elektronskem izpolnjevanju prijavnice v Excelu\n-     Prijavnica je v standardnem programskem orodju Microsoft Excel. Pred izpolnjevanjem prijavnice, najprej stisnite »Omogoči vsebino«."]
["-       V prijavnici najprej v poglavju 2 - Osnovne informacije izberite področje razpisa, na katerega se prijavlja projekt. Nadaljnja struktura prijavnice je namreč odvisna in se prilagodi izbranemu področju."]
["-     klikom na polje s spustnim seznamom, označeno z rumeno barvo, se na desni strani polja pojavi puščica. V kolikor še enkrat kliknete na A24 isto polje ali na puščico, se pojavi vsebina spustnega seznama. S spustnega seznama morate vedno izbrati eno izmed naštetih možnosti "]
["-     Ko želite narediti novo vrstico, držite tipko Alt in pritisnete Enter ter nadaljujete s pisanjem."]
["-       Oblike (npr. širina, višina) elementov prijavnice (vrstice, stolpci) ni mogoč spreminjati, ker je zaščitena."]
["-       Po zavihkih se lahko premikate z uporabo krmilnika, ki ga najdete v spodnjem levem kotu Excela."]
["-       Prijavnici v tiskani in elektronski različici morata biti enaki. Da ne pride do izgube podatkov v tiskanem izpisu, se držite velikosti polj za izpolnjevanje, četudi prijavnica omogoča, da jo izpolnjujete tudi pod to točko. Velikost polj je že prilagojena dopustnemu številu znakov posameznega polja oz. celice."]
["-       Ne pozabite sproti shranjevati vpisanih podatkov."]
["-       V primeru problemov ali sporočil o napaki (kot je Visual Basic) prosimo, da se obrnite na nosilca programa."]

{"sheet":"Osnovne informacije","index":2,"n_rows":38,"n_cols":13,"rows_kept":38,"cut":false,"hidden":false,"merged":[[2,0,2,1],[15,0,16,0],[15,1,16,1]]}
["2. Osnovne informacije"]
[null,null,null,null,null,null,null,null,null,null,null,"Biotska raznovrstnost in ekosistemske storitve",1]
["Navedite naslov projekta in njegov akronim ter obvezno izberite področje razpisa. Navedite celotno vrednost projekta. Izpolnite podatke o trajanju projekta, pri čemer upoštevajte, da mora projekt trajati najmanj 12 mesecev, a ne dlje kot do 30. 4. 2016. Finančni podatki se bodo prenesli samodejno, ko bo izpolnjen finančni načrt.",null,null,null,null,null,null,null,null,null,null,"Naravna dediščina",2]
[null,null,null,null,null,null,null,null,null,null,null,"Kulturna dediščina",3]
[]
[]
["Naslov projekta",null,null,"Vpišite naslov projekta (največ 200 znakov)"]
["Akronim projekta",null,null,"Vpišite akronim projekta (največ 50 znakov)"]
["Program","Finančni mehanizem EGP 2009–2014"]
["Področje razpisa v sklopu B","Biotska raznovrstnost in ekosistemske storitve",null,"Izberite eno od možnosti"]
[]
[]
["Celotna vrednost projekta",null,null,"Vpišite celotno vrednost projekta"]
["Skupni upravičeni stroški projekta",{"$f":"'Finančni načrt'!R30","v":0},null,"Vrednosti se avtomatsko prenesejo iz ustreznih zavihkov, ko jih izpolnete"]
["Zaprošena višina nepovratnih sredstev sofinanciranja projekta",{"$f":"'Finančni načrt'!R27","v":0},null,"Vrednosti se samodejno prenesejo iz ustreznih zavihkov, ko jih izpolnite."]
["Delež nepovratnih sredstev sofinanciranja projektov",{"$f":"'Finančni načrt'!S27","v":{"$error":"#DIV/0!"}},null,"Vrednosti se samodejno prenesejo iz ustreznih zavihkov, ko jih izpolnite."]
[null,null,null,"Vrednosti se samodejno prenesejo iz ustreznih zavihkov, ko jih izpolnite."]
["Višina lastne udeležbe",{"$f":"'Finančni načrt'!R26","v":0},null,"Vrednosti se samodejno prenesejo iz ustreznih zavihkov, ko jih izpolnite."]
["Delež lastne udeležbe",{"$f":"'Finančni načrt'!S26","v":{"$error":"#DIV/0!"}},null,"Vrednosti se samodejno prenesejo iz ustreznih zavihkov, ko jih izpolnite."]
["Trajanje projekta ",{"$f":"DATEDIF(B21,B22,\"y\") & \" let, \" & DATEDIF(B21,B22,\"ym\") & \" mesecev, \" & DATEDIF(B21,B22,\"md\") & \" dni\"","v":"2 let, 3 mesecev, 29 dni"},null,"Trajanje se izračuna samodejno, ko izberete Začetek in Zaključek"]
["Začetek","1.1.2014",null,"Izberite datum"]
["Zaključek","30.4.2016",null,"Izberite datum"]
[null,null,null,{"$f":"IF((DATEDIF(B21,B22,\"m\") < 12),\"Projekt mora trajati vsaj 12 mesecev!\",\"\")","v":""}]
[]
[]
[]
["SKRITO"]
[]
["Indeks izbranega področja",{"$f":"VLOOKUP(B10, L2:M4,2,0)","v":1}]
[]
[]
[]
[]
[]
[]
[]
["KOMENTARJI"]
["B32 je vrednost podpročja, B28 pa področja"]

{"sheet":"Povzetek projekta","index":3,"n_rows":5,"n_cols":6,"rows_kept":5,"cut":false,"hidden":false,"merged":[[2,0,2,3],[4,0,4,3]]}
["3. Povzetek projekta"]
[]
["V povzetku projekta navedite njegovo utemeljitev, splošne cilje in specifične, v kolikor obstajajo. Navedite ciljne skupine, pričakovane učinke, ključne rezultate in glavne dejavnosti projekta. Opišite tudi, kako bo projekt prispeval k bilateralnim odnosom in kaj se bo s partnerstvom doseglo."]
[]
[null,null,null,null,null,"Obvezno polje, največ 1000 znakov"]

{"sheet":"Projektno partnerstvo","index":4,"n_rows":382,"n_cols":17,"rows_kept":382,"cut":false,"hidden":false,"merged":[[87,1,87,4],[88,1,88,4],[79,0,79,4],[110,0,110,4],[102,1,102,4],[103,1,103,4],[104,1,104,4],[105,1,105,4],[106,1,106,4],[109,0,109,4],[101,1,101,4],[90,1,90,4],[91,1,91,4],[92,1,92,4],[93,1,93,4],[94,1,94,4],[95,1,95,4],[96,1,96,4],[97,1,97,4],[98,1,98,4],[99,1,99,4],[100,1,100,4],[4,0,4,4],[23,1,23,4],[24,1,24,4],[25,1,25,4],[26,1,26,4],[27,1,27,4],[16,1,16,4],[5,1,5,4],[6,1,6,4],[7,1,7,4],[8,1,8,4],[9,1,9,4],[10,1,10,4],[11,1,11,4],[12,1,12,4],[13,1,13,4],[14,1,14,4],[15,1,15,4],[54,0,54,4],[55,0,55,4],[57,0,57,4],[44,0,44,4],[117,1,117,4],[118,1,118,4],[119,1,119,4],[120,1,120,4],[121,1,121,4],[112,1,112,4],[113,1,113,4],[114,1,114,4],[115,1,115,4],[116,1,116,4],[69,0,69,4],[70,0,70,4],[89,1,89,4],[58,0,58,4],[60,0,60,4],[74,0,74,4],[75,0,75,4],[84,1,84,4],[85,1,85,4],[86,1,86,4],[122,1,122,4],[123,1,123,4],[124,1,124,4],[125,1,125,4],[126,1,126,4],[28,1,28,4],[17,1,17,4],[18,1,18,4],[19,1,19,4],[20,1,20,4],[21,1,21,4],[22,1,22,4],[35,1,35,4],[67,0,67,4],[29,1,29,4],[30,1,30,4],[31,1,31,4],[32,1,32,4],[33,1,33,4],[34,1,34,4],[66,0,66,4],[45,0,45,4],[51,0,51,4],[52,0,52,4],[132,1,132,4],[133,1,133,4],[134,1,134,4],[137,0,137,4],[138,0,138,4],[127,1,127,4],[128,1,128,4],[129,1,129,4],[130,1,130,4],[131,1,131,4],[145,1,145,4],[146,1,146,4],[147,1,147,4],[148,1,148,4],[149,1,149,4],[140,1,140,4],[141,1,141,4],[142,1,142,4],[143,1,143,4],[144,1,144,4],[155,1,155,4],[156,1,156,4],[157,1,157,4],[158,1,158,4],[159,1,159,4],[150,1,150,4],[151,1,151,4],[152,1,152,4],[153,1,153,4],[154,1,154,4],[168,1,168,4],[169,1,169,4],[170,1,170,4],[171,1,171,4],[172,1,172,4],[160,1,160,4],[161,1,161,4],[162,1,162,4],[165,0,165,4],[166,0,166,4],[178,1,178,4],[179,1,179,4],[180,1,180,4],[181,1,181,4],[182,1,182,4],[173,1,173,4],[174,1,174,4],[175,1,175,4],[176,1,176,4],[177,1,177,4],[188,1,188,4],[189,1,189,4],[190,1,190,4],[193,0,193,4],[194,0,194,4],[183,1,183,4],[184,1,184,4],[185,1,185,4],[186,1,186,4],[187,1,187,4],[201,1,201,4],[202,1,202,4],[203,1,203,4],[204,1,204,4],[205,1,205,4],[196,1,196,4],[197,1,197,4],[198,1,198,4],[199,1,199,4],[200,1,200,4],[211,1,211,4],[212,1,212,4],[213,1,213,4],[214,1,214,4],[215,1,215,4],[206,1,206,4],[207,1,207,4],[208,1,208,4],[209,1,209,4],[210,1,210,4],[224,1,224,4],[225,1,225,4],[226,1,226,4],[227,1,227,4],[228,1,228,4],[216,1,216,4],[217,1,217,4],[218,1,218,4],[221,0,221,4],[222,0,222,4],[234,1,234,4],[235,1,235,4],[236,1,236,4],[237,1,237,4],[238,1,238,4],[229,1,229,4],[230,1,230,4],[231,1,231,4],[232,1,232,4],[233,1,233,4],[244,1,244,4],[245,1,245,4],[246,1,246,4],[249,0,249,4],[250,0,250,4],[239,1,239,4],[240,1,240,4],[241,1,241,4],[242,1,242,4],[243,1,243,4],[257,1,257,4],[258,1,258,4],[259,1,259,4],[260,1,260,4],[261,1,261,4],[252,1,252,4],[253,1,253,4],[254,1,254,4],[255,1,255,4],[256,1,256,4],[267,1,267,4],[268,1,268,4],[269,1,269,4],[270,1,270,4],[271,1,271,4],[262,1,262,4],[263,1,263,4],[264,1,264,4],[265,1,265,4],[266,1,266,4],[280,1,280,4],[281,1,281,4],[282,1,282,4],[283,1,283,4],[284,1,284,4],[272,1,272,4],[273,1,273,4],[274,1,274,4],[277,0,277,4],[278,0,278,4],[290,1,290,4],[291,1,291,4],[292,1,292,4],[293,1,293,4],[294,1,294,4],[285,1,285,4],[286,1,286,4],[287,1,287,4],[288,1,288,4],[289,1,289,4],[300,1,300,4],[301,1,301,4],[302,1,302,4],[305,0,305,4],[306,0,306,4],[295,1,295,4],[296,1,296,4],[297,1,297,4],[298,1,298,4],[299,1,299,4],[313,1,313,4],[314,1,314,4],[315,1,315,4],[316,1,316,4],[317,1,317,4],[308,1,308,4],[309,1,309,4],[310,1,310,4],[311,1,311,4],[312,1,312,4],[323,1,323,4],[324,1,324,4],[325,1,325,4],[326,1,326,4],[327,1,327,4],[318,1,318,4],[319,1,319,4],[320,1,320,4],[321,1,321,4],[322,1,322,4],[336,1,336,4],[337,1,337,4],[338,1,338,4],[339,1,339,4],[340,1,340,4],[328,1,328,4],[329,1,329,4],[330,1,330,4],[333,0,333,4],[334,0,334,4],[346,1,346,4],[347,1,347,4],[348,1,348,4],[349,1,349,4],[350,1,350,4],[341,1,341,4],[342,1,342,4],[343,1,343,4],[344,1,344,4],[345,1,345,4],[386,3,386,4],[387,3,387,4],[388,3,388,4],[389,3,389,4],[390,3,390,4],[391,3,391,4],[392,3,392,4],[393,3,393,4],[351,1,351,4],[352,1,352,4],[353,1,353,4],[354,1,354,4],[355,1,355,4],[419,3,419,4],[420,3,420,4],[367,0,367,4],[368,0,368,4],[372,0,372,4],[373,0,373,4],[370,0,370,4],[413,3,413,4],[414,3,414,4],[415,3,415,4],[416,3,416,4],[417,3,417,4],[404,3,404,4],[405,3,405,4],[406,3,406,4],[407,3,407,4],[408,3,408,4],[409,3,409,4],[410,3,410,4],[381,3,381,4],[382,3,382,4],[383,3,383,4],[384,3,384,4],[377,0,377,4],[394,3,394,4],[395,3,395,4],[396,3,396,4],[397,3,397,4],[41,1,41,4],[48,0,48,4],[47,0,47,4],[81,6,83,6],[418,3,418,4],[356,1,356,4],[357,1,357,4],[358,1,358,4],[361,0,361,4],[362,0,362,4],[380,3,380,4],[411,3,411,4],[412,3,412,4],[401,3,401,4],[402,3,402,4],[398,3,398,4],[399,3,399,4],[400,3,400,4],[403,3,403,4],[385,3,385,4]]}
["4. Projektno partnerstvo",null,null,null,null,null,null,null,null,null,null,"Osnovne informacije'!B28",null,null,null,null,"zaporedje"]
[null,null,null,null,null,null,null,null,null,null,null,null,null,null,null,null,0]
[null,null,null,null,null,null,null,null,null,null,null,null,null,null,null,null,1]
[" Prijavitelj",null,null,null,null,null,null,null,null,null,null,null,null,null,null,null,2]
["Navedite uradni naziv institucije. Zaželeno je tudi, da navedete organizacijsko enoto. Status izberete iz spustnega seznama. Navedite uradni naslov, davčno in matično številko prijavitelja. Če želite lahko napišete tudi telefonsko številko in spletno stran prijavitelja. Izpolnite podatke o odgovorni osebi institucije. Obvezno izpolnite podatke o kontaktni osebi, ki je hkrati tudi vodja projekta. Kontaktni naslov navedite le v kolikor je drugačen od uradnega. Navedite podatke o banki, pri kateri ima prijavitelj odprt račun, pri čemer mora biti sedež banke v Republiki Sloveniji.",null,null,null,null,null,null,null,null,null,null,null,null,null,null,null,3]
["Naziv institucije",null,null,null,null,null,null,null,null,null,null,"Statusi","pravna oseba javnega prava ",1,null,null,4]
["Status","pravna oseba javnega prava ",null,null,null,null,null,null,null,null,"status pogoj kulturna",{"$f":"IF('Osnovne informacije'!B29 = 3,\"M6:M8\",\"M6:M9\")","v":"M6:M9"},"neprofitna pravna oseba zasebnega prava, ki je NVO",2,null,null,5]
["Uradni naslov",null,null,null,null,null,null,null,null,null,null,null,"neprofitna pravna oseba zasebnega prava, ki ni NVO",3,null,null,6]
["Naslov",null,null,null,null,null,null,null,null,null,null,null,"profitna pravna oseba zasebnega prava",null,null,null,7]
["Poštna številka ",null,null,null,null,null,null,null,null,null,null,null,null,null,null,null,8]
["Kraj",null,null,null,null,null,null,null,null,null,null,null,null,null,null,null,9]
["Država",null,null,null,null,null,null,null,null,null,null,"Izbrani status",{"$f":"VLOOKUP(B7, M6:N10,2,0)","v":1},null,null,null,10]
["Davčna številka",null,null,null,null,null,null,null,null,null,null,"Izbrano področje",{"$f":"'Osnovne informacije'!B29","v":1},null,null,null,11]
["Matična številka",null,null,null,null,null,null,null,null,null,null,null,null,null,null,null,12]
["Telefon ",null,null,null,null,null,null,null,null,null,null,null,null,null,null,null,13]
["Spletna stran ",null,null,null,null,null,null,null,null,null,null,null,null,null,null,null,14]
["Odgovorna oseba institucije",null,null,null,null,null,null,null,null,null,null,null,null,null,null,null,15]
["Ime in priimek",null,null,null,null,null,null,null,null,null,null,null,null,null,null,null,16]
["e-pošta",null,null,null,null,null,null,null,null,null,null,null,null,null,null,null,17]
["Kontaktna oseba",null,null,null,null,null,null,null,null,null,null,null,null,null,null,null,18]
["Ime in priimek",null,null,null,null,null,null,null,null,null,null,null,null,null,null,null,19]
["Telefon",null,null,null,null,null,null,null,null,null,null,null,null,null,null,null,20]
["E-pošta",null,null,null,null,null,null,null,null,null,null,null,null,null,null,null,21]
["Naslov",null,null,null,null,null,null,null,null,null,null,null,null,null,null,null,22]
["Poštna številka ",null,null,null,null,null,null,null,null,null,null,null,null,null,null,null,23]
["Kraj",null,null,null,null,null,null,null,null,null,null,null,null,null,null,null,24]
["Država",null,null,null,null,null,null,null,null,null,null,null,null,null,null,null,25]
["Podatki o banki prijavitelja",null,null,null,null,null,null,null,null,null,null,null,null,null,null,null,26]
["Ime banke ",null,null,null,null,null,null,null,null,null,null,null,null,null,null,null,27]
["Naslov ",null,null,null,null,null,null,null,null,null,null,null,null,null,null,null,28]
["Poštna številka ",null,null,null,null,null,null,null,null,null,null,null,null,null,null,null,29]
["Kraj",null,null,null,null,null,null,null,null,null,null,null,null,null,null,null,30]
["Država ","Slovenija",null,null,null,null,null,null,null,null,null,null,null,null,null,null,31]
["Številka računa ",null,null,null,null,null,null,null,null,null,null,null,null,null,null,null,32]
["IBAN",null,null,null,null,null,null,null,null,null,null,null,null,null,null,null,33]
["BIC/SWIFT koda ",null,null,null,null,null,null,null,null,null,null,null,null,null,null,null,34]
[null,null,null,null,null,null,null,null,null,null,null,null,null,null,null,null,35]
["Upravičenost prijavitelja",null,null,null,null,null,null,null,null,null,null,null,null,null,null,null,36]
[null,null,null,null,null,null,null,null,null,null,null,null,null,null,null,null,37]
["Ustrezno označite",null,null,null,null,null,null,null,null,null,null,null,null,null,null,null,38]
[null,"Prijavitelj je upravljavec območja Natura 2000 ali njegovega dela.",null,null,null,null,null,null,null,null,null,null,null,null,null,null,39]
[null,"Prijavitelj ima izkušnje s področja spremljanja stanja vrst in/ali habitatnih tipov.",null,null,null,null,null,null,null,null,null,null,null,null,null,null,40]
[null,null,null,null,null,null,null,null,null,null,null,null,null,null,null,null,41]
[null,null,null,null,null,null,null,null,null,null,null,null,null,null,null,null,42]
["V kolikor ima prijavitelj kakršnekoli izkušnje s področja spremljanja stanja vrst in/ali habitatnih tipov, jih navedite.  Zaželeno je, da utemeljitev podkrepite z ustreznimi dokazili.",null,null,null,null,null,null,null,null,null,null,null,null,null,null,null,43]
[null,null,null,null,null,null,"Največ 2000 znakov",null,null,null,null,null,null,null,null,null,44]
[null,null,null,null,null,null,null,null,null,null,null,null,null,null,null,null,45]
["V kolikor je prijavitelj pristojen za upravljanje izbranega območja Natura 2000 ali njegovega dela, navedite pravno podlago, ki mu daje pristojnost.",null,null,null,null,null,null,null,null,null,null,null,null,null,null,null,46]
[]
[]
[]
["V kolikor prijavitelj ni pristojen za upravljanje izbranega območja Natura 2000 ali njegovega dela, navedite partnerja, ki je pristojen in pravno podlago, ki mu daje pristojnost"]
[null,null,null,null,null,null,"Največ 500 znakov"]
[]
["Navedite pravno podlago, na osnovi katere je prijavitelj pristojen za upravljanje izbranega državnega zavarovanega območja."]
[null,null,null,null,null,null,"Največ 500 znakov"]
[]
["Navedite oceno števila obiskovalcev območja naravne vrednote ali več naravnih vrednot v okviru državnega zavarovanega območja, ki so predmet obravnave projekta, v zadnjih treh letih (skupno in po posameznih letih). "]
[null,null,null,null,null,null,"Največ 1000 znakov"]
[]
["Označite ali je prijavitelj lastni ali upravljavec kulturnega spomenika . "]
[null,"Prijavitelj je lastnik kulturnega spomenika.",null,null,null,null,"Vpišite da/ne"]
[null,"Prijavitelj je upravljavec kulturnega spomenika.",null,null,null,null,"Vpišite da/ne"]
[null,null,null,null,null,null,null,null,null,null,null,null,null,null,null,null,36]
["Opis prijavitelja",null,null,null,null,null,null,null,null,null,null,null,null,null,null,null,37]
[]
["Opišite glavne redne dejavnosti prijavitelja.",null,null,null,null,null,null,null,null,null,null,null,null,null,null,null,38]
[null,null,null,null,null,null,"Največ 750 znakov",null,null,null,null,null,null,null,null,null,39]
[null,null,null,null,null,null,null,null,null,null,null,null,null,null,null,null,40]
["Opišite znanja in izkušnje s področja upravljanja in koordinacije projektov. Še posebej poudarite projekte financirane iz skladov EU ali drugih mednarodnih virov. Navedite podatke o ključnih projektih podobne zahtevnosti v zadnjih desetih letih, pri katerih navedite naziv projekta in njegovo vrednost, vašo vlogo in pridobljena znanja in izkušnje."]
[null,null,null,null,null,null,"Največ 2000 znakov"]
[]
[]
["Prispevek prijavitelja k projektu "]
["Opišite pričakovan prispevek prijavitelja k projektu: njegovo vlogo in odgovornost med izvajanjem projekta. Opišite tudi h katerim rezultatom in učinkom projekta bo prispeval prijavitelj."]
[null,null,null,null,null,null,"Največ 2000 znakov"]
[]
["Partnerji"]
[]
["Za vsakega partnerja posebej navedite uradni naziv institucije. Zaželeno je tudi, da navedete organizacijsko enoto. Status izberete iz spustnega seznama. Navedite uradni naslov, davčno in matično številko prijavitelja. Če želite lahko napišete tudi telefonsko številko in spletno stran prijavitelja. Izpolnite podatke o odgovorni osebi institucije. Obvezno izpolnite podatke o kontaktni osebi, kontaktni naslov navedite le v kolikor je drugačen od uradnega."]
[]
["Izberite število partnerjev",10,null,null,null,null,"Izberite število partnerjev iz seznama. Glede na izbrano število sem vam prikaže ustrezno tabel za vnos podatkov o partnerjih"]
[]
[]
["Zaporedna številka partnerja",1]
["Naziv institucije"]
["Pravni status  ","profitna pravna oseba zasebnega prava"]
["Uradni naslov"]
["Naslov"]
["Poštna številka "]
["Kraj"]
["Država"]
["Davčna št. "]
["Matična št."]
["Telefon "]
["Spletna stran "]
["Odgovorna oseba institucije "]
["Ime in priimek"]
["Elektronski naslov"]
["Kontaktna oseba"]
["Ime in priimek"]
["Telefon"]
["Elektronski naslov"]
["Naslov"]
["Poštna številka "]
["Kraj"]
["Država"]
[]
["Prispevek partnerja k projektu "]
["Opišite pričakovan prispevek partnerja k projektu: navedite razloge za vključitev posameznega projektnega partnerja, njegovo vlogo in odgovornost med izvajanjem projekta. Opišite tudi h katerim rezultatom in učinkom projekta bo prispeval posamezen projektni partner."]
[null,null,null,null,null,null,"Največ 2000 znakov"]
[]
["Zaporedna številka partnerja",2]
["Naziv institucije"]
["Pravni status  ","profitna pravna oseba zasebnega prava"]
["Uradni naslov"]
["Naslov"]
["Poštna številka "]
["Kraj"]
["Država"]
["Davčna št. "]
["Matična št."]
["Telefon "]
["Spletna stran "]
["Odgovorna oseba institucije "]
["Ime in priimek"]
["Elektronski naslov"]
["Kontaktna oseba"]
["Ime in priimek"]
["Telefon"]
["Elektronski naslov"]
["Naslov"]
["Poštna številka "]
["Kraj"]
["Država"]
[]
["Prispevek partnerja k projektu "]
["Opišite pričakovan prispevek partnerja k projektu: navedite razloge za vključitev posameznega projektnega partnerja, njegovo vlogo in odgovornost med izvajanjem projekta. Opišite tudi h katerim rezultatom in učinkom projekta bo prispeval posamezen projektni partner."]
[null,null,null,null,null,null,"Največ 2000 znakov"]
[]
["Zaporedna številka partnerja",3]
["Naziv institucije"]
["Pravni status  ","profitna pravna oseba zasebnega prava"]
["Uradni naslov"]
["Naslov"]
["Poštna številka "]
["Kraj"]
["Država"]
["Davčna št. "]
["Matična št."]
["Telefon "]
["Spletna stran "]
["Odgovorna oseba institucije "]
["Ime in priimek"]
["Elektronski naslov"]
["Kontaktna oseba"]
["Ime in priimek"]
["Telefon"]
["Elektronski naslov"]
["Naslov"]
["Poštna številka "]
["Kraj"]
["Država"]
[]
["Prispevek partnerja k projektu "]
["Opišite pričakovan prispevek partnerja k projektu: navedite razloge za vključitev posameznega projektnega partnerja, njegovo vlogo in odgovornost med izvajanjem projekta. Opišite tudi h katerim rezultatom in učinkom projekta bo prispeval posamezen projektni partner."]
[null,null,null,null,null,null,"Največ 2000 znakov"]
[]
["Zaporedna številka partnerja",4]
["Naziv institucije"]
["Pravni status  ","profitna pravna oseba zasebnega prava"]
["Uradni naslov"]
["Naslov"]
["Poštna številka "]
["Kraj"]
["Država"]
["Davčna št. "]
["Matična št."]
["Telefon "]
["Spletna stran "]
["Odgovorna oseba institucije "]
["Ime in priimek"]
["Elektronski naslov"]
["Kontaktna oseba"]
["Ime in priimek"]
["Telefon"]
["Elektronski naslov"]
["Naslov"]
["Poštna številka "]
["Kraj"]
["Država"]
[]
["Prispevek partnerja k projektu "]
["Opišite pričakovan prispevek partnerja k projektu: navedite razloge za vključitev posameznega projektnega partnerja, njegovo vlogo in odgovornost med izvajanjem projekta. Opišite tudi h katerim rezultatom in učinkom projekta bo prispeval posamezen projektni partner."]
[null,null,null,null,null,null,"Največ 2000 znakov"]
[]
["Zaporedna številka partnerja",5]
["Naziv institucije"]
["Pravni status  ","profitna pravna oseba zasebnega prava"]
["Uradni naslov"]
["Naslov"]
["Poštna številka "]
["Kraj"]
["Država"]
["Davčna št. "]
["Matična št."]
["Telefon "]
["Spletna stran "]
["Odgovorna oseba institucije "]
["Ime in priimek"]
["Elektronski naslov"]
["Kontaktna oseba"]
["Ime in priimek"]
["Telefon"]
["Elektronski naslov"]
["Naslov"]
["Poštna številka "]
["Kraj"]
["Država"]
[]
["Prispevek partnerja k projektu "]
["Opišite pričakovan prispevek partnerja k projektu: navedite razloge za vključitev posameznega projektnega partnerja, njegovo vlogo in odgovornost med izvajanjem projekta. Opišite tudi h katerim rezultatom in učinkom projekta bo prispeval posamezen projektni partner."]
[null,null,null,null,null,null,"Največ 2000 znakov"]
[]
["Zaporedna številka partnerja",6]
["Naziv institucije"]
["Pravni status  ","profitna pravna oseba zasebnega prava"]
["Uradni naslov"]
["Naslov"]
["Poštna številka "]
["Kraj"]
["Država"]
["Davčna št. "]
["Matična št."]
["Telefon "]
["Spletna stran "]
["Odgovorna oseba institucije "]
["Ime in priimek"]
["Elektronski naslov"]
["Kontaktna oseba"]
["Ime in priimek"]
["Telefon"]
["Elektronski naslov"]
["Naslov"]
["Poštna številka "]
["Kraj"]
["Država"]
[]
["Prispevek partnerja k projektu "]
["Opišite pričakovan prispevek partnerja k projektu: navedite razloge za vključitev posameznega projektnega partnerja, njegovo vlogo in odgovornost med izvajanjem projekta. Opišite tudi h katerim rezultatom in učinkom projekta bo prispeval posamezen projektni partner."]
[null,null,null,null,null,null,"Največ 2000 znakov"]
[]
["Zaporedna številka partnerja",7]
["Naziv institucije"]
["Pravni status  ","profitna pravna oseba zasebnega prava"]
["Uradni naslov"]
["Naslov"]
["Poštna številka "]
["Kraj"]
["Država"]
["Davčna št. "]
["Matična št."]
["Telefon "]
["Spletna stran "]
["Odgovorna oseba institucije "]
["Ime in priimek"]
["Elektronski naslov"]
["Kontaktna oseba"]
["Ime in priimek"]
["Telefon"]
["Elektronski naslov"]
["Naslov"]
["Poštna številka "]
["Kraj"]
["Država"]
[]
["Prispevek partnerja k projektu "]
["Opišite pričakovan prispevek partnerja k projektu: navedite razloge za vključitev posameznega projektnega partnerja, njegovo vlogo in odgovornost med izvajanjem projekta. Opišite tudi h katerim rezultatom in učinkom projekta bo prispeval posamezen projektni partner."]
[null,null,null,null,null,null,"Največ 2000 znakov"]
[]
["Zaporedna številka partnerja",8]
["Naziv institucije"]
["Pravni status  ","profitna pravna oseba zasebnega prava"]
["Uradni naslov"]
["Naslov"]
["Poštna številka "]
["Kraj"]
["Država"]
["Davčna št. "]
["Matična št."]
["Telefon "]
["Spletna stran "]
["Odgovorna oseba institucije "]
["Ime in priimek"]
["Elektronski naslov"]
["Kontaktna oseba"]
["Ime in priimek"]
["Telefon"]
["Elektronski naslov"]
["Naslov"]
["Poštna številka "]
["Kraj"]
["Država"]
[]
["Prispevek partnerja k projektu "]
["Opišite pričakovan prispevek partnerja k projektu: navedite razloge za vključitev posameznega projektnega partnerja, njegovo vlogo in odgovornost med izvajanjem projekta. Opišite tudi h katerim rezultatom in učinkom projekta bo prispeval posamezen projektni partner."]
[null,null,null,null,null,null,"Največ 2000 znakov"]
[]
["Zaporedna številka partnerja",9]
["Naziv institucije"]
["Pravni status  ","profitna pravna oseba zasebnega prava"]
["Uradni naslov"]
["Naslov"]
["Poštna številka "]
["Kraj"]
["Država"]
["Davčna št. "]
["Matična št."]
["Telefon "]
["Spletna stran "]
["Odgovorna oseba institucije "]
["Ime in priimek"]
["Elektronski naslov"]
["Kontaktna oseba"]
["Ime in priimek"]
["Telefon"]
["Elektronski naslov"]
["Naslov"]
["Poštna številka "]
["Kraj"]
["Država"]
[]
["Prispevek partnerja k projektu "]
["Opišite pričakovan prispevek partnerja k projektu: navedite razloge za vključitev posameznega projektnega partnerja, njegovo vlogo in odgovornost med izvajanjem projekta. Opišite tudi h katerim rezultatom in učinkom projekta bo prispeval posamezen projektni partner."]
[null,null,null,null,null,null,"Največ 2000 znakov"]
[]
["Zaporedna številka partnerja",10]
["Naziv institucije"]
["Pravni status  ","profitna pravna oseba zasebnega prava"]
["Uradni naslov"]
["Naslov"]
["Poštna številka "]
["Kraj"]
["Država"]
["Davčna št. "]
["Matična št."]
["Telefon "]
["Spletna stran "]
["Odgovorna oseba institucije "]
["Ime in priimek"]
["Elektronski naslov"]
["Kontaktna oseba"]
["Ime in priimek"]
["Telefon"]
["Elektronski naslov"]
["Naslov"]
["Poštna številka "]
["Kraj"]
["Država"]
[]
["Prispevek partnerja k projektu "]
["Opišite pričakovan prispevek partnerja k projektu: navedite razloge za vključitev posameznega projektnega partnerja, njegovo vlogo in odgovornost med izvajanjem projekta. Opišite tudi h katerim rezultatom in učinkom projekta bo prispeval posamezen projektni partner."]
[null,null,null,null,null,null,"Največ 2000 znakov"]
[]
["Usposobljenost projektne skupine za izvedbo projekta"]
["Kadrovske in finančne zmogljivosti"]
[]
["Opišite kadrovske in finančne zmogljivosti prijavitelja in vseh partnerjev, ki so relevantne za izvedbo projekta."]
[null,null,null,null,null,null,"Največ 3000 znakov"]
[]
["Spremljanje stanja vrst in/ali habitatnih tipov"]
[]
["V kolikor prijavitelj in/ali partner v projektu izvaja dejavnosti spremljanja stanja izbranih vrst in/ali habitatnih tipov, navedite izkušnje prijavitelja in/ali partnerja s področja spremljanja stanja tistih izbranih vrst in/ali habitatnih tipov, ki jih naslavlja projekt."]
[null,null,null,null,null,null,"Največ 3000 znakov"]
[]
["Projektna skupina"]
[]
["Navedite vse člane projektne ekipe prijavitelja in partnerjev (Partner 1, Partner 2, itd), ki bodo sodelovali pri izvedbi projekta. Naštejte vse predvidene osebe, tudi če vsa imena še niso znana. Navedite njihovo vlogo v projektu (npr. vodja projekta, pravnik, finančnik, izvajalec projekta ipd.) in njihova znanja ter izkušnje s področja razpisa, pomembne za izvedbo projekta. "]
[]
["Izberite število članov projektne skupine",null,10,null,null,null,"Izberite število članov projektne skupine iz seznama"]
["Ime in priimek","Prijavitelj/ št. partnerja","Vloga v projektu","Ključna znanja in izkušnje s področja razpisa, pomembne za izvedbo projekta"]
[null,null,null,null,null,null,"Obvezna polja, največ 500 znakov za \"Ključna znanja…\""]

{"sheet":"Opis projekta","index":5,"n_rows":40,"n_cols":17,"rows_kept":40,"cut":false,"hidden":false,"merged":[[9,0,9,7],[4,0,4,7],[5,0,5,7],[2,0,2,7],[3,0,3,7],[6,0,6,7],[7,0,7,7],[8,0,8,7],[17,0,17,7],[18,0,18,7],[22,0,22,7],[23,0,23,7],[10,0,10,7],[11,0,11,7],[12,0,12,7],[13,0,13,7],[14,0,14,7],[15,0,15,7],[28,0,28,2],[27,0,27,7],[29,0,29,2],[30,0,30,2],[28,3,28,7],[29,3,29,7],[39,0,39,7],[36,0,36,6],[37,0,37,6],[38,0,38,7],[30,3,30,7],[32,1,32,7],[33,1,33,7],[34,1,34,7],[35,1,35,7]]}
["5. Opis projekta",null,null,null,null,null,null,null,null,null,null,null,null,"podrojce",{"$f":"'Osnovne informacije'!B29","v":1},1,{"$f":"'Logični okvir (B1)'!A14","v":"Učinkovitejše upravljanje in spremljanje stanja območij Natura 2000"}]
[null,null,null,null,null,null,null,null,null,null,null,null,null,null,null,2,{"$f":"'Logični okvir (B2)'!A14","v":"Naravna dediščina dostopna javnosti"}]
["Utemeljitev projekta",null,null,null,null,null,null,null,null,null,null,null,null,"splošni cilj",{"$f":"VLOOKUP(O1,P1:Q3,2,0)","v":"Učinkovitejše upravljanje in spremljanje stanja območij Natura 2000"},3,{"$f":"'Logični okvir (B3)'!A14","v":"Kulturna dediščina obnovljena, restavrirana in zaščitena"}]
[]
["Na celovit način utemeljite problematiko, ki jo naslavlja projekt, in kako bo projekt prispeval k njenemu reševanju."]
[]
["Utemeljitev projekta in prikaz problematike"]
[null,null,null,null,null,null,null,null,null,"Največ 3000 znakov"]
[]
["Prispevek projekta k reševanju problematike"]
[null,null,null,null,null,null,null,null,null,"Največ 3000 znakov"]
[]
["Cilji projekta"]
[]
["Splošni cilj projekta"]
[{"$f":"O3","v":"Učinkovitejše upravljanje in spremljanje stanja območij Natura 2000"},null,null,null,null,null,null,null,null,null,"Katero podpodročje?"]
[]
["V kolikor obstajajo, navedite tudi specifične cilje"]
[null,null,null,null,null,null,null,null,null,"Največ 500 znakov"]
[]
["Ciljne skupine"]
[]
["Opišite ciljne skupine, katerim so namenjeni rezultati projektov."]
[null,null,null,null,null,null,null,null,null,"Največ 1500 znakov"]
[]
["Kulturni spomenik"]
[]
["Navedite naziv kulturnega spomenika, evidenčno številko in datum veljavnosti razglasitve kulturne dediščine. "]
["Naziv kulturnega spomenika",null,null,null,null,null,null,null,null,"Največ 300 znakov"]
["Evidenčna številka dediščine"]
["Datum veljavnosti razglasitve kulturne dediščine"]
[null,"Označite status kulturnega spomenika:"]
[null,"Kulturni spomenik je na UNESCO Seznamu svetovne dediščine, na UNESCO in nacionalnem poskusnem Seznamu svetovne dediščine ali nosilec Znaka evropske kulturne dediščine.",null,null,null,null,null,null,null,"Označite Da/Ne"]
[null,"Kulturni spomenik je razglašen za spomenik državnega pomena.",null,null,null,null,null,null,null,"Označite Da/Ne"]
[null,"Kulturni spomenik je ovrednoten za spomenik državnega pomena.",null,null,null,null,null,null,null,"Označite Da/Ne"]
[null,"Kulturni spomenik je razglašen za spomenik lokalnega pomena oziroma je bil razglašen pred uveljavitvijo Zakona o varstvu kulturne dediščine (Ur. L. RS, št. 7/99).",null,null,null,null,null,null,null,"Označite Da/Ne"]
["Ali je kulturni spomenik določen za javno kulturno infrastrukturo? ",null,null,null,null,null,null,null,null,"Označite Da/Ne"]
["Ali kulturnemu spomeniku zaradi poškodb in nevarnosti porušitve grozi izguba varovanih lastnosti?",null,null,null,null,null,null,null,null,"Označite Da/Ne"]
["V kolikor DA, opišite ogroženost spomenika in priložite izjavo o ogroženosti kulturnega spomenika."]
[null,null,null,null,null,null,null,null,null,"Največ 2000 znakov"]

{"sheet":"Logični okvir (B1)","index":6,"n_rows":30,"n_cols":20,"rows_kept":30,"cut":false,"hidden":false,"merged":[[10,6,12,9],[13,6,18,9],[19,6,23,9],[3,0,3,9],[4,0,4,9],[5,0,5,9],[6,0,6,9],[7,0,7,9],[13,5,18,5],[10,1,12,1],[12,4,12,5],[10,0,12,0],[10,2,11,5],[24,4,28,4],[13,0,33,0],[13,1,18,1],[13,2,18,2],[13,3,18,3],[13,4,18,4],[19,1,23,1],[19,2,23,2],[19,3,23,3],[19,4,23,4],[39,5,43,5],[19,5,23,5],[9,7,9,8],[34,1,38,1],[34,2,38,2],[34,3,38,3],[34,4,38,4],[34,5,38,5],[29,1,33,1],[29,2,33,2],[29,3,33,3],[29,4,33,4],[29,5,33,5],[24,1,28,1],[24,2,28,2],[24,3,28,3],[54,1,58,1],[54,2,58,2],[54,3,58,3],[54,4,58,4],[54,5,58,5],[0,0,0,9],[49,1,53,1],[49,2,53,2],[49,3,53,3],[49,4,53,4],[49,5,53,5],[24,5,28,5],[44,1,48,1],[44,2,48,2],[44,3,48,3],[44,4,48,4],[44,5,48,5],[39,1,43,1],[39,2,43,2],[39,3,43,3],[39,4,43,4],[49,6,53,9],[54,6,58,9],[24,6,28,9],[29,6,33,9],[34,6,38,9],[39,6,43,9],[44,6,48,9]]}
["Logična povezanost vsebine projekta ter prispevek projekta k uresničevanju učinkov in rezultatov programa",null,null,null,null,null,null,null,null,null,null,null,null,null,null,0,null,null,"podpodročje",{"$f":"'Osnovne informacije'!B29","v":1}]
[null,null,null,null,null,null,null,null,null,null,null,null,null,null,null,1]
[null,null,null,null,null,null,null,null,null,null,null,null,null,null,null,2]
["Logična povezanost vsebine projekta oz. vsebinska rdeča nit projekta sledi »rdeči liniji« izbranega področja razpisa Najprej označite, h katerim učinkom bo prispeval projekt, označite eno ali več statističnih regij (NUTS 3), v katerih bodo vidni učinki projekta. Navedite tudi ciljne vrednosti kazalnika učinka. Dodate lahko do pet novih učinkov. Za izbran/e učinek/e projekta opišite vsaj en ključen rezultat projekta, navedite kazalnike in ciljne vrednosti kazalnikov rezultata, kjer je relevantno pa tudi začetne vrednosti kazalnika. Za vsak učinek navedite do pet ključnih rezultatov projekta.\n",null,null,null,null,null,null,null,null,null,null,null,null,null,null,3]
[null,null,null,null,null,null,null,null,null,null,null,null,null,null,null,4]
["Na področju Biotska raznovrstnost in ekosistemske storitve naj projekt vključuje (1) kazalnik rezultatov število vrst in/ali habitatnih tipov v neugodnem stanju ohranjenosti, ki jih varstveni ukrepi naslavljajo (kazalnik je vezan na prvi in drugi učinek projekta) in (2) ali kazalnik števila spremljanja stanja vrst in/ali habitatnih tipov, ki jih naslavljajo v okviru projekta izvedeni varstveni ukrepi ali kazalnik števila vrst in/ali habitatnih tipov, katerih stanje se bo spremljalo v okviru projekta, ki niso neposredno povezani z varstvenimi ukrepi na terenu in katerih stanje ohranjenosti ne neznano (kazalnika se vežeta na tretji učinek projekta).",null,null,null,null,null,null,null,null,null,null,null,null,null,null,5]
["Pazite, da bo projekt vključeval kazalnike rezultatov, ki so vezani na obvezne vrste dejavnosti."]
["Področje razpisa Biotska raznovrstnost in ekosistemske storitve"]
[]
[null,null,null,null,null,null,null,"Izberite število dodatnih učinkov",null,5,null,"Dodatni učinek pomeni poleg v tabeli že navedenih učinkov, ki jih določa program, še dodatni učinki vašega projekta, ki jih predvidite sami"]
["SPLOŠEN CILJ PROJEKTA (= učinek programa)","Označiti","UČINEK PROJEKTA\n(= rezultat programa)",null,null,null,"KLJUČNI REZULTAT PROJEKTA \n(opis rezultata, navedba kazalnika ter začetne in ciljne vrednosti kazalnika)\n",null,null,null,null,null,null,null,null,null,null,null,null,10]
[]
[null,null,"Opis","Lokacija učinka ","Kazalnik učinka (opis in ciljna vrednost)"]
["Učinkovitejše upravljanje in spremljanje stanja območij Natura 2000",null,"Ustrezno upravljanje (ukrepi v skladu s programom upravljanja Natura 2000) z ekstenzivnimi travniki in/ali varovalnimi ali poplavnimi gozdovi znotraj Natura 2000 območij, v katerih gostujejo pomembne populacije Natura 2000 vrst/habitatnih tipov.",null,"površina (ha) ukrepov, usmerjenih v travniške (cilj programa je povečanje za 580 ha) in/ali gozdne vrste/habitatne tipe (cilj programa je povečanje za 7500 ha)",null,null,null,null,null,null,"Največ 750 znakov za Ključne rezultate projekta"]
[]
[]
[]
[]
[]
[null,null,"Ustrezno upravljanje (ukrepi v skladu s programom upravljanja Natura 2000) z mokrišči znotraj Natura 2000 območij, v katerih gostujejo pomembne populacije Natura 2000 vrst/habitatnih tipov.",null,"površina (ha) ukrepov, usmerjenih v mokriščne vrste/habitatne tipe (cilj programa je povečanje za 30 ha)"]
[]
[]
[]
[]
[null,null,"Spremljanje stanja (monitoring) parametrov za določitev varstvenega statusa travniških in/ali gozdnih in/ali mokriščnih vrst in/ali habitatnih tipov",null,"število in delež spremljanih Natura 2000 vrst/habitatnih tipov (ciljprograma je povečanje za 6 vrst/habitatnih tipov)"]
[]
[]
[]
[]
[null,null,"Sprejetje (soglasje k) izvajanja programa upravljanja z Natura 2000 območji in izvajanje varstvenih ukrepov v projektnih aktivnostih",null,"število ključnih deležnikov (cilj programa je povečanje za 250 ljudi)"]

{"sheet":"Logični okvir (B2)","index":7,"n_rows":30,"n_cols":20,"rows_kept":30,"cut":false,"hidden":false,"merged":[[9,7,9,8],[3,0,3,9],[4,0,4,9],[5,0,5,9],[6,0,6,9],[7,0,7,9],[10,0,12,0],[10,1,12,1],[10,2,11,5],[12,4,12,5],[10,6,12,9],[13,4,18,4],[24,4,28,4],[13,5,18,5],[19,4,23,4],[19,5,23,5],[19,1,33,1],[13,0,33,0],[13,1,18,1],[13,2,18,2],[13,3,18,3],[54,1,58,1],[54,2,58,2],[54,3,58,3],[54,4,58,4],[54,5,58,5],[44,1,48,1],[44,2,48,2],[44,3,48,3],[44,4,48,4],[44,5,48,5],[49,1,53,1],[49,2,53,2],[49,3,53,3],[49,4,53,4],[49,5,53,5],[13,6,18,9],[29,6,33,9],[34,6,38,9],[39,6,43,9],[0,0,0,9],[39,1,43,1],[39,2,43,2],[39,3,43,3],[39,4,43,4],[39,5,43,5],[24,5,28,5],[34,1,38,1],[34,2,38,2],[34,3,38,3],[34,4,38,4],[34,5,38,5],[44,6,48,9],[49,6,53,9],[54,6,58,9],[19,2,33,2],[19,3,33,3],[19,6,23,9],[24,6,28,9],[29,4,33,4],[29,5,33,5]]}
["Logična povezanost vsebine projekta ter prispevek projekta k uresničevanju učinkov in rezultatov programa",null,null,null,null,null,null,null,null,null,null,null,null,null,null,0,null,null,"podpodročje",{"$f":"'Osnovne informacije'!B29","v":1}]
[null,null,null,null,null,null,null,null,null,null,null,null,null,null,null,1]
[null,null,null,null,null,null,null,null,null,null,null,null,null,null,null,2]
["Logična povezanost vsebine projekta oz. vsebinska rdeča nit projekta sledi »rdeči liniji« izbranega področja razpisa Najprej označite, h katerim učinkom bo prispeval projekt, označite eno ali več statističnih regij (NUTS 3), v katerih bodo vidni učinki projekta. Navedite tudi ciljne vrednosti kazalnika učinka. Dodate lahko do pet novih učinkov. Za izbran/e učinek/e projekta opišite vsaj en ključen rezultat projekta, navedite kazalnike in ciljne vrednosti kazalnikov rezultata, kjer je relevantno pa tudi začetne vrednosti kazalnika. Za vsak učinek navedite do pet ključnih rezultatov projekta.\n",null,null,null,null,null,null,null,null,null,null,null,null,null,null,3]
[null,null,null,null,null,null,null,null,null,null,null,null,null,null,null,4]
["Na področju Naravna dediščina je obvezen rezultat projekta vsaj ena nova ureditev objekta javne infrastrukture za obisk naravne vrednote; in zmanjšanje obiskov z individualnimi motornimi prevoznimi sredstvi vsaj 25% v enem letu po zaključku del. ",null,null,null,null,null,null,null,null,null,null,null,null,null,null,5]
[]
["Področje razpisa Naravna dediščina"]
[]
[null,null,null,null,null,null,null,"Izberite število dodatnih učinkov",null,0,null,"Dodatni učinek pomeni poleg v tabeli že navedenih učinkov, ki jih določa program, še dodatni učinki vašega projekta, ki jih predvidite sami"]
["SPLOŠEN CILJ PROJEKTA (= učinek programa)","Označiti","UČINEK PROJEKTA\n(= rezultat programa)",null,null,null,"KLJUČNI REZULTAT PROJEKTA \n(opis rezultata, navedba kazalnika ter začetne in ciljne vrednosti kazalnika)",null,null,null,null,null,null,null,null,null,null,null,null,10]
[]
[null,null,"Opis","Lokacija učinka ","Kazalnik učinka (opis in ciljna vrednost)"]
["Naravna dediščina dostopna javnosti",null,"Vzpostavljena nova javna infrastruktura za obiskovalce najpomembnejših zavarovanih območij (ZO) narave",null,"novi infrastrukturni objekti (ciljna programa je 1-3) ",null,null,null,null,null,null,"Največ 750 znakov za Ključne rezultate projekta"]
[]
[]
[]
[]
[]
[null,null,"Infrastruktura za obiskovalce, ki uspešno povezuje varstvo naravne dediščine in njeno večjo dostopnost javnosti.",null,"število obiskovalcev ZO na leto, ki obiščejo/izkusijo ZO brez škodljivih vplivov (ciljna programa ni povečanja)"]
[]
[]
[]
[]
[null,null,null,null,"število obiskovalcev ZO, ki uporabljajo motorna vozila (cilj programa je –zmanjšanje za 1250) "]
[]
[]
[]
[]
[null,null,null,null,"nova infrastrukturna, ki varuje naravo in obenem ponuja izobraževanje o okolju ter doživljanje narave (cilj je 1)"]

{"sheet":"Logični okvir (B3)","index":8,"n_rows":20,"n_cols":20,"rows_kept":20,"cut":false,"hidden":false,"merged":[[9,7,9,8],[3,0,3,9],[4,0,4,9],[5,0,5,9],[6,0,6,9],[7,0,7,9],[10,0,12,0],[10,1,12,1],[10,2,11,5],[12,4,12,5],[10,6,12,9],[24,5,28,5],[19,5,23,5],[13,1,18,1],[13,2,18,2],[13,3,18,3],[13,4,18,4],[13,5,18,5],[19,1,23,1],[19,2,23,2],[19,3,23,3],[19,4,23,4],[34,1,38,1],[34,2,38,2],[34,3,38,3],[34,4,38,4],[34,5,38,5],[44,1,48,1],[44,2,48,2],[44,3,48,3],[44,4,48,4],[44,5,48,5],[0,0,0,9],[13,0,23,0],[39,1,43,1],[39,2,43,2],[39,3,43,3],[39,4,43,4],[29,1,33,1],[29,2,33,2],[29,3,33,3],[29,4,33,4],[24,1,28,1],[24,2,28,2],[24,3,28,3],[24,4,28,4],[39,5,43,5],[29,5,33,5],[39,6,43,9],[44,6,48,9],[13,6,18,9],[19,6,23,9],[24,6,28,9],[29,6,33,9],[34,6,38,9]]}
["Logična povezanost vsebine projekta ter prispevek projekta k uresničevanju učinkov in rezultatov programa",null,null,null,null,null,null,null,null,null,null,null,null,null,null,0,null,null,"podpodročje",{"$f":"'Osnovne informacije'!B29","v":1}]
[null,null,null,null,null,null,null,null,null,null,null,null,null,null,null,1]
[null,null,null,null,null,null,null,null,null,null,null,null,null,null,null,2]
["Logična povezanost vsebine projekta oz. vsebinska rdeča nit projekta sledi »rdeči liniji« izbranega področja razpisa Najprej označite, h katerim učinkom bo prispeval projekt, označite eno ali več statističnih regij (NUTS 3), v katerih bodo vidni učinki projekta. Navedite tudi ciljne vrednosti kazalnika učinka. Dodate lahko do pet novih učinkov. Za izbran/e učinek/e projekta opišite vsaj en ključen rezultat projekta, navedite kazalnike in ciljne vrednosti kazalnikov rezultata, kjer je relevantno pa tudi začetne vrednosti kazalnika. Za vsak učinek navedite do pet ključnih rezultatov projekta.\n",null,null,null,null,null,null,null,null,null,null,null,null,null,null,3]
[null,null,null,null,null,null,null,null,null,null,null,null,null,null,null,4]
["Na področju Kulturna dediščina je obvezen rezultat projekta vsaj en obnovljen ali restavriran kulturni spomenik. ",null,null,null,null,null,null,null,null,null,null,null,null,null,null,5]
[]
["Področje razpisa Kulturna dediščina"]
[]
[null,null,null,null,null,null,null,"Izberite število dodatnih učinkov",null,5,null,"Dodatni učinek pomeni poleg v tabeli že navedenih učinkov, ki jih določa program, še dodatni učinki vašega projekta, ki jih predvidite sami"]
["SPLOŠEN CILJ PROJEKTA (= učinek programa)","Označiti","UČINEK PROJEKTA\n(= rezultat programa)",null,null,null,"KLJUČNI REZULTAT PROJEKTA \n(opis rezultata, navedba kazalnika ter začetne in ciljne vrednosti kazalnika)",null,null,null,null,null,null,null,null,null,null,null,null,10]
[]
[null,null,"Opis","Lokacija učinka ","Kazalnik učinka (opis in ciljna vrednost)"]
["Kulturna dediščina obnovljena, restavrirana in zaščitena",null,"Obnovljeni, restavrirani in zaščiteni kulturni spomeniki",null,"število obnovljenih, restavriranih in zaščitenih KS (cilj programa je 3)",null,null,null,null,null,null,"Največ 750 znakov za Ključne rezultate projekta"]
[]
[]
[]
[]
[]
[null,null,"Povečana dostopnost do kulturne dediščine (op. KS)",null,"odstotek povečanja števila obiskovalcev obnovljenih, restavriranih in zaščitenih KS (cilj programa je 5%)"]

{"sheet":"Delovni načrt projekta (B1)","index":9,"n_rows":122,"n_cols":20,"rows_kept":122,"cut":false,"hidden":false,"merged":[[4,0,4,7],[9,0,10,0],[9,2,9,8],[10,2,10,8],[2,0,2,8],[3,0,3,8],[8,2,8,7],[6,2,6,7],[11,0,12,0],[11,1,12,1],[11,2,12,2],[11,3,11,5],[116,0,116,8],[57,0,58,0],[57,2,57,8],[58,2,58,8],[11,6,12,6],[11,7,12,7],[11,8,12,8],[12,4,12,5],[115,0,115,8],[42,2,42,8],[25,0,26,0],[27,0,28,0],[27,1,28,1],[27,2,28,2],[27,6,28,6],[27,7,28,7],[25,2,25,8],[26,2,26,8],[27,3,27,5],[27,8,28,8],[28,4,28,5],[41,0,42,0],[41,2,41,8],[43,0,44,0],[43,1,44,1],[43,2,44,2],[43,3,43,5],[43,6,44,6],[43,7,44,7],[43,8,44,8],[44,4,44,5],[108,0,108,8],[109,0,109,8],[112,0,112,8],[114,0,114,8],[59,8,60,8],[60,4,60,5],[59,0,60,0],[59,1,60,1],[59,2,60,2],[59,3,59,5],[59,6,60,6],[59,7,60,7],[73,0,74,0],[73,2,73,8],[74,2,74,8],[75,0,76,0],[117,0,117,8],[118,0,118,8],[119,0,119,8],[120,0,120,8],[121,0,121,8],[75,8,76,8],[76,4,76,5],[75,1,76,1],[75,2,76,2],[75,3,75,5],[75,6,76,6],[75,7,76,7],[91,7,92,7],[91,8,92,8],[92,4,92,5],[89,0,90,0],[89,2,89,8],[90,2,90,8],[91,0,92,0],[91,1,92,1],[91,2,92,2],[91,3,91,5],[91,6,92,6],[24,2,24,7],[40,2,40,7],[56,2,56,7],[72,2,72,7],[88,2,88,7]]}
["Delovni načrt projekta",null,null,null,null,null,null,null,null,null,null,null,null,null,null,null,null,null,null,0]
[null,null,null,null,null,null,null,null,null,null,null,null,null,null,null,null,null,null,null,1]
["Navedite in opišite delovne sklope in dejavnosti v okviru posameznih delovnih sklopov.. Za vsako posamezno dejavnost navedite vse načrtovane dosežene rezultate in njihove kazalnike s ciljnimi vrednostmi. Navedite, kdo bo sodeloval pri posamezni dejavnosti (prijavitelj, Partner 1, Partner 2, itd.), stroške posamezne dejavnosti in tudi državo izvajanja dejavnosti. Za vse projekte sta obvezna vsaj dva delovna sklopa: DS1 - Upravljanje in koordinacija projekta ter DS2 - Informiranje in obveščanje. Projekt lahko v delovnem načrtu predvidi do  največ šest delovnih sklopov. ",null,null,null,null,null,null,null,null,null,null,null,null,null,null,null,null,null,null,2]
["Projekti s področja Biotske raznovrstnost in ekosistemske storitve morajo vključevati še dva dodatna DS: DS3 -  Varstveni ukrepi na terenu in DS4 -  Spremljanje stanja (monitoring) (delovna sklopa sta že predvidena). V kolikor je predvideno spremljanje stanja vrst in/ali habitatnih tipov, ki jih naslavljajo v okviru projekta izvedeni varstveni ukrepi na terenu, v opisu DS 4 opišite morebitna pretekla spremljanja stanj ter utemeljite potrebe po nadaljnjem izvajanju teh dejavnosti v okviru projekta. \nV že obvezen DS2 – Informiranje in obveščanje morajo projekti vključiti dejavnosti informiranja, izobraževanja in ozaveščanja o pomenu upravljanja območij Natura 2000 in ohranitvenih ukrepov, ki se izvajajo v okviru projekta, ki so usmerjene v oziroma vključujejo lokalne interesne skupine (lokalne skupnosti, organizacije kmetov ali lastnikov gozdov, ribiči, lovci, lokalne turistične in nevladne organizacije, ki delujejo na področju ohranjanja narave). \nPrijavitelj mora tudi zagotoviti, da bodo v okviru projekta zbrani podatki digitalizirani. Navedite vrsto podatkovne baze v katero bodo urejeni podatki. Navedite ali bodo podatki urejeni v skladu s standardi organizacije, ki vodi podatkovne baze s področja varstva narave ter bodo pripravljeni za vključitev v prostorski portal za zakonsko opredeljeno evidenco biotske raznovrstnosti\n",null,null,null,null,null,null,null,null,null,null,null,null,null,null,null,null,null,null,3]
[null,null,null,null,null,null,null,null,null,null,null,null,null,null,null,null,null,null,null,4]
[null,null,null,null,null,null,null,null,null,null,null,null,null,null,null,null,null,null,null,5]
[null,null,"Število dodatnih delovnih sklopov: ",null,null,null,null,null,1,null,"Izberite iz seznama. Dodatni delovni sklop pomeni poleg obveznih DS še dodatni DS projekta, ki jih določite sami.",null,null,null,null,null,null,null,null,6]
[null,null,null,null,null,null,null,null,null,null,null,null,null,null,null,null,null,null,null,7]
[null,null,"Število dodatnih dejavnosti  v delovnem sklopu \"Upravljanje in koordinacija\"",null,null,null,null,null,0,null,"Izberite število dejavnosti v delovnem sklopu (število dodatnih, poleg ene obvezne)",null,null,null,null,null,null,null,null,8]
["DS 1","Naziv DS","Upravljanje in koordinacija",null,null,null,null,null,null,null,null,null,null,null,null,null,null,null,null,9]
[null,"Opis DS",null,null,null,null,null,null,null,null,"Največ 1000 znakov",null,null,null,null,null,null,null,null,10]
[null,"Ime dejavnosti","Opis dejavnosti","Vsi rezultati projekta (outputs)",null,null,"Prijavitelj in/ali partner","Predvideni stroški","Država izvajanja dejavnosti*"]
[null,null,null,"Opis","Kazalnik in ciljna vrednost"]
["DEJ 1.1",null,null,null,null,null,null,null,null,null,"Največ 750 znakov za opis dejavnosti in največ 200 znakov za opis rezultatov"]
["DEJ 1.2",null,null,null,null,null,null,null,null,null,"Največ 750 znakov za opis dejavnosti in največ 200 znakov za opis rezultatov"]
["DEJ 1.3",null,null,null,null,null,null,null,null,null,"Največ 750 znakov za opis dejavnosti in največ 200 znakov za opis rezultatov"]
["DEJ 1.4",null,null,null,null,null,null,null,null,null,"Največ 750 znakov za opis dejavnosti in največ 200 znakov za opis rezultatov"]
["DEJ 1.5",null,null,null,null,null,null,null,null,null,"Največ 750 znakov za opis dejavnosti in največ 200 znakov za opis rezultatov"]
["DEJ 1.6",null,null,null,null,null,null,null,null,null,"Največ 750 znakov za opis dejavnosti in največ 200 znakov za opis rezultatov"]
["DEJ 1.7",null,null,null,null,null,null,null,null,null,"Največ 750 znakov za opis dejavnosti in največ 200 znakov za opis rezultatov"]
["DEJ 1.8",null,null,null,null,null,null,null,null,null,"Največ 750 znakov za opis dejavnosti in največ 200 znakov za opis rezultatov"]
["DEJ 1.9",null,null,null,null,null,null,null,null,null,"Največ 750 znakov za opis dejavnosti in največ 200 znakov za opis rezultatov"]
["DEJ 1.10",null,null,null,null,null,null,null,null,null,"Največ 750 znakov za opis dejavnosti in največ 200 znakov za opis rezultatov"]
[]
[null,null,"Število dodatnih dejavnosti v Delovnem sklopu \"Informiranje in obveščanje\": ",null,null,null,null,null,0,null,"Izberite število dejavnosti v delovnem sklopu (število dodatnih, poleg ene obvezne)"]
["DS 2","Naziv DS","Informiranje in obveščanje"]
[null,"Opis DS",null,null,null,null,null,null,null,null,"Največ 1000 znakov"]
[null,"Ime dejavnosti","Opis dejavnosti","Vsi rezultati projekta (outputs)",null,null,"Prijavitelj in/ali partner","Predvideni stroški","Država izvajanja dejavnosti*"]
[null,null,null,"Opis","Kazalnik in ciljna vrednost"]
["DEJ 2.1",null,null,null,null,null,null,null,null,null,"Največ 750 znakov za opis dejavnosti in največ 200 znakov za opis rezultatov"]
["DEJ 2.2",null,null,null,null,null,null,null,null,null,"Največ 750 znakov za opis dejavnosti in največ 200 znakov za opis rezultatov"]
["DEJ 2.3",null,null,null,null,null,null,null,null,null,"Največ 750 znakov za opis dejavnosti in največ 200 znakov za opis rezultatov"]
["DEJ 2.4",null,null,null,null,null,null,null,null,null,"Največ 750 znakov za opis dejavnosti in največ 200 znakov za opis rezultatov"]
["DEJ 2.5",null,null,null,null,null,null,null,null,null,"Največ 750 znakov za opis dejavnosti in največ 200 znakov za opis rezultatov"]
["DEJ 2.6",null,null,null,null,null,null,null,null,null,"Največ 750 znakov za opis dejavnosti in največ 200 znakov za opis rezultatov"]
["DEJ 2.7",null,null,null,null,null,null,null,null,null,"Največ 750 znakov za opis dejavnosti in največ 200 znakov za opis rezultatov"]
["DEJ 2.8",null,null,null,null,null,null,null,null,null,"Največ 750 znakov za opis dejavnosti in največ 200 znakov za opis rezultatov"]
["DEJ 2.9",null,null,null,null,null,null,null,null,null,"Največ 750 znakov za opis dejavnosti in največ 200 znakov za opis rezultatov"]
["DEJ 2.10",null,null,null,null,null,null,null,null,null,"Največ 750 znakov za opis dejavnosti in največ 200 znakov za opis rezultatov"]
[]
[null,null,"Število dodatnih dejavnosti v delovnem sklopu \"Varstveni ukrepi na terenu\": ",null,null,null,null,null,0,null,"Izberite število dejavnosti v delovnem sklopu (število dodatnih, poleg ene obvezne)"]
["DS 3","Naziv DS","Varstveni ukrepi na terenu"]
[null,"Opis DS",null,null,null,null,null,null,null,null,"Največ 1000 znakov"]
[null,"Ime dejavnosti","Opis dejavnosti","Vsi rezultati projekta (outputs)",null,null,"Prijavitelj in/ali partner","Predvideni stroški","Država izvajanja dejavnosti*"]
[null,null,null,"Opis","Kazalnik in ciljna vrednost"]
["DEJ 3.1",null,null,null,null,null,null,null,null,null,"Največ 750 znakov za opis dejavnosti in največ 200 znakov za opis rezultatov"]
["DEJ 3.2",null,null,null,null,null,null,null,null,null,"Največ 750 znakov za opis dejavnosti in največ 200 znakov za opis rezultatov"]
["DEJ 3.3",null,null,null,null,null,null,null,null,null,"Največ 750 znakov za opis dejavnosti in največ 200 znakov za opis rezultatov"]
["DEJ 3.4",null,null,null,null,null,null,null,null,null,"Največ 750 znakov za opis dejavnosti in največ 200 znakov za opis rezultatov"]
["DEJ 3.5",null,null,null,null,null,null,null,null,null,"Največ 750 znakov za opis dejavnosti in največ 200 znakov za opis rezultatov"]
["DEJ 3.6",null,null,null,null,null,null,null,null,null,"Največ 750 znakov za opis dejavnosti in največ 200 znakov za opis rezultatov"]
["DEJ 3.7",null,null,null,null,null,null,null,null,null,"Največ 750 znakov za opis dejavnosti in največ 200 znakov za opis rezultatov"]
["DEJ 3.8",null,null,null,null,null,null,null,null,null,"Največ 750 znakov za opis dejavnosti in največ 200 znakov za opis rezultatov"]
["DEJ 3.9",null,null,null,null,null,null,null,null,null,"Največ 750 znakov za opis dejavnosti in največ 200 znakov za opis rezultatov"]
["DEJ 3.10",null,null,null,null,null,null,null,null,null,"Največ 750 znakov za opis dejavnosti in največ 200 znakov za opis rezultatov"]
[]
[null,null,"Število dodatnih dejavnosti v delovnem sklopu \"Spremljanje stanja (monitoring)\": ",null,null,null,null,null,0,null,"Izberite število dejavnosti v delovnem sklopu (število dodatnih, poleg ene obvezne)"]
["DS 4","Naziv DS","Spremljanje stanja (monitoring)"]
[null,"Opis DS",null,null,null,null,null,null,null,null,"Največ 1000 znakov"]
[null,"Ime dejavnosti","Opis dejavnosti","Vsi rezultati projekta (outputs)",null,null,"Prijavitelj in/ali partner","Predvideni stroški","Država izvajanja dejavnosti*"]
[null,null,null,"Opis","Kazalnik in ciljna vrednost"]
["DEJ 4.1",null,null,null,null,null,null,null,null,null,"Največ 750 znakov za opis dejavnosti in največ 200 znakov za opis rezultatov"]
["DEJ 4.2",null,null,null,null,null,null,null,null,null,"Največ 750 znakov za opis dejavnosti in največ 200 znakov za opis rezultatov"]
["DEJ 4.3",null,null,null,null,null,null,null,null,null,"Največ 750 znakov za opis dejavnosti in največ 200 znakov za opis rezultatov"]
["DEJ 4.4",null,null,null,null,null,null,null,null,null,"Največ 750 znakov za opis dejavnosti in največ 200 znakov za opis rezultatov"]
["DEJ 4.5",null,null,null,null,null,null,null,null,null,"Največ 750 znakov za opis dejavnosti in največ 200 znakov za opis rezultatov"]
["DEJ 4.6",null,null,null,null,null,null,null,null,null,"Največ 750 znakov za opis dejavnosti in največ 200 znakov za opis rezultatov"]
["DEJ 4.7",null,null,null,null,null,null,null,null,null,"Največ 750 znakov za opis dejavnosti in največ 200 znakov za opis rezultatov"]
["DEJ 4.8",null,null,null,null,null,null,null,null,null,"Največ 750 znakov za opis dejavnosti in največ 200 znakov za opis rezultatov"]
["DEJ 4.9",null,null,null,null,null,null,null,null,null,"Največ 750 znakov za opis dejavnosti in največ 200 znakov za opis rezultatov"]
["DEJ 4.10",null,null,null,null,null,null,null,null,null,"Največ 750 znakov za opis dejavnosti in največ 200 znakov za opis rezultatov"]
[]
[null,null,"Število dodatnih dejavnosti v delovnem sklopu: ",null,null,null,null,null,0,null,"Izberite število dejavnosti v delovnem sklopu (število dodatnih, poleg ene obvezne)"]
["DS 5","Naziv DS"]
[null,"Opis DS",null,null,null,null,null,null,null,null,"Največ 1000 znakov"]
[null,"Ime dejavnosti","Opis dejavnosti","Vsi rezultati projekta (outputs)",null,null,"Prijavitelj in/ali partner","Predvideni stroški","Država izvajanja dejavnosti*"]
[null,null,null,"Opis","Kazalnik in ciljna vrednost"]
["DEJ 5.1",null,null,null,null,null,null,null,null,null,"Največ 750 znakov za opis dejavnosti in največ 200 znakov za opis rezultatov"]
["DEJ 5.2",null,null,null,null,null,null,null,null,null,"Največ 750 znakov za opis dejavnosti in največ 200 znakov za opis rezultatov"]
["DEJ 5.3",null,null,null,null,null,null,null,null,null,"Največ 750 znakov za opis dejavnosti in največ 200 znakov za opis rezultatov"]
["DEJ 5.4",null,null,null,null,null,null,null,null,null,"Največ 750 znakov za opis dejavnosti in največ 200 znakov za opis rezultatov"]
["DEJ 5.5",null,null,null,null,null,null,null,null,null,"Največ 750 znakov za opis dejavnosti in največ 200 znakov za opis rezultatov"]
["DEJ 5.6",null,null,null,null,null,null,null,null,null,"Največ 750 znakov za opis dejavnosti in največ 200 znakov za opis rezultatov"]
["DEJ 5.7",null,null,null,null,null,null,null,null,null,"Največ 750 znakov za opis dejavnosti in največ 200 znakov za opis rezultatov"]
["DEJ 5.8",null,null,null,null,null,null,null,null,null,"Največ 750 znakov za opis dejavnosti in največ 200 znakov za opis rezultatov"]
["DEJ 5.9",null,null,null,null,null,null,null,null,null,"Največ 750 znakov za opis dejavnosti in največ 200 znakov za opis rezultatov"]
["DEJ 5.10",null,null,null,null,null,null,null,null,null,"Največ 750 znakov za opis dejavnosti in največ 200 znakov za opis rezultatov"]
[]
[null,null,"Število dodatnih dejavnosti v delovnem sklopu: ",null,null,null,null,null,0,null,"Izberite število dejavnosti v delovnem sklopu (število dodatnih, poleg ene obvezne)"]
["DS 6","Naziv DS"]
[null,"Opis DS",null,null,null,null,null,null,null,null,"Največ 1000 znakov"]
[null,"Ime dejavnosti","Opis dejavnosti","Vsi rezultati projekta (outputs)",null,null,"Prijavitelj in/ali partner","Predvideni stroški","Država izvajanja dejavnosti*"]
[null,null,null,"Opis","Kazalnik in ciljna vrednost"]
["DEJ 6.1",null,null,null,null,null,null,null,null,null,"Največ 750 znakov za opis dejavnosti in največ 200 znakov za opis rezultatov"]
["DEJ 6.2",null,null,null,null,null,null,null,null,null,"Največ 750 znakov za opis dejavnosti in največ 200 znakov za opis rezultatov"]
["DEJ 6.3",null,null,null,null,null,null,null,null,null,"Največ 750 znakov za opis dejavnosti in največ 200 znakov za opis rezultatov"]
["DEJ 6.4",null,null,null,null,null,null,null,null,null,"Največ 750 znakov za opis dejavnosti in največ 200 znakov za opis rezultatov"]
["DEJ 6.5",null,null,null,null,null,null,null,null,null,"Največ 750 znakov za opis dejavnosti in največ 200 znakov za opis rezultatov"]
["DEJ 6.6",null,null,null,null,null,null,null,null,null,"Največ 750 znakov za opis dejavnosti in največ 200 znakov za opis rezultatov"]
["DEJ 6.7",null,null,null,null,null,null,null,null,null,"Največ 750 znakov za opis dejavnosti in največ 200 znakov za opis rezultatov"]
["DEJ 6.8",null,null,null,null,null,null,null,null,null,"Največ 750 znakov za opis dejavnosti in največ 200 znakov za opis rezultatov"]
["DEJ 6.9",null,null,null,null,null,null,null,null,null,"Največ 750 znakov za opis dejavnosti in največ 200 znakov za opis rezultatov"]
["DEJ 6.10",null,null,null,null,null,null,null,null,null,"Največ 750 znakov za opis dejavnosti in največ 200 znakov za opis rezultatov"]
[]
[]
[]
[]
[]
["*Upravičeno območje izvajanja dejavnosti je območje Republike Slovenije in držav donatoric. V kolikor ocenjujete, da je dejavnost nujno potrebna za izvajanje projekta in se je ne more izvesti znotraj upravičenega območja, podajte ustrezno utemeljitev."]
[null,null,null,null,null,null,null,null,null,null,"Največ 750 znakov"]
[]
[]
["Trajnost projektnih rezultatov"]
[]
["Finančna in institucionalna trajnost"]
[]
["Pojasnite, kako bo zagotovljena trajnost projektnih rezultatov v institucionalnem in finančnem smislu. Načrtujete nadaljevanje izvajanja katere od projektnih dejavnosti  po zaključku so-financiranja?"]
[null,null,null,null,null,null,null,null,null,null,"Največ 2500 znakov"]
[]
["Dolgoročen vpliv na ciljno skupino"]
["Opišite dolgoročne vplive projekta na ciljno skupino. Kako bo različnim ciljnim skupinam in drugim potencialnim deležnikom omogočena uporaba rezultatov projekta? "]
[null,null,null,null,null,null,null,null,null,null,"Največ 2500 znakov"]

{"sheet":"Delovni načrt projekta (B2)","index":10,"n_rows":122,"n_cols":22,"rows_kept":122,"cut":false,"hidden":false,"merged":[[11,8,12,8],[12,4,12,5],[25,0,26,0],[25,2,25,8],[26,2,26,8],[11,0,12,0],[11,1,12,1],[2,0,2,8],[3,0,3,7],[4,0,4,7],[9,0,10,0],[9,2,9,8],[10,2,10,8],[27,8,28,8],[28,4,28,5],[41,0,42,0],[41,2,41,8],[42,2,42,8],[27,0,28,0],[27,1,28,1],[27,2,28,2],[27,3,27,5],[27,6,28,6],[43,8,44,8],[44,4,44,5],[57,0,58,0],[57,2,57,8],[58,2,58,8],[43,0,44,0],[43,1,44,1],[43,2,44,2],[43,3,43,5],[43,6,44,6],[43,7,44,7],[59,8,60,8],[60,4,60,5],[73,0,74,0],[73,2,73,8],[74,2,74,8],[59,0,60,0],[59,1,60,1],[59,2,60,2],[59,3,59,5],[59,6,60,6],[72,2,72,7],[112,0,112,8],[75,8,76,8],[76,4,76,5],[89,0,90,0],[89,2,89,8],[90,2,90,8],[91,0,92,0],[91,1,92,1],[91,2,92,2],[91,3,91,5],[91,6,92,6],[75,0,76,0],[75,1,76,1],[75,2,76,2],[75,3,75,5],[75,6,76,6],[91,7,92,7],[91,8,92,8],[92,4,92,5],[108,0,108,8],[109,0,109,8],[120,0,120,8],[121,0,121,8],[114,0,114,8],[115,0,115,8],[116,0,116,8],[117,0,117,8],[118,0,118,8],[119,0,119,8],[88,2,88,7],[6,4,6,7],[8,2,8,7],[24,2,24,7],[40,2,40,7],[56,2,56,7],[75,7,76,7],[59,7,60,7],[27,7,28,7],[11,2,12,2],[11,3,11,5],[11,6,12,6],[11,7,12,7]]}
["Delovni načrt projekta",null,null,null,null,null,null,null,null,null,null,null,null,null,null,null,null,null,null,0,null,1]
[null,null,null,null,null,null,null,null,null,null,null,null,null,null,null,null,null,null,null,1]
["Navedite in opišite delovne sklope in dejavnosti v okviru posameznih delovnih sklopov, katere boste izvajali in katere bodo vodile k predlaganim rezultatom projekta. Za vsako posamezno dejavnost navedite vse načrtovane dosežene rezultate in njihove kazalnike s ciljnimi vrednostmi. Navedite, kdo bo sodeloval pri posamezni dejavnosti (prijavitelj, Partner 1, Partner 2, itd.), stroške posamezne dejavnosti in tudi državo izvajanja dejavnosti. Delovna sklopa Upravljanje in koordinacija projekta in Informiranje in obveščanje sta obvezna za vsak projekt.",null,null,null,null,null,null,null,null,null,null,null,null,null,null,null,null,null,null,2]
[null,null,null,null,null,null,null,null,null,null,null,null,null,null,null,null,null,null,null,3]
[null,null,null,null,null,null,null,null,null,null,null,null,null,null,null,null,null,null,null,4]
[null,null,null,null,null,null,null,null,null,null,null,null,null,null,null,null,null,null,null,5]
[null,null,null,null,"Število dodatnih delovnih sklopov: ",null,null,null,0,null,"Izberite iz seznama. Dodatni delovni sklop pomeni poleg obveznih DS še dodatni DS projekta, ki jih določite sami.",null,null,null,null,null,null,null,null,6]
[null,null,null,null,null,null,null,null,null,null,null,null,null,null,null,null,null,null,null,7]
[null,null,"Število dodatnih dejavnosti v delovnem sklopu \"Upravljanje in koordinacija\":  ",null,null,null,null,null,0,null,"Izberite število dejavnosti v delovnem sklopu (število dodatnih, poleg ene obvezne)",null,null,null,null,null,null,null,null,8]
["DS 1","Naziv DS","Upravljanje in koordinacija",null,null,null,null,null,null,null,null,null,null,null,null,null,null,null,null,9]
[null,"Opis DS",null,null,null,null,null,null,null,null,"Največ 1000 znakov",null,null,null,null,null,null,null,null,10]
[null,"Ime dejavnosti","Opis dejavnosti","Vsi rezultati projekta (outputs)",null,null,"Prijavitelj in/ali partner","Predvideni stroški","Država izvajanja dejavnosti*"]
[null,null,null,"Opis","Kazalnik in ciljna vrednost"]
["DEJ 1.1",null,null,null,null,null,null,null,null,null,"Največ 750 znakov za opis dejavnosti in največ 200 znakov za opis rezultatov"]
["DEJ 1.2",null,null,null,null,null,null,null,null,null,"Največ 750 znakov za opis dejavnosti in največ 200 znakov za opis rezultatov"]
["DEJ 1.3",null,null,null,null,null,null,null,null,null,"Največ 750 znakov za opis dejavnosti in največ 200 znakov za opis rezultatov"]
["DEJ 1.4",null,null,null,null,null,null,null,null,null,"Največ 750 znakov za opis dejavnosti in največ 200 znakov za opis rezultatov"]
["DEJ 1.5",null,null,null,null,null,null,null,null,null,"Največ 750 znakov za opis dejavnosti in največ 200 znakov za opis rezultatov"]
["DEJ 1.6",null,null,null,null,null,null,null,null,null,"Največ 750 znakov za opis dejavnosti in največ 200 znakov za opis rezultatov"]
["DEJ 1.7",null,null,null,null,null,null,null,null,null,"Največ 750 znakov za opis dejavnosti in največ 200 znakov za opis rezultatov"]
["DEJ 1.8",null,null,null,null,null,null,null,null,null,"Največ 750 znakov za opis dejavnosti in največ 200 znakov za opis rezultatov"]
["DEJ 1.9",null,null,null,null,null,null,null,null,null,"Največ 750 znakov za opis dejavnosti in največ 200 znakov za opis rezultatov"]
["DEJ 1.10",null,null,null,null,null,null,null,null,null,"Največ 750 znakov za opis dejavnosti in največ 200 znakov za opis rezultatov"]
[]
[null,null,"Število dodatnih dejavnosti v delovnem sklopu \"Informiranje in obveščanje\": ",null,null,null,null,null,0,null,"Izberite število dejavnosti v delovnem sklopu (število dodatnih, poleg ene obvezne)"]
["DS 2","Naziv DS","Informiranje in obveščanje"]
[null,"Opis DS",null,null,null,null,null,null,null,null,"Največ 1000 znakov"]
[null,"Ime dejavnosti","Opis dejavnosti","Vsi rezultati projekta (outputs)",null,null,"Prijavitelj in/ali partner","Predvideni stroški","Država izvajanja dejavnosti*"]
[null,null,null,"Opis","Kazalnik in ciljna vrednost"]
["DEJ 2.1",null,null,null,null,null,null,null,null,null,"Največ 750 znakov za opis dejavnosti in največ 200 znakov za opis rezultatov"]
["DEJ 2.2",null,null,null,null,null,null,null,null,null,"Največ 750 znakov za opis dejavnosti in največ 200 znakov za opis rezultatov"]
["DEJ 2.3",null,null,null,null,null,null,null,null,null,"Največ 750 znakov za opis dejavnosti in največ 200 znakov za opis rezultatov"]
["DEJ 2.4",null,null,null,null,null,null,null,null,null,"Največ 750 znakov za opis dejavnosti in največ 200 znakov za opis rezultatov"]
["DEJ 2.5",null,null,null,null,null,null,null,null,null,"Največ 750 znakov za opis dejavnosti in največ 200 znakov za opis rezultatov"]
["DEJ 2.6",null,null,null,null,null,null,null,null,null,"Največ 750 znakov za opis dejavnosti in največ 200 znakov za opis rezultatov"]
["DEJ 2.7",null,null,null,null,null,null,null,null,null,"Največ 750 znakov za opis dejavnosti in največ 200 znakov za opis rezultatov"]
["DEJ 2.8",null,null,null,null,null,null,null,null,null,"Največ 750 znakov za opis dejavnosti in največ 200 znakov za opis rezultatov"]
["DEJ 2.9",null,null,null,null,null,null,null,null,null,"Največ 750 znakov za opis dejavnosti in največ 200 znakov za opis rezultatov"]
["DEJ 2.10",null,null,null,null,null,null,null,null,null,"Največ 750 znakov za opis dejavnosti in največ 200 znakov za opis rezultatov"]
[]
[null,null,"Število dodatnih dejavnosti v delovnem sklopu: ",null,null,null,null,null,0,null,"Izberite število dejavnosti v delovnem sklopu (število dodatnih, poleg ene obvezne)"]
["DS 3","Naziv DS"]
[null,"Opis DS",null,null,null,null,null,null,null,null,"Največ 1000 znakov"]
[null,"Ime dejavnosti","Opis dejavnosti","Vsi rezultati projekta (outputs)",null,null,"Prijavitelj in/ali partner","Predvideni stroški","Država izvajanja dejavnosti*"]
[null,null,null,"Opis","Kazalnik in ciljna vrednost"]
["DEJ 3.1",null,null,null,null,null,null,null,null,null,"Največ 750 znakov za opis dejavnosti in največ 200 znakov za opis rezultatov"]
["DEJ 3.2",null,null,null,null,null,null,null,null,null,"Največ 750 znakov za opis dejavnosti in največ 200 znakov za opis rezultatov"]
["DEJ 3.3",null,null,null,null,null,null,null,null,null,"Največ 750 znakov za opis dejavnosti in največ 200 znakov za opis rezultatov"]
["DEJ 3.4",null,null,null,null,null,null,null,null,null,"Največ 750 znakov za opis dejavnosti in največ 200 znakov za opis rezultatov"]
["DEJ 3.5",null,null,null,null,null,null,null,null,null,"Največ 750 znakov za opis dejavnosti in največ 200 znakov za opis rezultatov"]
["DEJ 3.6",null,null,null,null,null,null,null,null,null,"Največ 750 znakov za opis dejavnosti in največ 200 znakov za opis rezultatov"]
["DEJ 3.7",null,null,null,null,null,null,null,null,null,"Največ 750 znakov za opis dejavnosti in največ 200 znakov za opis rezultatov"]
["DEJ 3.8",null,null,null,null,null,null,null,null,null,"Največ 750 znakov za opis dejavnosti in največ 200 znakov za opis rezultatov"]
["DEJ 3.9",null,null,null,null,null,null,null,null,null,"Največ 750 znakov za opis dejavnosti in največ 200 znakov za opis rezultatov"]
["DEJ 3.10",null,null,null,null,null,null,null,null,null,"Največ 750 znakov za opis dejavnosti in največ 200 znakov za opis rezultatov"]
[]
[null,null,"Število dodatnih dejavnosti v delovnem sklopu: ",null,null,null,null,null,0,null,"Izberite število dejavnosti v delovnem sklopu (število dodatnih, poleg ene obvezne)"]
["DS 4","Naziv DS"]
[null,"Opis DS",null,null,null,null,null,null,null,null,"Največ 1000 znakov"]
[null,"Ime dejavnosti","Opis dejavnosti","Vsi rezultati projekta (outputs)",null,null,"Prijavitelj in/ali partner","Predvideni stroški","Država izvajanja dejavnosti*"]
[null,null,null,"Opis","Kazalnik in ciljna vrednost"]
["DEJ 4.1",null,null,null,null,null,null,null,null,null,"Največ 750 znakov za opis dejavnosti in največ 200 znakov za opis rezultatov"]
["DEJ 4.2",null,null,null,null,null,null,null,null,null,"Največ 750 znakov za opis dejavnosti in največ 200 znakov za opis rezultatov"]
["DEJ 4.3",null,null,null,null,null,null,null,null,null,"Največ 750 znakov za opis dejavnosti in največ 200 znakov za opis rezultatov"]
["DEJ 4.4",null,null,null,null,null,null,null,null,null,"Največ 750 znakov za opis dejavnosti in največ 200 znakov za opis rezultatov"]
["DEJ 4.5",null,null,null,null,null,null,null,null,null,"Največ 750 znakov za opis dejavnosti in največ 200 znakov za opis rezultatov"]
["DEJ 4.6",null,null,null,null,null,null,null,null,null,"Največ 750 znakov za opis dejavnosti in največ 200 znakov za opis rezultatov"]
["DEJ 4.7",null,null,null,null,null,null,null,null,null,"Največ 750 znakov za opis dejavnosti in največ 200 znakov za opis rezultatov"]
["DEJ 4.8",null,null,null,null,null,null,null,null,null,"Največ 750 znakov za opis dejavnosti in največ 200 znakov za opis rezultatov"]
["DEJ 4.9",null,null,null,null,null,null,null,null,null,"Največ 750 znakov za opis dejavnosti in največ 200 znakov za opis rezultatov"]
["DEJ 4.10",null,null,null,null,null,null,null,null,null,"Največ 750 znakov za opis dejavnosti in največ 200 znakov za opis rezultatov"]
[]
[null,null,"Število dodatnih dejavnosti v delovnem sklopu: ",null,null,null,null,null,0,null,"Izberite število dejavnosti v delovnem sklopu (število dodatnih, poleg ene obvezne)"]
["DS 5","Naziv DS"]
[null,"Opis DS",null,null,null,null,null,null,null,null,"Največ 1000 znakov"]
[null,"Ime dejavnosti","Opis dejavnosti","Vsi rezultati projekta (outputs)",null,null,"Prijavitelj in/ali partner","Predvideni stroški","Država izvajanja dejavnosti*"]
[null,null,null,"Opis","Kazalnik in ciljna vrednost"]
["DEJ 5.1",null,null,null,null,null,null,null,null,null,"Največ 750 znakov za opis dejavnosti in največ 200 znakov za opis rezultatov"]
["DEJ 5.2",null,null,null,null,null,null,null,null,null,"Največ 750 znakov za opis dejavnosti in največ 200 znakov za opis rezultatov"]
["DEJ 5.3",null,null,null,null,null,null,null,null,null,"Največ 750 znakov za opis dejavnosti in največ 200 znakov za opis rezultatov"]
["DEJ 5.4",null,null,null,null,null,null,null,null,null,"Največ 750 znakov za opis dejavnosti in največ 200 znakov za opis rezultatov"]
["DEJ 5.5",null,null,null,null,null,null,null,null,null,"Največ 750 znakov za opis dejavnosti in največ 200 znakov za opis rezultatov"]
["DEJ 5.6",null,null,null,null,null,null,null,null,null,"Največ 750 znakov za opis dejavnosti in največ 200 znakov za opis rezultatov"]
["DEJ 5.7",null,null,null,null,null,null,null,null,null,"Največ 750 znakov za opis dejavnosti in največ 200 znakov za opis rezultatov"]
["DEJ 5.8",null,null,null,null,null,null,null,null,null,"Največ 750 znakov za opis dejavnosti in največ 200 znakov za opis rezultatov"]
["DEJ 5.9",null,null,null,null,null,null,null,null,null,"Največ 750 znakov za opis dejavnosti in največ 200 znakov za opis rezultatov"]
["DEJ 5.10",null,null,null,null,null,null,null,null,null,"Največ 750 znakov za opis dejavnosti in največ 200 znakov za opis rezultatov"]
[]
[null,null,"Število dodatnih dejavnosti v delovnem sklopu: ",null,null,null,null,null,0,null,"Izberite število dejavnosti v delovnem sklopu (število dodatnih, poleg ene obvezne)"]
["DS 6","Naziv DS"]
[null,"Opis DS",null,null,null,null,null,null,null,null,"Največ 1000 znakov"]
[null,"Ime dejavnosti","Opis dejavnosti","Vsi rezultati projekta (outputs)",null,null,"Prijavitelj in/ali partner","Predvideni stroški","Država izvajanja dejavnosti*"]
[null,null,null,"Opis","Kazalnik in ciljna vrednost"]
["DEJ 6.1",null,null,null,null,null,null,null,null,null,"Največ 750 znakov za opis dejavnosti in največ 200 znakov za opis rezultatov"]
["DEJ 6.2",null,null,null,null,null,null,null,null,null,"Največ 750 znakov za opis dejavnosti in največ 200 znakov za opis rezultatov"]
["DEJ 6.3",null,null,null,null,null,null,null,null,null,"Največ 750 znakov za opis dejavnosti in največ 200 znakov za opis rezultatov"]
["DEJ 6.4",null,null,null,null,null,null,null,null,null,"Največ 750 znakov za opis dejavnosti in največ 200 znakov za opis rezultatov"]
["DEJ 6.5",null,null,null,null,null,null,null,null,null,"Največ 750 znakov za opis dejavnosti in največ 200 znakov za opis rezultatov"]
["DEJ 6.6",null,null,null,null,null,null,null,null,null,"Največ 750 znakov za opis dejavnosti in največ 200 znakov za opis rezultatov"]
["DEJ 6.7",null,null,null,null,null,null,null,null,null,"Največ 750 znakov za opis dejavnosti in največ 200 znakov za opis rezultatov"]
["DEJ 6.8",null,null,null,null,null,null,null,null,null,"Največ 750 znakov za opis dejavnosti in največ 200 znakov za opis rezultatov"]
["DEJ 6.9",null,null,null,null,null,null,null,null,null,"Največ 750 znakov za opis dejavnosti in največ 200 znakov za opis rezultatov"]
["DEJ 6.10",null,null,null,null,null,null,null,null,null,"Največ 750 znakov za opis dejavnosti in največ 200 znakov za opis rezultatov"]
[]
[]
[]
[]
[]
["*Upravičeno območje izvajanja dejavnosti je območje Republike Slovenije in držav donatoric. V kolikor ocenjujete, da je dejavnost nujno potrebna za izvajanje projekta in se je ne more izvesti znotraj upravičenega območja, podajte ustrezno utemeljitev."]
[null,null,null,null,null,null,null,null,null,null,"Največ 750 znakov"]
[]
[]
["Trajnost projektnih rezultatov"]
[]
["Finančna in institucionalna trajnost"]
[]
["Pojasnite, kako bo zagotovljena trajnost projektnih rezultatov v institucionalnem in finančnem smislu. Načrtujete nadaljevanje izvajanja katere od projektnih dejavnosti  po zaključku so-financiranja?"]
[null,null,null,null,null,null,null,null,null,null,"Največ 2500 znakov"]
[]
["Dolgoročen vpliv na ciljno skupino"]
["Opišite dolgoročne vplive projekta na ciljno skupino. Kako bo različnim ciljnim skupinam in drugim potencialnim deležnikom omogočena uporaba rezultatov projekta? "]
[null,null,null,null,null,null,null,null,null,null,"Največ 2500 znakov"]

{"sheet":"Delovni načrt projekta (B3)","index":11,"n_rows":122,"n_cols":22,"rows_kept":122,"cut":false,"hidden":false,"merged":[[4,0,4,7],[9,0,10,0],[9,2,9,8],[10,2,10,8],[2,0,2,8],[3,0,3,8],[8,2,8,7],[6,2,6,7],[11,7,12,7],[11,8,12,8],[12,4,12,5],[25,0,26,0],[25,2,25,8],[26,2,26,8],[11,0,12,0],[11,1,12,1],[11,2,12,2],[11,3,11,5],[11,6,12,6],[24,2,24,7],[27,7,28,7],[27,8,28,8],[28,4,28,5],[41,0,42,0],[41,2,41,8],[42,2,42,8],[27,0,28,0],[27,1,28,1],[27,2,28,2],[27,3,27,5],[27,6,28,6],[40,2,40,7],[43,7,44,7],[43,8,44,8],[44,4,44,5],[57,0,58,0],[57,2,57,8],[58,2,58,8],[43,0,44,0],[43,1,44,1],[43,2,44,2],[43,3,43,5],[43,6,44,6],[56,2,56,7],[59,7,60,7],[59,8,60,8],[60,4,60,5],[73,0,74,0],[73,2,73,8],[74,2,74,8],[59,0,60,0],[59,1,60,1],[59,2,60,2],[59,3,59,5],[59,6,60,6],[72,2,72,7],[75,7,76,7],[75,8,76,8],[76,4,76,5],[89,0,90,0],[89,2,89,8],[90,2,90,8],[75,0,76,0],[75,1,76,1],[75,2,76,2],[75,3,75,5],[75,6,76,6],[88,2,88,7],[91,7,92,7],[91,8,92,8],[92,4,92,5],[108,0,108,8],[109,0,109,8],[91,0,92,0],[91,1,92,1],[91,2,92,2],[91,3,91,5],[91,6,92,6],[118,0,118,8],[119,0,119,8],[120,0,120,8],[121,0,121,8],[112,0,112,8],[114,0,114,8],[115,0,115,8],[116,0,116,8],[117,0,117,8]]}
["Delovni načrt projekta",null,null,null,null,null,null,null,null,null,null,null,null,null,null,null,null,null,null,0,null,1]
[null,null,null,null,null,null,null,null,null,null,null,null,null,null,null,null,null,null,null,1]
["Navedite in opišite delovne sklope in dejavnosti v okviru posameznih delovnih sklopov, katere boste izvajali in katere bodo vodile k predlaganim rezultatom projekta. Za vsako posamezno dejavnost navedite vse načrtovane dosežene rezultate in njihove kazalnike s ciljnimi vrednostmi. Navedite, kdo bo sodeloval pri posamezni dejavnosti (prijavitelj, Partner 1, Partner 2, itd.), stroške posamezne dejavnosti in tudi državo izvajanja dejavnosti. Delovna sklopa Upravljanje in koordinacija projekta in Informiranje in obveščanje sta obvezna za vsak projekt.",null,null,null,null,null,null,null,null,null,null,null,null,null,null,null,null,null,null,2]
["Projekti s področja Kulturna dediščina morajo poleg obveznih DS1 in DS2 vključevati še dodaten obvezni DS3 – Dostopnost kulturne dediščine, v katerem predvidi »mehke« dejavnosti za povečanje dostopnosti do kulturne dediščine (npr. oblikovanje privlačnih programov za ranljive skupine in mlado populacijo), za katere mora predvideti vsaj 5% nepovratnih sredstev sofinanciranja projekta.\n",null,null,null,null,null,null,null,null,null,null,null,null,null,null,null,null,null,null,3]
[null,null,null,null,null,null,null,null,null,null,null,null,null,null,null,null,null,null,null,4]
[null,null,null,null,null,null,null,null,null,null,null,null,null,null,null,null,null,null,null,5]
[null,null,"Število dodatnih delovnih sklopov",null,null,null,null,null,3,null,"Izberite iz seznama. Dodatni delovni sklop pomeni poleg obveznih DS še dodatni DS projekta, ki jih določite sami.",null,null,null,null,null,null,null,null,6]
[null,null,null,null,null,null,null,null,null,null,null,null,null,null,null,null,null,null,null,7]
[null,null,"Število dodatnih dejavnosti v delovnem sklopu \"Upravljanje in koordinacija\": ",null,null,null,null,null,0,null,"Izberite število dejavnosti v delovnem sklopu (število dodatnih, poleg ene obvezne)",null,null,null,null,null,null,null,null,8]
["DS 1","Naziv DS","Upravljanje in koordinacija",null,null,null,null,null,null,null,null,null,null,null,null,null,null,null,null,9]
[null,"Opis DS",null,null,null,null,null,null,null,null,"Največ 1000 znakov",null,null,null,null,null,null,null,null,10]
[null,"Ime dejavnosti","Opis dejavnosti","Vsi rezultati projekta (outputs)",null,null,"Prijavitelj in/ali partner","Predvideni stroški","Država izvajanja dejavnosti*"]
[null,null,null,"Opis","Kazalnik in ciljna vrednost"]
["DEJ 1.1",null,null,null,null,null,null,null,null,null,"Največ 750 znakov za opis dejavnosti in največ 200 znakov za opis rezultatov"]
["DEJ 1.2",null,null,null,null,null,null,null,null,null,"Največ 750 znakov za opis dejavnosti in največ 200 znakov za opis rezultatov"]
["DEJ 1.3",null,null,null,null,null,null,null,null,null,"Največ 750 znakov za opis dejavnosti in največ 200 znakov za opis rezultatov"]
["DEJ 1.4",null,null,null,null,null,null,null,null,null,"Največ 750 znakov za opis dejavnosti in največ 200 znakov za opis rezultatov"]
["DEJ 1.5",null,null,null,null,null,null,null,null,null,"Največ 750 znakov za opis dejavnosti in največ 200 znakov za opis rezultatov"]
["DEJ 1.6",null,null,null,null,null,null,null,null,null,"Največ 750 znakov za opis dejavnosti in največ 200 znakov za opis rezultatov"]
["DEJ 1.7",null,null,null,null,null,null,null,null,null,"Največ 750 znakov za opis dejavnosti in največ 200 znakov za opis rezultatov"]
["DEJ 1.8",null,null,null,null,null,null,null,null,null,"Največ 750 znakov za opis dejavnosti in največ 200 znakov za opis rezultatov"]
["DEJ 1.9",null,null,null,null,null,null,null,null,null,"Največ 750 znakov za opis dejavnosti in največ 200 znakov za opis rezultatov"]
["DEJ 1.10",null,null,null,null,null,null,null,null,null,"Največ 750 znakov za opis dejavnosti in največ 200 znakov za opis rezultatov"]
[]
[null,null,"Število dodatnih dejavnosti v delovnem sklopu \"Informiranje in obveščanje\": ",null,null,null,null,null,0,null,"Izberite število dejavnosti v delovnem sklopu (število dodatnih, poleg ene obvezne)"]
["DS 2","Naziv DS","Informiranje in obveščanje"]
[null,"Opis DS",null,null,null,null,null,null,null,null,"Največ 1000 znakov"]
[null,"Ime dejavnosti","Opis dejavnosti","Vsi rezultati projekta (outputs)",null,null,"Prijavitelj in/ali partner","Predvideni stroški","Država izvajanja dejavnosti*"]
[null,null,null,"Opis","Kazalnik in ciljna vrednost"]
["DEJ 2.1",null,null,null,null,null,null,null,null,null,"Največ 750 znakov za opis dejavnosti in največ 200 znakov za opis rezultatov"]
["DEJ 2.2",null,null,null,null,null,null,null,null,null,"Največ 750 znakov za opis dejavnosti in največ 200 znakov za opis rezultatov"]
["DEJ 2.3",null,null,null,null,null,null,null,null,null,"Največ 750 znakov za opis dejavnosti in največ 200 znakov za opis rezultatov"]
["DEJ 2.4",null,null,null,null,null,null,null,null,null,"Največ 750 znakov za opis dejavnosti in največ 200 znakov za opis rezultatov"]
["DEJ 2.5",null,null,null,null,null,null,null,null,null,"Največ 750 znakov za opis dejavnosti in največ 200 znakov za opis rezultatov"]
["DEJ 2.6",null,null,null,null,null,null,null,null,null,"Največ 750 znakov za opis dejavnosti in največ 200 znakov za opis rezultatov"]
["DEJ 2.7",null,null,null,null,null,null,null,null,null,"Največ 750 znakov za opis dejavnosti in največ 200 znakov za opis rezultatov"]
["DEJ 2.8",null,null,null,null,null,null,null,null,null,"Največ 750 znakov za opis dejavnosti in največ 200 znakov za opis rezultatov"]
["DEJ 2.9",null,null,null,null,null,null,null,null,null,"Največ 750 znakov za opis dejavnosti in največ 200 znakov za opis rezultatov"]
["DEJ 2.10",null,null,null,null,null,null,null,null,null,"Največ 750 znakov za opis dejavnosti in največ 200 znakov za opis rezultatov"]
[]
[null,null,"Število dodatnih dejavnosti v delovnem sklopu: ",null,null,null,null,null,0,null,"Izberite število dejavnosti v delovnem sklopu (število dodatnih, poleg ene obvezne)"]
["DS 3","Naziv DS","Dostopnost kulturne dediščine"]
[null,"Opis DS",null,null,null,null,null,null,null,null,"Največ 1000 znakov"]
[null,"Ime dejavnosti","Opis dejavnosti","Vsi rezultati projekta (outputs)",null,null,"Prijavitelj in/ali partner","Predvideni stroški","Država izvajanja dejavnosti*"]
[null,null,null,"Opis","Kazalnik in ciljna vrednost"]
["DEJ 3.1",null,null,null,null,null,null,null,null,null,"Največ 750 znakov za opis dejavnosti in največ 200 znakov za opis rezultatov"]
["DEJ 3.2",null,null,null,null,null,null,null,null,null,"Največ 750 znakov za opis dejavnosti in največ 200 znakov za opis rezultatov"]
["DEJ 3.3",null,null,null,null,null,null,null,null,null,"Največ 750 znakov za opis dejavnosti in največ 200 znakov za opis rezultatov"]
["DEJ 3.4",null,null,null,null,null,null,null,null,null,"Največ 750 znakov za opis dejavnosti in največ 200 znakov za opis rezultatov"]
["DEJ 3.5",null,null,null,null,null,null,null,null,null,"Največ 750 znakov za opis dejavnosti in največ 200 znakov za opis rezultatov"]
["DEJ 3.6",null,null,null,null,null,null,null,null,null,"Največ 750 znakov za opis dejavnosti in največ 200 znakov za opis rezultatov"]
["DEJ 3.7",null,null,null,null,null,null,null,null,null,"Največ 750 znakov za opis dejavnosti in največ 200 znakov za opis rezultatov"]
["DEJ 3.8",null,null,null,null,null,null,null,null,null,"Največ 750 znakov za opis dejavnosti in največ 200 znakov za opis rezultatov"]
["DEJ 3.9",null,null,null,null,null,null,null,null,null,"Največ 750 znakov za opis dejavnosti in največ 200 znakov za opis rezultatov"]
["DEJ 3.10",null,null,null,null,null,null,null,null,null,"Največ 750 znakov za opis dejavnosti in največ 200 znakov za opis rezultatov"]
[]
[null,null,"Število dodatnih dejavnosti v delovnem sklopu: ",null,null,null,null,null,0,null,"Izberite število dejavnosti v delovnem sklopu (število dodatnih, poleg ene obvezne)"]
["DS 4","Naziv DS"]
[null,"Opis DS",null,null,null,null,null,null,null,null,"Največ 1000 znakov"]
[null,"Ime dejavnosti","Opis dejavnosti","Vsi rezultati projekta (outputs)",null,null,"Prijavitelj in/ali partner","Predvideni stroški","Država izvajanja dejavnosti*"]
[null,null,null,"Opis","Kazalnik in ciljna vrednost"]
["DEJ 4.1",null,null,null,null,null,null,null,null,null,"Največ 750 znakov za opis dejavnosti in največ 200 znakov za opis rezultatov"]
["DEJ 4.2",null,null,null,null,null,null,null,null,null,"Največ 750 znakov za opis dejavnosti in največ 200 znakov za opis rezultatov"]
["DEJ 4.3",null,null,null,null,null,null,null,null,null,"Največ 750 znakov za opis dejavnosti in največ 200 znakov za opis rezultatov"]
["DEJ 4.4",null,null,null,null,null,null,null,null,null,"Največ 750 znakov za opis dejavnosti in največ 200 znakov za opis rezultatov"]
["DEJ 4.5",null,null,null,null,null,null,null,null,null,"Največ 750 znakov za opis dejavnosti in največ 200 znakov za opis rezultatov"]
["DEJ 4.6",null,null,null,null,null,null,null,null,null,"Največ 750 znakov za opis dejavnosti in največ 200 znakov za opis rezultatov"]
["DEJ 4.7",null,null,null,null,null,null,null,null,null,"Največ 750 znakov za opis dejavnosti in največ 200 znakov za opis rezultatov"]
["DEJ 4.8",null,null,null,null,null,null,null,null,null,"Največ 750 znakov za opis dejavnosti in največ 200 znakov za opis rezultatov"]
["DEJ 4.9",null,null,null,null,null,null,null,null,null,"Največ 750 znakov za opis dejavnosti in največ 200 znakov za opis rezultatov"]
["DEJ 4.10",null,null,null,null,null,null,null,null,null,"Največ 750 znakov za opis dejavnosti in največ 200 znakov za opis rezultatov"]
[]
[null,null,"Število dodatnih dejavnosti v delovnem sklopu: ",null,null,null,null,null,0,null,"Izberite število dejavnosti v delovnem sklopu (število dodatnih, poleg ene obvezne)"]
["DS 5","Naziv DS"]
[null,"Opis DS",null,null,null,null,null,null,null,null,"Največ 1000 znakov"]
[null,"Ime dejavnosti","Opis dejavnosti","Vsi rezultati projekta (outputs)",null,null,"Prijavitelj in/ali partner","Predvideni stroški","Država izvajanja dejavnosti*"]
[null,null,null,"Opis","Kazalnik in ciljna vrednost"]
["DEJ 5.1",null,null,null,null,null,null,null,null,null,"Največ 750 znakov za opis dejavnosti in največ 200 znakov za opis rezultatov"]
["DEJ 5.2",null,null,null,null,null,null,null,null,null,"Največ 750 znakov za opis dejavnosti in največ 200 znakov za opis rezultatov"]
["DEJ 5.3",null,null,null,null,null,null,null,null,null,"Največ 750 znakov za opis dejavnosti in največ 200 znakov za opis rezultatov"]
["DEJ 5.4",null,null,null,null,null,null,null,null,null,"Največ 750 znakov za opis dejavnosti in največ 200 znakov za opis rezultatov"]
["DEJ 5.5",null,null,null,null,null,null,null,null,null,"Največ 750 znakov za opis dejavnosti in največ 200 znakov za opis rezultatov"]
["DEJ 5.6",null,null,null,null,null,null,null,null,null,"Največ 750 znakov za opis dejavnosti in največ 200 znakov za opis rezultatov"]
["DEJ 5.7",null,null,null,null,null,null,null,null,null,"Največ 750 znakov za opis dejavnosti in največ 200 znakov za opis rezultatov"]
["DEJ 5.8",null,null,null,null,null,null,null,null,null,"Največ 750 znakov za opis dejavnosti in največ 200 znakov za opis rezultatov"]
["DEJ 5.9",null,null,null,null,null,null,null,null,null,"Največ 750 znakov za opis dejavnosti in največ 200 znakov za opis rezultatov"]
["DEJ 5.10",null,null,null,null,null,null,null,null,null,"Največ 750 znakov za opis dejavnosti in največ 200 znakov za opis rezultatov"]
[]
[null,null,"Število dodatnih dejavnosti v delovnem sklopu: ",null,null,null,null,null,0,null,"Izberite število dejavnosti v delovnem sklopu (število dodatnih, poleg ene obvezne)"]
["DS 6","Naziv DS"]
[null,"Opis DS",null,null,null,null,null,null,null,null,"Največ 1000 znakov"]
[null,"Ime dejavnosti","Opis dejavnosti","Vsi rezultati projekta (outputs)",null,null,"Prijavitelj in/ali partner","Predvideni stroški","Država izvajanja dejavnosti*"]
[null,null,null,"Opis","Kazalnik in ciljna vrednost"]
["DEJ 6.1",null,null,null,null,null,null,null,null,null,"Največ 750 znakov za opis dejavnosti in največ 200 znakov za opis rezultatov"]
["DEJ 6.2",null,null,null,null,null,null,null,null,null,"Največ 750 znakov za opis dejavnosti in največ 200 znakov za opis rezultatov"]
["DEJ 6.3",null,null,null,null,null,null,null,null,null,"Največ 750 znakov za opis dejavnosti in največ 200 znakov za opis rezultatov"]
["DEJ 6.4",null,null,null,null,null,null,null,null,null,"Največ 750 znakov za opis dejavnosti in največ 200 znakov za opis rezultatov"]
["DEJ 6.5",null,null,null,null,null,null,null,null,null,"Največ 750 znakov za opis dejavnosti in največ 200 znakov za opis rezultatov"]
["DEJ 6.6",null,null,null,null,null,null,null,null,null,"Največ 750 znakov za opis dejavnosti in največ 200 znakov za opis rezultatov"]
["DEJ 6.7",null,null,null,null,null,null,null,null,null,"Največ 750 znakov za opis dejavnosti in največ 200 znakov za opis rezultatov"]
["DEJ 6.8",null,null,null,null,null,null,null,null,null,"Največ 750 znakov za opis dejavnosti in največ 200 znakov za opis rezultatov"]
["DEJ 6.9",null,null,null,null,null,null,null,null,null,"Največ 750 znakov za opis dejavnosti in največ 200 znakov za opis rezultatov"]
["DEJ 6.10",null,null,null,null,null,null,null,null,null,"Največ 750 znakov za opis dejavnosti in največ 200 znakov za opis rezultatov"]
[]
[]
[]
[]
[]
["*Upravičeno območje izvajanja dejavnosti je območje Republike Slovenije in držav donatoric. V kolikor ocenjujete, da je dejavnost nujno potrebna za izvajanje projekta in se je ne more izvesti znotraj upravičenega območja, podajte ustrezno utemeljitev."]
[null,null,null,null,null,null,null,null,null,null,"Največ 750 znakov"]
[]
[]
["Trajnost projektnih rezultatov"]
[]
["Finančna in institucionalna trajnost"]
[]
["Pojasnite, kako bo zagotovljena trajnost projektnih rezultatov v institucionalnem in finančnem smislu. Načrtujete nadaljevanje izvajanja katere od projektnih dejavnosti  po zaključku so-financiranja?"]
[null,null,null,null,null,null,null,null,null,null,"Največ 2500 znakov"]
[]
["Dolgoročen vpliv na ciljno skupino"]
["Opišite dolgoročne vplive projekta na ciljno skupino. Kako bo različnim ciljnim skupinam in drugim potencialnim deležnikom omogočena uporaba rezultatov projekta? "]
[null,null,null,null,null,null,null,null,null,null,"Največ 2500 znakov"]

{"sheet":"Oprema","index":12,"n_rows":273,"n_cols":11,"rows_kept":273,"cut":false,"hidden":false,"merged":[[254,1,254,2],[255,1,255,2],[256,1,256,2],[257,1,257,2],[259,0,272,0],[259,1,259,2],[260,1,260,2],[261,1,261,2],[262,1,262,2],[263,1,263,2],[244,0,257,0],[270,1,270,2],[271,1,271,2],[272,1,272,2],[264,1,264,2],[265,1,265,2],[266,1,266,2],[267,1,267,2],[268,1,268,2],[269,1,269,2],[248,1,248,2],[249,1,249,2],[250,1,250,2],[251,1,251,2],[252,1,252,2],[253,1,253,2],[238,1,238,2],[239,1,239,2],[240,1,240,2],[241,1,241,2],[242,1,242,2],[244,1,244,2],[245,1,245,2],[246,1,246,2],[247,1,247,2],[229,0,242,0],[229,1,229,2],[230,1,230,2],[231,1,231,2],[232,1,232,2],[233,1,233,2],[234,1,234,2],[235,1,235,2],[236,1,236,2],[237,1,237,2],[222,1,222,2],[223,1,223,2],[224,1,224,2],[225,1,225,2],[226,1,226,2],[227,1,227,2],[212,1,212,2],[214,0,227,0],[214,1,214,2],[215,1,215,2],[216,1,216,2],[217,1,217,2],[218,1,218,2],[219,1,219,2],[220,1,220,2],[221,1,221,2],[208,1,208,2],[209,1,209,2],[210,1,210,2],[211,1,211,2],[196,1,196,2],[197,1,197,2],[199,0,212,0],[199,1,199,2],[200,1,200,2],[201,1,201,2],[202,1,202,2],[203,1,203,2],[204,1,204,2],[205,1,205,2],[184,0,197,0],[190,1,190,2],[191,1,191,2],[192,1,192,2],[193,1,193,2],[194,1,194,2],[195,1,195,2],[182,1,182,2],[184,1,184,2],[185,1,185,2],[186,1,186,2],[187,1,187,2],[188,1,188,2],[189,1,189,2],[206,1,206,2],[207,1,207,2],[169,0,182,0],[169,1,169,2],[170,1,170,2],[171,1,171,2],[172,1,172,2],[173,1,173,2],[158,1,158,2],[159,1,159,2],[160,1,160,2],[161,1,161,2],[162,1,162,2],[163,1,163,2],[174,1,174,2],[175,1,175,2],[176,1,176,2],[177,1,177,2],[178,1,178,2],[179,1,179,2],[164,1,164,2],[165,1,165,2],[166,1,166,2],[167,1,167,2],[180,1,180,2],[181,1,181,2],[148,1,148,2],[149,1,149,2],[150,1,150,2],[151,1,151,2],[152,1,152,2],[154,0,167,0],[154,1,154,2],[155,1,155,2],[156,1,156,2],[157,1,157,2],[139,0,152,0],[139,1,139,2],[140,1,140,2],[141,1,141,2],[142,1,142,2],[143,1,143,2],[144,1,144,2],[145,1,145,2],[146,1,146,2],[147,1,147,2],[132,1,132,2],[130,1,130,2],[128,1,128,2],[126,1,126,2],[137,1,137,2],[135,1,135,2],[133,1,133,2],[131,1,131,2],[129,1,129,2],[127,1,127,2],[124,0,137,0],[111,1,111,2],[112,1,112,2],[113,1,113,2],[114,1,114,2],[115,1,115,2],[116,1,116,2],[103,1,103,2],[104,1,104,2],[105,1,105,2],[107,0,116,0],[107,1,107,2],[108,1,108,2],[109,1,109,2],[110,1,110,2],[96,0,105,0],[96,1,96,2],[97,1,97,2],[98,1,98,2],[99,1,99,2],[125,1,125,2],[124,1,124,2],[136,1,136,2],[134,1,134,2],[100,1,100,2],[101,1,101,2],[102,1,102,2],[89,1,89,2],[90,1,90,2],[91,1,91,2],[92,1,92,2],[93,1,93,2],[94,1,94,2],[81,1,81,2],[82,1,82,2],[83,1,83,2],[85,0,94,0],[85,1,85,2],[86,1,86,2],[87,1,87,2],[88,1,88,2],[74,0,83,0],[74,1,74,2],[75,1,75,2],[76,1,76,2],[77,1,77,2],[78,1,78,2],[79,1,79,2],[80,1,80,2],[68,1,68,2],[69,1,69,2],[70,1,70,2],[71,1,71,2],[72,1,72,2],[59,1,59,2],[60,1,60,2],[61,1,61,2],[63,1,63,2],[64,1,64,2],[65,1,65,2],[66,1,66,2],[30,0,39,0],[30,1,30,2],[31,1,31,2],[32,1,32,2],[33,1,33,2],[34,1,34,2],[35,1,35,2],[36,1,36,2],[67,1,67,2],[121,0,121,2],[41,0,50,0],[45,1,45,2],[46,1,46,2],[47,1,47,2],[48,1,48,2],[49,1,49,2],[50,1,50,2],[37,1,37,2],[38,1,38,2],[39,1,39,2],[41,1,41,2],[42,1,42,2],[43,1,43,2],[44,1,44,2],[63,0,72,0],[52,0,61,0],[52,1,52,2],[53,1,53,2],[54,1,54,2],[55,1,55,2],[56,1,56,2],[57,1,57,2],[58,1,58,2],[8,0,17,0],[13,1,13,2],[14,1,14,2],[15,1,15,2],[16,1,16,2],[17,1,17,2],[8,1,8,2],[9,1,9,2],[10,1,10,2],[11,1,11,2],[12,1,12,2],[27,1,27,2],[28,1,28,2],[19,0,28,0],[19,1,19,2],[20,1,20,2],[21,1,21,2],[22,1,22,2],[23,1,23,2],[24,1,24,2],[25,1,25,2],[26,1,26,2]]}
["6. Oprema",null,null,null,null,null,null,null,null,null,0]
[null,null,null,null,null,null,null,null,null,null,1]
[null,null,null,null,null,null,null,null,null,null,2]
["Strošek amortizacije",null,null,null,null,null,null,null,null,null,3]
[null,null,null,null,null,null,null,null,null,null,4]
["V kolikor uveljavljate stroške amortizacije nove in/ali rabljene opreme, izpolnite tabelo za posamezno vrsto opreme. ",null,null,null,null,null,null,null,null,null,5]
[null,null,null,null,null,null,null,null,null,null,6]
[null,"Število dodatnih tabel za opremo",1,null,null,null,null,null,null,null,7]
[1,"a) Vrsta in opis nove ali rabljene opreme",null,null,"Obvezno polje, največ 500 znakov",null,null,null,null,null,8]
[null,null,null,null,null,null,null,null,null,null,9]
[null,"b) Ocena stroškov amortizacije"]
[]
[null,"c) Lastnik/i opreme"]
[null,null,null,null,"Obvezno polje, največ 500 znakov"]
[null,"d) Utemeljitev uveljavljanja amortizacije"]
[null,null,null,null,"Obvezno polje, največ 1000 znakov. Navedite, kako amortizacija ustreza trajanju projekta in dejanski stopnji uporabe za namene projekta."]
[null,"e) Kratek opis tehničnih/ tehnoloških značilnosti in načrtovanih količin nove ali rabljene opreme"]
[null,null,null,null,"Obvezno polje, največ 1000 znakov"]
[]
[2,"a) Vrsta in opis nove ali rabljene opreme",null,null,"Obvezno polje, največ 500 znakov"]
[]
[null,"b) Ocena stroškov amortizacije"]
[]
[null,"c) Lastnik/i opreme"]
[null,null,null,null,"Obvezno polje, največ 500 znakov"]
[null,"d) Utemeljitev uveljavljanja amortizacije"]
[null,null,null,null,"Obvezno polje, največ 1000 znakov. Navedite, kako amortizacija ustreza trajanju projekta in dejanski stopnji uporabe za namene projekta."]
[null,"e) Kratek opis tehničnih/ tehnoloških značilnosti in načrtovanih količin nove ali rabljene opreme",null,null,"Obvezno polje, največ 1000 znakov"]
[]
[]
[3,"a) Vrsta in opis nove ali rabljene opreme",null,null,"Obvezno polje, največ 500 znakov"]
[]
[null,"b) Ocena stroškov amortizacije"]
[]
[null,"c) Lastnik/i opreme"]
[null,null,null,null,"Obvezno polje, največ 500 znakov"]
[null,"d) Utemeljitev uveljavljanja amortizacije"]
[null,null,null,null,"Obvezno polje, največ 1000 znakov. Navedite, kako amortizacija ustreza trajanju projekta in dejanski stopnji uporabe za namene projekta."]
[null,"e) Kratek opis tehničnih/ tehnoloških značilnosti in načrtovanih količin nove ali rabljene opreme",null,null,"Obvezno polje, največ 1000 znakov"]
[]
[]
[4,"a) Vrsta in opis nove ali rabljene opreme",null,null,"Obvezno polje, največ 500 znakov"]
[]
[null,"b) Ocena stroškov amortizacije"]
[]
[null,"c) Lastnik/i opreme"]
[null,null,null,null,"Obvezno polje, največ 500 znakov"]
[null,"d) Utemeljitev uveljavljanja amortizacije"]
[null,null,null,null,"Obvezno polje, največ 1000 znakov. Navedite, kako amortizacija ustreza trajanju projekta in dejanski stopnji uporabe za namene projekta."]
[null,"e) Kratek opis tehničnih/ tehnoloških značilnosti in načrtovanih količin nove ali rabljene opreme",null,null,"Obvezno polje, največ 1000 znakov"]
[]
[]
[5,"a) Vrsta in opis nove ali rabljene opreme",null,null,"Obvezno polje, največ 500 znakov"]
[]
[null,"b) Ocena stroškov amortizacije"]
[]
[null,"c) Lastnik/i opreme"]
[null,null,null,null,"Obvezno polje, največ 500 znakov"]
[null,"d) Utemeljitev uveljavljanja amortizacije"]
[null,null,null,null,"Obvezno polje, največ 1000 znakov. Navedite, kako amortizacija ustreza trajanju projekta in dejanski stopnji uporabe za namene projekta."]
[null,"e) Kratek opis tehničnih/ tehnoloških značilnosti in načrtovanih količin nove ali rabljene opreme",null,null,"Obvezno polje, največ 1000 znakov"]
[]
[]
[6,"a) Vrsta in opis nove ali rabljene opreme",null,null,"Obvezno polje, največ 500 znakov"]
[]
[null,"b) Ocena stroškov amortizacije"]
[]
[null,"c) Lastnik/i opreme"]
[null,null,null,null,"Obvezno polje, največ 500 znakov"]
[null,"d) Utemeljitev uveljavljanja amortizacije"]
[null,null,null,null,"Obvezno polje, največ 1000 znakov. Navedite, kako amortizacija ustreza trajanju projekta in dejanski stopnji uporabe za namene projekta."]
[null,"e) Kratek opis tehničnih/ tehnoloških značilnosti in načrtovanih količin nove ali rabljene opreme",null,null,"Obvezno polje, največ 1000 znakov"]
[]
[]
[7,"a) Vrsta in opis nove ali rabljene opreme",null,null,"Obvezno polje, največ 500 znakov"]
[]
[null,"b) Ocena stroškov amortizacije"]
[]
[null,"c) Lastnik/i opreme"]
[null,null,null,null,"Obvezno polje, največ 500 znakov"]
[null,"d) Utemeljitev uveljavljanja amortizacije"]
[null,null,null,null,"Obvezno polje, največ 1000 znakov. Navedite, kako amortizacija ustreza trajanju projekta in dejanski stopnji uporabe za namene projekta."]
[null,"e) Kratek opis tehničnih/ tehnoloških značilnosti in načrtovanih količin nove ali rabljene opreme",null,null,"Obvezno polje, največ 1000 znakov"]
[]
[]
[8,"a) Vrsta in opis nove ali rabljene opreme",null,null,"Obvezno polje, največ 500 znakov"]
[]
[null,"b) Ocena stroškov amortizacije"]
[]
[null,"c) Lastnik/i opreme"]
[null,null,null,null,"Obvezno polje, največ 500 znakov"]
[null,"d) Utemeljitev uveljavljanja amortizacije"]
[null,null,null,null,"Obvezno polje, največ 1000 znakov. Navedite, kako amortizacija ustreza trajanju projekta in dejanski stopnji uporabe za namene projekta."]
[null,"e) Kratek opis tehničnih/ tehnoloških značilnosti in načrtovanih količin nove ali rabljene opreme",null,null,"Obvezno polje, največ 1000 znakov"]
[]
[]
[9,"a) Vrsta in opis nove ali rabljene opreme",null,null,"Obvezno polje, največ 500 znakov"]
[]
[null,"b) Ocena stroškov amortizacije"]
[]
[null,"c) Lastnik/i opreme"]
[null,null,null,null,"Obvezno polje, največ 500 znakov"]
[null,"d) Utemeljitev uveljavljanja amortizacije"]
[null,null,null,null,"Obvezno polje, največ 1000 znakov. Navedite, kako amortizacija ustreza trajanju projekta in dejanski stopnji uporabe za namene projekta."]
[null,"e) Kratek opis tehničnih/ tehnoloških značilnosti in načrtovanih količin nove ali rabljene opreme",null,null,"Obvezno polje, največ 1000 znakov"]
[]
[]
[10,"a) Vrsta in opis nove ali rabljene opreme",null,null,"Obvezno polje, največ 500 znakov"]
[null,"Etiam lacinia odio vel pulvinar eleifend. Nunc vulputate auctor pulvinar. Sed vestibulum condimentum condimentum. Cras vulputate non risus in euismod. Duis auctor iaculis ultricies. Ut quis volutpat ligula, quis vestibulum et tortor. Morbi a bibendum velit. Donec in dapibus diam, in convallis velit. Nullam mauris dui, facilisis nec tellus ut, rhoncus dignissim massa. Mauris quis mattis arcu. Nulla feugiat ante lorem, sed hendrerit nisl lobortis sed. Aliquam vel nisi feugiat, variu enim a, facil."]
[null,"b) Ocena stroškov amortizacije"]
[]
[null,"c) Lastnik/i opreme"]
[null,"Etiam lacinia odio vel pulvinar eleifend. Nunc vulputate auctor pulvinar. Sed vestibulum condimentum condimentum. Cras vulputate non risus in euismod. Duis auctor iaculis ultricies. Ut quis volutpat ligula, quis vestibulum et tortor. Morbi a bibendum velit. Donec in dapibus diam, in convallis velit. Nullam mauris dui, facilisis nec tellus ut, rhoncus dignissim massa. Mauris quis mattis arcu. Nulla feugiat ante lorem, sed hendrerit nisl lobortis sed. Aliquam vel nisi feugiat, variu enim a, facil.",null,null,"Obvezno polje, največ 500 znakov"]
[null,"d) Utemeljitev uveljavljanja amortizacije"]
[null,"Etiam lacinia odio vel pulvinar eleifend. Nunc vulputate auctor pulvinar. Sed vestibulum condimentum condimentum. Cras vulputate non risus in euismod. Duis auctor iaculis ultricies. Ut quis volutpat ligula, quis vestibulum et tortor. Morbi a bibendum velit. Donec in dapibus diam, in convallis velit. Nullam mauris dui, facilisis nec tellus ut, rhoncus dignissim massa. Mauris quis mattis arcu. Nulla feugiat ante lorem, sed hendrerit nisl lobortis sed. Aliquam vel nisi feugiat, variu enim a, facil. Etiam lacinia odio vel pulvinar eleifend. Nunc vulputate auctor pulvinar. Sed vestibulum condimentum condimentum. Cras vulputate non risus in euismod. Duis auctor iaculis ultricies. Ut quis volutpat ligula, quis vestibulum et tortor. Morbi a bibendum velit. Donec in dapibus diam, in convallis velit. Nullam mauris dui, facilisis nec telus ut, rhoncus dignissim massa. Mauris quis mattis arcu. Nulla feugiat ante lorem, sed hendrerit nisl lobortis sed. Aliquam vel nisi feugiat, variu enim a, facil.",null,null,"Obvezno polje, največ 1000 znakov. Navedite, kako amortizacija ustreza trajanju projekta in dejanski stopnji uporabe za namene projekta."]
[null,"e) Kratek opis tehničnih/ tehnoloških značilnosti in načrtovanih količin nove ali rabljene opreme",null,null,"Obvezno polje, največ 1000 znakov"]
[null,"Etiam lacinia odio vel pulvinar eleifend. Nunc vulputate auctor pulvinar. Sed vestibulum condimentum condimentum. Cras vulputate non risus in euismod. Duis auctor iaculis ultricies. Ut quis volutpat ligula, quis vestibulum et tortor. Morbi a bibendum velit. Donec in dapibus diam, in convallis velit. Nullam mauris dui, facilisis nec tellus ut, rhoncus dignissim massa. Mauris quis mattis arcu. Nulla feugiat ante lorem, sed hendrerit nisl lobortis sed. Aliquam vel nisi feugiat, variu enim a, facil. Etiam lacinia odio vel pulvinar eleifend. Nunc vulputate auctor pulvinar. Sed vestibulum condimentum condimentum. Cras vulputate non risus in euismod. Duis auctor iaculis ultricies. Ut quis volutpat ligula, quis vestibulum et tortor. Morbi a bibendum velit. Donec in dapibus diam, in convallis velit. Nullam mauris dui, facilisis nec telus ut, rhoncus dignissim massa. Mauris quis mattis arcu. Nulla feugiat ante lorem, sed hendrerit nisl lobortis sed. Aliquam vel nisi feugiat, variu enim a, facil."]
[]
[]
["Nakup nove opreme, za katero se v okviru projekta uveljavlja povračilo celotne kupnine"]
[]
["V kolikor načrtujete nakup nove opreme, za katero boste v okviru projekta uveljavljali povračilo celotne kupnine, izpolnite tabelo za vsako vrsto opreme."]
[]
[null,"Število dodatnih tabel za opremo",1]
[1,"a) Vrsta, opis in načrtovane količine nove opreme"]
[null,null,null,null,"Obvezno polje, največ 500 znakov"]
[null,"b) Ocena stroškov nakupa nove opreme"]
[]
[null,"c) Ocena stroškov vzdrževanja in zavarovanja nove opreme v času trajanja projekta"]
[]
[null,"d) Utemeljitev nakupa nove opreme"]
[null,null,null,null,"Obvezno polje, največ 1000 znakov. Navedite, zakaj je oprema sestavni in nujni del za izvedbo projekta in zakaj je bistvena za doseganje ciljev projekta."]
[null,"e) Način zagotavljanja izpolnjevanja posebnih pogojev  v zvezi z nakupom nove opreme po potrditvi zaključnega poročila projekta v obdobju petih let"]
[null,null,null,null,"Obvezno polje, največ 1000 znakov"]
[null,"f) Lastnik/i nove opreme po nakupu"]
[null,null,null,null,"Obvezno polje, največ 500 znakov"]
[null,"g) Kratek opis tehničnih/ tehnoloških značilnosti"]
[null,null,null,null,"Obvezno polje, največ 1000 znakov"]
[]
[2,"a) Vrsta, opis in načrtovane količine nove opreme"]
[null,null,null,null,"Obvezno polje, največ 500 znakov"]
[null,"b) Ocena stroškov nakupa nove opreme"]
[]
[null,"c) Ocena stroškov vzdrževanja in zavarovanja nove opreme v času trajanja projekta"]
[]
[null,"d) Utemeljitev nakupa nove opreme"]
[null,null,null,null,"Obvezno polje, največ 1000 znakov. Navedite, zakaj je oprema sestavni in nujni del za izvedbo projekta in zakaj je bistvena za doseganje ciljev projekta."]
[null,"e) Način zagotavljanja izpolnjevanja posebnih pogojev  v zvezi z nakupom nove opreme po potrditvi zaključnega poročila projekta v obdobju petih let"]
[null,null,null,null,"Obvezno polje, največ 1000 znakov"]
[null,"f) Lastnik/i nove opreme po nakupu"]
[null,null,null,null,"Obvezno polje, največ 500 znakov"]
[null,"g) Kratek opis tehničnih/ tehnoloških značilnosti"]
[null,null,null,null,"Obvezno polje, največ 1000 znakov"]
[]
[3,"a) Vrsta, opis in načrtovane količine nove opreme"]
[null,null,null,null,"Obvezno polje, največ 500 znakov"]
[null,"b) Ocena stroškov nakupa nove opreme"]
[]
[null,"c) Ocena stroškov vzdrževanja in zavarovanja nove opreme v času trajanja projekta"]
[]
[null,"d) Utemeljitev nakupa nove opreme"]
[null,null,null,null,"Obvezno polje, največ 1000 znakov. Navedite, zakaj je oprema sestavni in nujni del za izvedbo projekta in zakaj je bistvena za doseganje ciljev projekta."]
[null,"e) Način zagotavljanja izpolnjevanja posebnih pogojev  v zvezi z nakupom nove opreme po potrditvi zaključnega poročila projekta v obdobju petih let"]
[null,null,null,null,"Obvezno polje, največ 1000 znakov"]
[null,"f) Lastnik/i nove opreme po nakupu"]
[null,null,null,null,"Obvezno polje, največ 500 znakov"]
[null,"g) Kratek opis tehničnih/ tehnoloških značilnosti"]
[null,null,null,null,"Obvezno polje, največ 1000 znakov"]
[]
[4,"a) Vrsta, opis in načrtovane količine nove opreme"]
[null,null,null,null,"Obvezno polje, največ 500 znakov"]
[null,"b) Ocena stroškov nakupa nove opreme"]
[]
[null,"c) Ocena stroškov vzdrževanja in zavarovanja nove opreme v času trajanja projekta"]
[]
[null,"d) Utemeljitev nakupa nove opreme"]
[null,null,null,null,"Obvezno polje, največ 1000 znakov. Navedite, zakaj je oprema sestavni in nujni del za izvedbo projekta in zakaj je bistvena za doseganje ciljev projekta."]
[null,"e) Način zagotavljanja izpolnjevanja posebnih pogojev  v zvezi z nakupom nove opreme po potrditvi zaključnega poročila projekta v obdobju petih let"]
[null,null,null,null,"Obvezno polje, največ 1000 znakov"]
[null,"f) Lastnik/i nove opreme po nakupu"]
[null,null,null,null,"Obvezno polje, največ 500 znakov"]
[null,"g) Kratek opis tehničnih/ tehnoloških značilnosti"]
[null,null,null,null,"Obvezno polje, največ 1000 znakov"]
[]
[5,"a) Vrsta, opis in načrtovane količine nove opreme"]
[null,null,null,null,"Obvezno polje, največ 500 znakov"]
[null,"b) Ocena stroškov nakupa nove opreme"]
[]
[null,"c) Ocena stroškov vzdrževanja in zavarovanja nove opreme v času trajanja projekta"]
[]
[null,"d) Utemeljitev nakupa nove opreme"]
[null,null,null,null,"Obvezno polje, največ 1000 znakov. Navedite, zakaj je oprema sestavni in nujni del za izvedbo projekta in zakaj je bistvena za doseganje ciljev projekta."]
[null,"e) Način zagotavljanja izpolnjevanja posebnih pogojev  v zvezi z nakupom nove opreme po potrditvi zaključnega poročila projekta v obdobju petih let"]
[null,null,null,null,"Obvezno polje, največ 1000 znakov"]
[null,"f) Lastnik/i nove opreme po nakupu"]
[null,null,null,null,"Obvezno polje, največ 500 znakov"]
[null,"g) Kratek opis tehničnih/ tehnoloških značilnosti"]
[null,null,null,null,"Obvezno polje, največ 1000 znakov"]
[]
[6,"a) Vrsta, opis in načrtovane količine nove opreme"]
[null,null,null,null,"Obvezno polje, največ 500 znakov"]
[null,"b) Ocena stroškov nakupa nove opreme"]
[]
[null,"c) Ocena stroškov vzdrževanja in zavarovanja nove opreme v času trajanja projekta"]
[]
[null,"d) Utemeljitev nakupa nove opreme"]
[null,null,null,null,"Obvezno polje, največ 1000 znakov. Navedite, zakaj je oprema sestavni in nujni del za izvedbo projekta in zakaj je bistvena za doseganje ciljev projekta."]
[null,"e) Način zagotavljanja izpolnjevanja posebnih pogojev  v zvezi z nakupom nove opreme po potrditvi zaključnega poročila projekta v obdobju petih let"]
[null,null,null,null,"Obvezno polje, največ 1000 znakov"]
[null,"f) Lastnik/i nove opreme po nakupu"]
[null,null,null,null,"Obvezno polje, največ 500 znakov"]
[null,"g) Kratek opis tehničnih/ tehnoloških značilnosti"]
[null,null,null,null,"Obvezno polje, največ 1000 znakov"]
[]
[7,"a) Vrsta, opis in načrtovane količine nove opreme"]
[null,null,null,null,"Obvezno polje, največ 500 znakov"]
[null,"b) Ocena stroškov nakupa nove opreme"]
[]
[null,"c) Ocena stroškov vzdrževanja in zavarovanja nove opreme v času trajanja projekta"]
[]
[null,"d) Utemeljitev nakupa nove opreme"]
[null,null,null,null,"Obvezno polje, največ 1000 znakov. Navedite, zakaj je oprema sestavni in nujni del za izvedbo projekta in zakaj je bistvena za doseganje ciljev projekta."]
[null,"e) Način zagotavljanja izpolnjevanja posebnih pogojev  v zvezi z nakupom nove opreme po potrditvi zaključnega poročila projekta v obdobju petih let"]
[null,null,null,null,"Obvezno polje, največ 1000 znakov"]
[null,"f) Lastnik/i nove opreme po nakupu"]
[null,null,null,null,"Obvezno polje, največ 500 znakov"]
[null,"g) Kratek opis tehničnih/ tehnoloških značilnosti"]
[null,null,null,null,"Obvezno polje, največ 1000 znakov"]
[]
[8,"a) Vrsta, opis in načrtovane količine nove opreme"]
[null,null,null,null,"Obvezno polje, največ 500 znakov"]
[null,"b) Ocena stroškov nakupa nove opreme"]
[]
[null,"c) Ocena stroškov vzdrževanja in zavarovanja nove opreme v času trajanja projekta"]
[]
[null,"d) Utemeljitev nakupa nove opreme"]
[null,null,null,null,"Obvezno polje, največ 1000 znakov. Navedite, zakaj je oprema sestavni in nujni del za izvedbo projekta in zakaj je bistvena za doseganje ciljev projekta."]
[null,"e) Način zagotavljanja izpolnjevanja posebnih pogojev  v zvezi z nakupom nove opreme po potrditvi zaključnega poročila projekta v obdobju petih let"]
[null,null,null,null,"Obvezno polje, največ 1000 znakov"]
[null,"f) Lastnik/i nove opreme po nakupu"]
[null,null,null,null,"Obvezno polje, največ 500 znakov"]
[null,"g) Kratek opis tehničnih/ tehnoloških značilnosti"]
[null,null,null,null,"Obvezno polje, največ 1000 znakov"]
[]
[9,"a) Vrsta, opis in načrtovane količine nove opreme"]
[null,null,null,null,"Obvezno polje, največ 500 znakov"]
[null,"b) Ocena stroškov nakupa nove opreme"]
[]
[null,"c) Ocena stroškov vzdrževanja in zavarovanja nove opreme v času trajanja projekta"]
[]
[null,"d) Utemeljitev nakupa nove opreme"]
[null,null,null,null,"Obvezno polje, največ 1000 znakov. Navedite, zakaj je oprema sestavni in nujni del za izvedbo projekta in zakaj je bistvena za doseganje ciljev projekta."]
[null,"e) Način zagotavljanja izpolnjevanja posebnih pogojev  v zvezi z nakupom nove opreme po potrditvi zaključnega poročila projekta v obdobju petih let"]
[null,null,null,null,"Obvezno polje, največ 1000 znakov"]
[null,"f) Lastnik/i nove opreme po nakupu"]
[null,null,null,null,"Obvezno polje, največ 500 znakov"]
[null,"g) Kratek opis tehničnih/ tehnoloških značilnosti"]
[null,null,null,null,"Obvezno polje, največ 1000 znakov"]
[]
[10,"a) Vrsta, opis in načrtovane količine nove opreme"]
[null,"Etiam lacinia odio vel pulvinar eleifend. Nunc vulputate auctor pulvinar. Sed vestibulum condimentum condimentum. Cras vulputate non risus in euismod. Duis auctor iaculis ultricies. Ut quis volutpat ligula, quis vestibulum et tortor. Morbi a bibendum velit. Donec in dapibus diam, in convallis velit. Nullam mauris dui, facilisis nec tellus ut, rhoncus dignissim massa. Mauris quis mattis arcu. Nulla feugiat ante lorem, sed hendrerit nisl lobortis sed. Aliquam vel nisi feugiat, variu enim a, facil.",null,null,"Obvezno polje, največ 500 znakov"]
[null,"b) Ocena stroškov nakupa nove opreme"]
[]
[null,"c) Ocena stroškov vzdrževanja in zavarovanja nove opreme v času trajanja projekta"]
[]
[null,"d) Utemeljitev nakupa nove opreme"]
[null,"Etiam lacinia odio vel pulvinar eleifend. Nunc vulputate auctor pulvinar. Sed vestibulum condimentum condimentum. Cras vulputate non risus in euismod. Duis auctor iaculis ultricies. Ut quis volutpat ligula, quis vestibulum et tortor. Morbi a bibendum velit. Donec in dapibus diam, in convallis velit. Nullam mauris dui, facilisis nec tellus ut, rhoncus dignissim massa. Mauris quis mattis arcu. Nulla feugiat ante lorem, sed hendrerit nisl lobortis sed. Aliquam vel nisi feugiat, variu enim a, facil. Etiam lacinia odio vel pulvinar eleifend. Nunc vulputate auctor pulvinar. Sed vestibulum condimentum condimentum. Cras vulputate non risus in euismod. Duis auctor iaculis ultricies. Ut quis volutpat ligula, quis vestibulum et tortor. Morbi a bibendum velit. Donec in dapibus diam, in convallis velit. Nullam mauris dui, facilisis nec telus ut, rhoncus dignissim massa. Mauris quis mattis arcu. Nulla feugiat ante lorem, sed hendrerit nisl lobortis sed. Aliquam vel nisi feugiat, variu enim a, facil.",null,null,"Obvezno polje, največ 1000 znakov. Navedite, zakaj je oprema sestavni in nujni del za izvedbo projekta in zakaj je bistvena za doseganje ciljev projekta."]
[null,"e) Način zagotavljanja izpolnjevanja posebnih pogojev  v zvezi z nakupom nove opreme po potrditvi zaključnega poročila projekta v obdobju petih let"]
[null,"Etiam lacinia odio vel pulvinar eleifend. Nunc vulputate auctor pulvinar. Sed vestibulum condimentum condimentum. Cras vulputate non risus in euismod. Duis auctor iaculis ultricies. Ut quis volutpat ligula, quis vestibulum et tortor. Morbi a bibendum velit. Donec in dapibus diam, in convallis velit. Nullam mauris dui, facilisis nec tellus ut, rhoncus dignissim massa. Mauris quis mattis arcu. Nulla feugiat ante lorem, sed hendrerit nisl lobortis sed. Aliquam vel nisi feugiat, variu enim a, facil. Etiam lacinia odio vel pulvinar eleifend. Nunc vulputate auctor pulvinar. Sed vestibulum condimentum condimentum. Cras vulputate non risus in euismod. Duis auctor iaculis ultricies. Ut quis volutpat ligula, quis vestibulum et tortor. Morbi a bibendum velit. Donec in dapibus diam, in convallis velit. Nullam mauris dui, facilisis nec telus ut, rhoncus dignissim massa. Mauris quis mattis arcu. Nulla feugiat ante lorem, sed hendrerit nisl lobortis sed. Aliquam vel nisi feugiat, variu enim a, facil.",null,null,"Obvezno polje, največ 1000 znakov"]
[null,"f) Lastnik/i nove opreme po nakupu"]
[null,"Etiam lacinia odio vel pulvinar eleifend. Nunc vulputate auctor pulvinar. Sed vestibulum condimentum condimentum. Cras vulputate non risus in euismod. Duis auctor iaculis ultricies. Ut quis volutpat ligula, quis vestibulum et tortor. Morbi a bibendum velit. Donec in dapibus diam, in convallis velit. Nullam mauris dui, facilisis nec tellus ut, rhoncus dignissim massa. Mauris quis mattis arcu. Nulla feugiat ante lorem, sed hendrerit nisl lobortis sed. Aliquam vel nisi feugiat, variu enim a, facil.",null,null,"Obvezno polje, največ 500 znakov"]
[null,"g) Kratek opis tehničnih/ tehnoloških značilnosti"]
[null,"Etiam lacinia odio vel pulvinar eleifend. Nunc vulputate auctor pulvinar. Sed vestibulum condimentum condimentum. Cras vulputate non risus in euismod. Duis auctor iaculis ultricies. Ut quis volutpat ligula, quis vestibulum et tortor. Morbi a bibendum velit. Donec in dapibus diam, in convallis velit. Nullam mauris dui, facilisis nec tellus ut, rhoncus dignissim massa. Mauris quis mattis arcu. Nulla feugiat ante lorem, sed hendrerit nisl lobortis sed. Aliquam vel nisi feugiat, variu enim a, facil. Etiam lacinia odio vel pulvinar eleifend. Nunc vulputate auctor pulvinar. Sed vestibulum condimentum condimentum. Cras vulputate non risus in euismod. Duis auctor iaculis ultricies. Ut quis volutpat ligula, quis vestibulum et tortor. Morbi a bibendum velit. Donec in dapibus diam, in convallis velit. Nullam mauris dui, facilisis nec telus ut, rhoncus dignissim massa. Mauris quis mattis arcu. Nulla feugiat ante lorem, sed hendrerit nisl lobortis sed. Aliquam vel nisi feugiat, variu enim a, facil.",null,null,"Obvezno polje, največ 1000 znakov"]

{"sheet":"Gradnja","index":13,"n_rows":269,"n_cols":16,"rows_kept":269,"cut":false,"hidden":false,"merged":[[263,1,263,5],[266,0,266,5],[267,4,267,5],[268,4,268,5],[267,2,267,3],[268,2,268,3],[268,0,268,1],[267,0,267,1],[254,0,263,0],[254,1,254,5],[255,1,255,5],[256,1,256,5],[257,1,257,5],[258,1,258,5],[259,1,259,5],[260,1,260,5],[261,1,261,5],[262,1,262,5],[249,1,249,5],[250,1,250,5],[251,1,251,5],[252,1,252,5],[237,1,237,5],[238,1,238,5],[239,1,239,5],[240,1,240,5],[241,1,241,5],[221,0,230,0],[221,1,221,5],[222,1,222,5],[223,1,223,5],[224,1,224,5],[225,1,225,5],[226,1,226,5],[243,0,252,0],[243,1,243,5],[244,1,244,5],[245,1,245,5],[246,1,246,5],[227,1,227,5],[228,1,228,5],[229,1,229,5],[230,1,230,5],[232,0,241,0],[232,1,232,5],[233,1,233,5],[234,1,234,5],[235,1,235,5],[236,1,236,5],[247,1,247,5],[248,1,248,5],[210,0,219,0],[210,1,210,5],[211,1,211,5],[212,1,212,5],[213,1,213,5],[214,1,214,5],[215,1,215,5],[216,1,216,5],[217,1,217,5],[218,1,218,5],[219,1,219,5],[197,1,197,5],[199,0,208,0],[199,1,199,5],[200,1,200,5],[201,1,201,5],[202,1,202,5],[203,1,203,5],[204,1,204,5],[205,1,205,5],[206,1,206,5],[188,0,197,0],[188,1,188,5],[189,1,189,5],[190,1,190,5],[191,1,191,5],[192,1,192,5],[193,1,193,5],[194,1,194,5],[195,1,195,5],[196,1,196,5],[207,1,207,5],[208,1,208,5],[183,1,183,5],[184,1,184,5],[185,1,185,5],[186,1,186,5],[171,1,171,5],[172,1,172,5],[173,1,173,5],[174,1,174,5],[175,1,175,5],[177,0,186,0],[177,1,177,5],[178,1,178,5],[179,1,179,5],[180,1,180,5],[162,1,162,5],[163,1,163,5],[164,1,164,5],[166,0,175,0],[166,1,166,5],[167,1,167,5],[168,1,168,5],[169,1,169,5],[170,1,170,5],[155,0,164,0],[155,1,155,5],[156,1,156,5],[157,1,157,5],[158,1,158,5],[159,1,159,5],[160,1,160,5],[161,1,161,5],[181,1,181,5],[182,1,182,5],[143,1,143,5],[144,1,144,5],[145,1,145,5],[154,0,154,5],[133,1,133,5],[134,1,134,5],[135,1,135,5],[136,1,136,5],[139,0,139,5],[6,2,6,4],[123,1,123,5],[125,0,136,0],[125,1,125,5],[126,1,126,5],[127,1,127,5],[128,1,128,5],[129,1,129,5],[130,1,130,5],[131,1,131,5],[132,1,132,5],[117,1,117,5],[118,1,118,5],[119,1,119,5],[120,1,120,5],[121,1,121,5],[122,1,122,5],[107,1,107,5],[108,1,108,5],[109,1,109,5],[110,1,110,5],[112,0,123,0],[112,1,112,5],[113,1,113,5],[115,1,115,5],[116,1,116,5],[97,1,97,5],[99,0,110,0],[99,1,99,5],[100,1,100,5],[101,1,101,5],[102,1,102,5],[103,1,103,5],[104,1,104,5],[105,1,105,5],[106,1,106,5],[86,0,97,0],[91,1,91,5],[92,1,92,5],[93,1,93,5],[94,1,94,5],[95,1,95,5],[96,1,96,5],[82,1,82,5],[83,1,83,5],[84,1,84,5],[86,1,86,5],[87,1,87,5],[88,1,88,5],[89,1,89,5],[90,1,90,5],[114,1,114,5],[58,1,58,5],[60,1,60,5],[61,1,61,5],[62,1,62,5],[63,1,63,5],[64,1,64,5],[71,1,71,5],[73,0,84,0],[73,1,73,5],[74,1,74,5],[75,1,75,5],[76,1,76,5],[77,1,77,5],[78,1,78,5],[79,1,79,5],[80,1,80,5],[60,0,71,0],[65,1,65,5],[66,1,66,5],[67,1,67,5],[68,1,68,5],[69,1,69,5],[70,1,70,5],[81,1,81,5],[35,1,35,5],[36,1,36,5],[37,1,37,5],[38,1,38,5],[45,1,45,5],[47,0,58,0],[47,1,47,5],[48,1,48,5],[49,1,49,5],[50,1,50,5],[51,1,51,5],[52,1,52,5],[53,1,53,5],[54,1,54,5],[34,0,45,0],[39,1,39,5],[40,1,40,5],[41,1,41,5],[42,1,42,5],[43,1,43,5],[44,1,44,5],[55,1,55,5],[56,1,56,5],[57,1,57,5],[16,1,16,5],[18,1,18,5],[9,1,9,5],[11,1,11,5],[29,1,29,5],[30,1,30,5],[31,1,31,5],[32,1,32,5],[34,1,34,5],[4,0,4,5],[142,1,142,5],[151,0,151,5],[153,1,153,4],[0,0,0,5],[21,0,32,0],[21,1,21,5],[22,1,22,5],[23,1,23,5],[24,1,24,5],[25,1,25,5],[26,1,26,5],[27,1,27,5],[28,1,28,5],[13,1,13,5],[15,1,15,5],[17,1,17,5],[19,1,19,5],[7,0,7,5],[8,0,19,0],[8,1,8,5],[10,1,10,5],[12,1,12,5],[14,1,14,5]]}
["7. Gradnja in nepremičnine",null,null,null,null,null,null,null,null,null,null,null,null,null,null,0]
[null,null,null,null,null,null,null,null,null,null,null,null,null,null,null,1]
["Gradbena in/ali obnovitvena dela",null,null,null,null,null,null,null,null,null,null,null,null,null,null,2]
[null,null,null,null,null,null,null,null,null,null,null,null,null,null,null,3]
["V kolikor projekt predvideva gradbena in/ali obnovitvena dela, za vsako posebej izpolnite spodnjo tabelo.",null,null,null,null,null,null,null,null,null,null,null,null,null,null,4]
[null,null,null,null,null,null,null,null,null,null,null,null,null,null,null,5]
[null,null,"Število tabel za gradbena/obnovitvena dela",null,null,1,null,"Izberite eno od možnosti s seznama",null,null,null,null,null,null,null,6]
["Gradbena dela",null,null,null,null,null,null,null,null,null,null,null,null,null,null,7]
[1,"a) Naziv investicije",null,null,null,null,null,null,null,null,null,null,null,null,null,8]
[null,null,null,null,null,null,null,"Obvezno polje, največ 200 znakov",null,null,null,null,null,null,null,9]
[null,"b) Opis investicije (lokacija, tehnični podatki, vrsta načrtovanih del in podobno)",null,null,null,null,null,null,null,null,null,null,null,null,null,10]
[null,null,null,null,null,null,null,"Obvezno polje, največ 2000 znakov"]
[null,"c) Investitor"]
[]
[null,"d) Lastnik investicije"]
[null,null,null,null,null,null,null,"Obvezno polje, največ 500 znakov"]
[null,"e) Ocena investicijskih stroškov po glavnih investicijskih fazah ali vrsti del"]
[]
[null,"f) Pričakovan začetek del"]
[]
[]
[2,"a) Naziv investicije"]
[null,null,null,null,null,null,null,"Obvezno polje, največ 200 znakov"]
[null,"b) Opis investicije (lokacija, tehnični podatki, vrsta načrtovanih del in podobno)"]
[null,null,null,null,null,null,null,"Obvezno polje, največ 2000 znakov"]
[null,"c) Investitor"]
[]
[null,"d) Lastnik investicije"]
[null,null,null,null,null,null,null,"Obvezno polje, največ 500 znakov"]
[null,"e) Ocena investicijskih stroškov po glavnih investicijskih fazah ali vrsti del"]
[]
[null,"f) Pričakovan začetek del"]
[]
[]
[3,"a) Naziv investicije"]
[null,null,null,null,null,null,null,"Obvezno polje, največ 200 znakov"]
[null,"b) Opis investicije (lokacija, tehnični podatki, vrsta načrtovanih del in podobno)"]
[null,null,null,null,null,null,null,"Obvezno polje, največ 2000 znakov"]
[null,"c) Investitor"]
[]
[null,"d) Lastnik investicije"]
[null,null,null,null,null,null,null,"Obvezno polje, največ 500 znakov"]
[null,"e) Ocena investicijskih stroškov po glavnih investicijskih fazah ali vrsti del"]
[]
[null,"f) Pričakovan začetek del"]
[]
[]
[4,"a) Naziv investicije"]
[null,null,null,null,null,null,null,"Obvezno polje, največ 200 znakov"]
[null,"b) Opis investicije (lokacija, tehnični podatki, vrsta načrtovanih del in podobno)"]
[null,null,null,null,null,null,null,"Obvezno polje, največ 2000 znakov"]
[null,"c) Investitor"]
[]
[null,"d) Lastnik investicije"]
[null,null,null,null,null,null,null,"Obvezno polje, največ 500 znakov"]
[null,"e) Ocena investicijskih stroškov po glavnih investicijskih fazah ali vrsti del"]
[]
[null,"f) Pričakovan začetek del"]
[]
[]
[5,"a) Naziv investicije"]
[null,null,null,null,null,null,null,"Obvezno polje, največ 200 znakov"]
[null,"b) Opis investicije (lokacija, tehnični podatki, vrsta načrtovanih del in podobno)"]
[null,null,null,null,null,null,null,"Obvezno polje, največ 2000 znakov"]
[null,"c) Investitor"]
[]
[null,"d) Lastnik investicije"]
[null,null,null,null,null,null,null,"Obvezno polje, največ 500 znakov"]
[null,"e) Ocena investicijskih stroškov po glavnih investicijskih fazah ali vrsti del"]
[]
[null,"f) Pričakovan začetek del"]
[]
[]
[6,"a) Naziv investicije"]
[null,null,null,null,null,null,null,"Obvezno polje, največ 200 znakov"]
[null,"b) Opis investicije (lokacija, tehnični podatki, vrsta načrtovanih del in podobno)"]
[null,null,null,null,null,null,null,"Obvezno polje, največ 2000 znakov"]
[null,"c) Investitor"]
[]
[null,"d) Lastnik investicije"]
[null,null,null,null,null,null,null,"Obvezno polje, največ 500 znakov"]
[null,"e) Ocena investicijskih stroškov po glavnih investicijskih fazah ali vrsti del"]
[]
[null,"f) Pričakovan začetek del"]
[]
[]
[7,"a) Naziv investicije"]
[null,null,null,null,null,null,null,"Obvezno polje, največ 200 znakov"]
[null,"b) Opis investicije (lokacija, tehnični podatki, vrsta načrtovanih del in podobno)"]
[null,null,null,null,null,null,null,"Obvezno polje, največ 2000 znakov"]
[null,"c) Investitor"]
[]
[null,"d) Lastnik investicije"]
[null,null,null,null,null,null,null,"Obvezno polje, največ 500 znakov"]
[null,"e) Ocena investicijskih stroškov po glavnih investicijskih fazah ali vrsti del"]
[]
[null,"f) Pričakovan začetek del"]
[]
[]
[8,"a) Naziv investicije"]
[null,null,null,null,null,null,null,"Obvezno polje, največ 200 znakov"]
[null,"b) Opis investicije (lokacija, tehnični podatki, vrsta načrtovanih del in podobno)"]
[null,null,null,null,null,null,null,"Obvezno polje, največ 2000 znakov"]
[null,"c) Investitor"]
[]
[null,"d) Lastnik investicije"]
[null,null,null,null,null,null,null,"Obvezno polje, največ 500 znakov"]
[null,"e) Ocena investicijskih stroškov po glavnih investicijskih fazah ali vrsti del"]
[]
[null,"f) Pričakovan začetek del"]
[]
[]
[9,"a) Naziv investicije"]
[null,null,null,null,null,null,null,"Obvezno polje, največ 200 znakov"]
[null,"b) Opis investicije (lokacija, tehnični podatki, vrsta načrtovanih del in podobno)"]
[null,null,null,null,null,null,null,"Obvezno polje, največ 2000 znakov"]
[null,"c) Investitor"]
[]
[null,"d) Lastnik investicije"]
[null,null,null,null,null,null,null,"Obvezno polje, največ 500 znakov"]
[null,"e) Ocena investicijskih stroškov po glavnih investicijskih fazah ali vrsti del"]
[]
[null,"f) Pričakovan začetek del"]
[]
[]
[10,"a) Naziv investicije"]
[null,null,null,null,null,null,null,"Obvezno polje, največ 200 znakov"]
[null,"b) Opis investicije (lokacija, tehnični podatki, vrsta načrtovanih del in podobno)"]
[null,null,null,null,null,null,null,"Obvezno polje, največ 2000 znakov"]
[null,"c) Investitor"]
[]
[null,"d) Lastnik investicije"]
[null,null,null,null,null,null,null,"Obvezno polje, največ 500 znakov"]
[null,"e) Ocena investicijskih stroškov po glavnih investicijskih fazah ali vrsti del"]
[]
[null,"f) Pričakovan začetek del"]
[]
[]
[]
["Označite ali je za gradbena dela potrebno gradbeno dovoljenje. V kolikor gradbeno dovoljenje ni priloženo, pojasnite zakaj in navedite, kdaj ga nameravate predložiti. V kolikor gradbeno dovoljenje ni potrebno, pojasnite na osnovi česa bodo temeljila gradbena dela."]
[null,"Gradbeno dovoljenje je potrebno."]
[null,"Pravnomočno gradbeno dovoljene je priloženo."]
[null,"Pravnomočno gradbeno dovoljenje ni priloženo. Navedite razlog in kdaj ga nameravate pridobiti."]
[null,null,null,null,null,null,null,"Največ 500 znakov"]
[null,"Gradbeno dovoljenje ni potrebno. Gradbena dela bodo izvedena na osnovi:"]
[null,null,null,null,null,null,null,"Največ 500 znakov"]
[]
[]
[]
["Nakup nepremičnin in/ali zemljišč"]
[]
["V kolikor projekt predvideva nakup nepremičnin in/ali zemljišč, za vsakega posebej izpolnite spodnjo tabelo"]
[]
[null,"število tabel za nakup nepremičnin in zemljišč: ",null,null,null,1,null,"V kolikor projekt predvideva nakup nepremičnin ali zemljišč, so polja obvezna."]
["Nakup nepremičnin in/ali zemljišč",null,null,null,null,null,null,"VSA POLJA POGOJNO OBVEZNA, v kolikor bo nakup nepremičnin/zemljišč"]
[1,"a) Naziv in opis investicije"]
[null,null,null,null,null,null,null,"Obvezno polje, največ 750 znakov"]
[null,"b) Investitor"]
[null,null,null,null,null,null,null,"Obvezno polje"]
[null,"c) Lastnik nepremičnine"]
[null,null,null,null,null,null,null,"Obvezno polje, največ 500 znakov"]
[null,"d) Utemeljitev nakupa"]
[null,null,null,null,null,null,null,"Obvezno polje, največ 1000 znakov"]
[null,"e) Ocena stroškov nakupa:"]
[null,null,null,null,null,null,null,"Obvezno polje"]
[]
[2,"a) Naziv in opis investicije"]
[null,null,null,null,null,null,null,"Obvezno polje, največ 750 znakov"]
[null,"b) Investitor"]
[null,null,null,null,null,null,null,"Obvezno polje"]
[null,"c) Lastnik nepremičnine"]
[null,null,null,null,null,null,null,"Obvezno polje, največ 500 znakov"]
[null,"d) Utemeljitev nakupa"]
[null,null,null,null,null,null,null,"Obvezno polje, največ 1000 znakov"]
[null,"e) Ocena stroškov nakupa:"]
[null,null,null,null,null,null,null,"Obvezno polje"]
[]
[3,"a) Naziv in opis investicije"]
[null,null,null,null,null,null,null,"Obvezno polje, največ 750 znakov"]
[null,"b) Investitor"]
[null,null,null,null,null,null,null,"Obvezno polje"]
[null,"c) Lastnik nepremičnine"]
[null,null,null,null,null,null,null,"Obvezno polje, največ 500 znakov"]
[null,"d) Utemeljitev nakupa"]
[null,null,null,null,null,null,null,"Obvezno polje, največ 1000 znakov"]
[null,"e) Ocena stroškov nakupa:"]
[null,null,null,null,null,null,null,"Obvezno polje"]
[]
[4,"a) Naziv in opis investicije"]
[null,null,null,null,null,null,null,"Obvezno polje, največ 750 znakov"]
[null,"b) Investitor"]
[null,null,null,null,null,null,null,"Obvezno polje"]
[null,"c) Lastnik nepremičnine"]
[null,null,null,null,null,null,null,"Obvezno polje, največ 500 znakov"]
[null,"d) Utemeljitev nakupa"]
[null,null,null,null,null,null,null,"Obvezno polje, največ 1000 znakov"]
[null,"e) Ocena stroškov nakupa:"]
[null,null,null,null,null,null,null,"Obvezno polje"]
[]
[5,"a) Naziv in opis investicije"]
[null,null,null,null,null,null,null,"Obvezno polje, največ 750 znakov"]
[null,"b) Investitor"]
[null,null,null,null,null,null,null,"Obvezno polje"]
[null,"c) Lastnik nepremičnine"]
[null,null,null,null,null,null,null,"Obvezno polje, največ 500 znakov"]
[null,"d) Utemeljitev nakupa"]
[null,null,null,null,null,null,null,"Obvezno polje, največ 1000 znakov"]
[null,"e) Ocena stroškov nakupa:"]
[null,null,null,null,null,null,null,"Obvezno polje"]
[]
[6,"a) Naziv in opis investicije"]
[null,null,null,null,null,null,null,"Obvezno polje, največ 750 znakov"]
[null,"b) Investitor"]
[null,null,null,null,null,null,null,"Obvezno polje"]
[null,"c) Lastnik nepremičnine"]
[null,null,null,null,null,null,null,"Obvezno polje, največ 500 znakov"]
[null,"d) Utemeljitev nakupa"]
[null,null,null,null,null,null,null,"Obvezno polje, največ 1000 znakov"]
[null,"e) Ocena stroškov nakupa:"]
[null,null,null,null,null,null,null,"Obvezno polje"]
[]
[7,"a) Naziv in opis investicije"]
[null,null,null,null,null,null,null,"Obvezno polje, največ 750 znakov"]
[null,"b) Investitor"]
[null,null,null,null,null,null,null,"Obvezno polje"]
[null,"c) Lastnik nepremičnine"]
[null,null,null,null,null,null,null,"Obvezno polje, največ 500 znakov"]
[null,"d) Utemeljitev nakupa"]
[null,null,null,null,null,null,null,"Obvezno polje, največ 1000 znakov"]
[null,"e) Ocena stroškov nakupa:"]
[null,null,null,null,null,null,null,"Obvezno polje"]
[]
[8,"a) Naziv in opis investicije"]
[null,null,null,null,null,null,null,"Obvezno polje, največ 750 znakov"]
[null,"b) Investitor"]
[null,null,null,null,null,null,null,"Obvezno polje"]
[null,"c) Lastnik nepremičnine"]
[null,null,null,null,null,null,null,"Obvezno polje, največ 500 znakov"]
[null,"d) Utemeljitev nakupa"]
[null,null,null,null,null,null,null,"Obvezno polje, največ 1000 znakov"]
[null,"e) Ocena stroškov nakupa:"]
[null,null,null,null,null,null,null,"Obvezno polje"]
[]
[9,"a) Naziv in opis investicije"]
[null,null,null,null,null,null,null,"Obvezno polje, največ 750 znakov"]
[null,"b) Investitor"]
[null,null,null,null,null,null,null,"Obvezno polje"]
[null,"c) Lastnik nepremičnine"]
[null,null,null,null,null,null,null,"Obvezno polje, največ 500 znakov"]
[null,"d) Utemeljitev nakupa"]
[null,null,null,null,null,null,null,"Obvezno polje, največ 1000 znakov"]
[null,"e) Ocena stroškov nakupa:"]
[null,null,null,null,null,null,null,"Obvezno polje"]
[]
[10,"a) Naziv in opis investicije"]
[null,null,null,null,null,null,null,"Obvezno polje, največ 750 znakov"]
[null,"b) Investitor"]
[null,null,null,null,null,null,null,"Obvezno polje"]
[null,"c) Lastnik nepremičnine"]
[null,null,null,null,null,null,null,"Obvezno polje, največ 500 znakov"]
[null,"d) Utemeljitev nakupa"]
[null,null,null,null,null,null,null,"Obvezno polje, največ 1000 znakov"]
[null,"e) Ocena stroškov nakupa:"]
[null,null,null,null,null,null,null,"Obvezno polje"]
[]
[]
["Spodnja tabela prikazuje avtomatski izračun ocene skupnih stroškov nakupa nepremičnin in/ali zemljišč teh stroškov v razmerju do skupnih upravičenih stroškov projekta, predvidenih v finančnem načrtu. Stroški nakupa nepremičnin in/ali zemljišč lahko predstavljajo največ 10% skupnih upravičenih stroškov projekta."]
["V EUR",null,"V EUR",null,"Delež od skupnih upravičenih stroškov"]
["Ocena skupnih stroškov nakupa nepremičnin in zemljišča",null,{"$f":"B264+B253+B242+B231+B220+B209+B198+B187+B176+B165","v":0},null,{"$f":"C269/'Finančni načrt'!R30","v":{"$error":"#DIV/0!"}}]

{"sheet":"Investicijska dokumentacija","index":14,"n_rows":9,"n_cols":2,"rows_kept":9,"cut":false,"hidden":false,"merged":[[0,0,0,6],[3,0,3,6],[9,1,9,6]]}
["8. Podatki o izdelani investicijski dokumentaciji"]
[]
[]
["V kolikor projekti zajemajo naložbe v novo opremo z uveljavljanjem povračila celotne kupnine, gradbena in/ali obnovitvena dela ali nakup nepremičnin in/ali zemljišč označite izdelane podatke o izdelani investicijski dokumentaciji:"]
[]
[null,"Izdelan DIIP"]
[null,"Izdelan DIIP, IP"]
[null,"Izdelan DIIP, PIZ in IP"]
[null,"Drugo:"]

{"sheet":"Finančni načrt","index":15,"n_rows":122,"n_cols":19,"rows_kept":122,"cut":false,"hidden":false,"merged":[[24,6,24,7],[25,6,25,7],[26,6,26,7],[27,6,27,7],[28,6,28,7],[29,6,29,7],[62,1,63,1],[62,2,63,2],[62,3,63,3],[62,4,63,4],[62,7,63,7],[29,0,29,3],[62,8,63,8],[62,5,62,6],[33,0,33,10],[35,0,35,7],[39,0,39,7],[40,0,40,7],[41,0,41,7],[40,8,40,9],[44,0,44,3],[45,0,45,3],[44,4,44,5],[45,4,45,5],[36,0,36,10],[37,0,37,10],[29,8,29,10],[16,4,16,5],[16,6,16,7],[17,6,17,7],[24,4,24,5],[25,4,25,5],[26,4,26,5],[27,4,27,5],[28,4,28,5],[16,8,16,10],[17,8,17,10],[20,0,20,10],[22,0,22,10],[24,0,24,3],[25,0,25,3],[26,0,26,3],[27,0,27,3],[28,0,28,3],[24,8,24,10],[25,8,25,10],[26,8,26,10],[27,8,27,10],[28,8,28,10],[29,4,29,5],[4,0,4,10],[5,0,5,10],[6,0,6,10],[10,0,10,10],[17,0,17,3],[12,0,12,3],[13,0,13,3],[14,0,14,3],[15,0,15,3],[16,0,16,3],[12,8,12,10],[13,8,13,10],[14,8,14,10],[15,8,15,10],[12,4,12,5],[13,4,13,5],[14,4,14,5],[15,4,15,5],[17,4,17,5],[12,6,12,7],[13,6,13,7],[14,6,14,7],[15,6,15,7],[83,7,84,7],[83,8,84,8],[83,9,84,9],[83,10,84,10],[111,0,111,10],[83,1,84,1],[83,2,84,2],[83,3,84,3],[83,4,84,4],[83,5,83,6],[119,0,119,2],[120,0,120,2],[121,0,121,2],[114,3,114,5],[115,3,115,5],[116,3,116,5],[117,3,117,5],[118,3,118,5],[119,3,119,5],[120,3,120,5],[121,3,121,5],[114,0,114,2],[115,0,115,2],[116,0,116,2],[117,0,117,2],[118,0,118,2],[122,6,122,8],[122,9,122,10],[122,3,122,5],[119,6,119,8],[120,6,120,8],[121,6,121,8],[114,9,114,10],[115,9,115,10],[116,9,116,10],[117,9,117,10],[118,9,118,10],[119,9,119,10],[120,9,120,10],[121,9,121,10],[114,6,114,8],[115,6,115,8],[116,6,116,8],[117,6,117,8],[118,6,118,8]]}
["9. Finančni načrt"]
[]
["Viri sofinanciranja"]
[]
["Za projekte na področju Biotska raznovrstnost in ekosistemske storitve višina nepovratnih sredstev ni manjša od 500.000 € in ne presega 700.000 €."]
["Za projekte na področju Naravna dediščina višina nepovratnih sredstev ni manjša od 250.000 € in ne presega 1.000.000 €."]
["Za projekte na področju Kulturna dediščina višina nepovratnih sredstev ni manjša od 1.000.000 € in ne presega 2.000.000 €.",null,null,null,null,null,null,null,null,null,null,null,null,"Verjetno kulturna?"]
[]
["Viri sofinanciranja - prijavitelj je NVO"]
[]
["V kolikor je  prijavitelj NVO, izpolnite spodnjo tabelo virov financiranja skupnih upravičenih stroškov projekta. Upravičeni stroški projekta se lahko sofinancirajo do največ 90% iz nepovratnih sredstev, medtem ko mora NVO kot nosilec projekta preostalih 10% ali več zagotoviti kot lastno udeležbo."]
[]
["Vir financiranja",null,null,null,"Višina v EUR",null,"Delež"]
["1. Lastna udeležba",null,null,null,null,null,{"$f":"E14/$E$18","v":{"$error":"#DIV/0!"}}]
["2. Nepovratna sredstva sofinanciranja projekta",null,null,null,null,null,{"$f":"E15/$E$18","v":{"$error":"#DIV/0!"}},null,"Delež nepovratnih sredstev sofinanciranja"]
["2.1 Namenska sredstva EGP",null,null,null,{"$f":"0.85*E15","v":0},null,{"$f":"E16/$E$18","v":{"$error":"#DIV/0!"}},null,{"$f":"E16/E15","v":{"$error":"#DIV/0!"}}]
["2.2. Nacionalna sredstva",null,null,null,{"$f":"0.15*E15","v":0},null,{"$error":"#DIV/0!"},null,{"$f":"E17/E15","v":{"$error":"#DIV/0!"}}]
["3. SKUPNI UPRAVIČENI STROŠKI PROJEKTA",null,null,null,null,null,{"$error":"#DIV/0!"}]
[]
[]
["Viri sofinanciranja – ostali prijavitelji"]
[]
["V kolikor prijavitelj ni NVO, izpolnite spodnjo tabelo virov financiranja skupnih upravičenih stroškov projekta. Upravičeni stroški projekta se lahko sofinancirajo do največ 95% iz nepovratnih sredstev, medtem ko mora nosilec projekta preostalih 5% ali več zagotoviti kot lastno udeležbo."]
[null,null,null,null,null,null,null,null,null,null,null,null,null,null,null,null,null,"Izbor NVO ne nvo skupnih"]
["Vir financiranja",null,null,null,"Višina v EUR",null,"Delež",null,null,null,null,null,null,null,null,null,null,null,"delež"]
["1. Lastna udeležba",null,null,null,null,null,{"$f":"E26/$E$30","v":{"$error":"#DIV/0!"}},null,null,null,null,null,null,null,null,null,"Lastna",{"$f":"IF(ISNUMBER(E14),E14,E26)","v":0},{"$f":"IF(ISNUMBER(E14),G14,G26)","v":{"$error":"#DIV/0!"}}]
["2. Nepovratna sredstva sofinanciranja projekta",null,null,null,null,null,{"$f":"E27/$E$30","v":{"$error":"#DIV/0!"}},null,"Delež nepovratnih sredstev sofinanciranja",null,null,null,null,null,null,null,"nepovr",{"$f":"IF(ISNUMBER(E15),E15,E27)","v":0},{"$f":"IF(ISNUMBER(E14),G15,G27)","v":{"$error":"#DIV/0!"}}]
["2.1 Namenska sredstva EGP",null,null,null,{"$f":"0.85*E27","v":0},null,{"$error":"#DIV/0!"},null,{"$f":"E28/E27","v":{"$error":"#DIV/0!"}},null,null,null,null,null,null,null,null,0]
["2.2. Nacionalna sredstva",null,null,null,{"$f":"0.15 *E27","v":0},null,{"$error":"#DIV/0!"},null,{"$f":"E29/E27","v":{"$error":"#DIV/0!"}},null,null,null,null,null,null,null,null,0]
["3. SKUPNI UPRAVIČENI STROŠKI PROJEKTA",null,null,null,null,null,{"$error":"#DIV/0!"},null,null,null,null,null,null,null,null,null,"skupni",0]
[]
[]
[]
[" "]
[]
["Ali bo projekt ustvarjal prihodke? "]
["V kolikor bo projekt ustvarjal prihodke, navedite vrste prihodkov in dejavnosti s katerimi bo projekt ustvarjal prihodke."]
[null,null,null,null,null,null,null,null,null,null,null,null,"Največ 750 znakov"]
[]
["V kolikor bo projekt ustvarjal prihodke, označite še:"]
["DA, projekt ustvarja diskontirane neto prihodke, in sicer v višini ",null,null,null,null,null,null,null,null,null,null,null,"Vpišite znesek"]
["NE, projekt ne ustvarja neto prihodkov"]
[]
[]
["Izračunana finančna vrzel",null,null,null,null,null,null,null,null,null,null,null,"Odstotek prepišite iz zavihka Finančna vrzel"]
["Izračunan pripadajoči znesek",null,null,null,null,null,null,null,null,null,null,null,"Znesek prepišite iz zavihka Finančna vrzel"]
[]
[]
[]
[]
[]
[]
[]
[]
[]
[]
["Predvideni skupni upravičeni stroški projekta po kategorijah stroškov in delovnih sklopih."]
[]
["Izpolnite tabelo po kategorijah stroškov in delovnih sklopih. "]
[]
["Metoda izračuna posrednih administrativnih stroškov",null,null,null,null,null,null,null,null,null,null,null,"Metoda A pomeni izračun posrednih administrativnih stroškov po ključu, metoda B pa po pavšalu. Glej 2.3.3.5. poglavje Navodil za prijavitelje - Sklop B."]
[]
["Kategorija stroškov","Stroški osebja","Stroški zunanjih izvajalcev","Stroški opreme","Stroški gradnje in nakupa nepremičnin in/ali zemljišč","Administrativni stroški",null,"SKUPAJ UPRAVIČENI STROŠKI","Delež skupnih upravičenih stroškov projekta",null,null,null,"Pri stroških opreme upoštevajte stroške morebitnega nakupa, amortizacije, vzdrževanja, zavarovanja in podobno."]
["Delovni sklop",null,null,null,null,"Neposredni stroški","Posredni stroški"]
["DS 1",null,null,null,null,null,null,{"$f":"SUM(B65:G65)","v":0},{"$f":"H65/$R$30","v":{"$error":"#DIV/0!"}}]
["DS 2",null,null,null,null,null,null,{"$f":"SUM(B66:G66)","v":0},{"$f":"H66/$R$30","v":{"$error":"#DIV/0!"}}]
["DS 3",null,null,null,null,null,null,0,{"$error":"#DIV/0!"}]
["DS 4",null,null,null,null,null,null,0,{"$error":"#DIV/0!"}]
["DS 5",null,null,null,null,null,null,0,{"$error":"#DIV/0!"}]
["DS 6",null,null,null,null,null,null,0,{"$error":"#DIV/0!"}]
["SKUPAJ UPRAVIČENI STROŠKI",{"$f":"SUM(B65:B70)","v":0},0,0,0,0,0,{"$f":"SUM(B71:G71)","v":0},null,null,null,null,"Skupni seštevek upravičenih stroškov mora biti enak višini skupnih upravičenih stroškov projekta iz tabele Viri financiranja."]
["Delež skupnih upravičenih stroškov projekta",{"$f":"B71/$R$30","v":{"$error":"#DIV/0!"}},{"$f":"C71/$R$30","v":{"$error":"#DIV/0!"}},{"$error":"#DIV/0!"},{"$error":"#DIV/0!"},{"$error":"#DIV/0!"},{"$error":"#DIV/0!"}]
[]
[]
[]
[]
[]
["Predvideni skupni upravičeni stroški projekta po kategorijah stroškov in partnerjih"]
[]
["Izpolnite tabelo po kategorijah stroškov in partnerjih. "]
[]
[]
[]
["Kategorija stroškov","Stroški osebja","Stroški zunanjih izvajalcev","Stroški opreme","Stroški gradnje in nakupa nepremičnin in/ali zemljišč","Administrativni stroški",null,"SKUPAJ UPRAVIČENI STROŠKI ","Delež skupnih upravičenih stroškov projekta","Višina nepovratnih sredstev ","Višina lastne udeležbe "]
["Delovni sklop",null,null,null,null,"Neposredni stroški","Posredni stroški"]
["Prijavitelj",null,null,null,null,null,null,{"$f":"SUM(B86:G86)","v":0},{"$f":"H86/$R$30","v":{"$error":"#DIV/0!"}}]
["Partner 1",null,null,null,null,null,null,{"$f":"SUM(B87:G87)","v":0},{"$f":"H87/$R$30","v":{"$error":"#DIV/0!"}}]
["Partner 2",null,null,null,null,null,null,0,{"$error":"#DIV/0!"}]
["Partner 3",null,null,null,null,null,null,0,{"$error":"#DIV/0!"}]
["Partner 4",null,null,null,null,null,null,0,{"$error":"#DIV/0!"}]
["Partner 5",null,null,null,null,null,null,0,{"$error":"#DIV/0!"}]
["Partner 6",null,null,null,null,null,null,0,{"$error":"#DIV/0!"}]
["Partner 7",null,null,null,null,null,null,0,{"$error":"#DIV/0!"}]
["Partner 8",null,null,null,null,null,null,0,{"$error":"#DIV/0!"}]
["Partner 9",null,null,null,null,null,null,0,{"$error":"#DIV/0!"}]
["Partner 10",null,null,null,null,null,null,0,{"$error":"#DIV/0!"}]
["Partner 11",null,null,null,null,null,null,0,{"$error":"#DIV/0!"}]
["Partner 12",null,null,null,null,null,null,0,{"$error":"#DIV/0!"}]
["Partner 13",null,null,null,null,null,null,0,{"$error":"#DIV/0!"}]
["Partner 14",null,null,null,null,null,null,0,{"$error":"#DIV/0!"}]
["Partner 15",null,null,null,null,null,null,0,{"$error":"#DIV/0!"}]
["Partner 16",null,null,null,null,null,null,0,{"$error":"#DIV/0!"}]
["SKUPAJ UPRAVIČENI STROŠKI",{"$f":"SUM(B86:B102)","v":0},{"$f":"SUM(C86:C102)","v":0},0,0,0,0,{"$f":"SUM(B103:G103)","v":0},{"$f":"SUM(I86:I102)","v":{"$error":"#DIV/0!"}},{"$f":"SUM(J86:J102)","v":0},{"$f":"SUM(K86:K102)","v":0}]
["Delež skupnih upravičenih stroškov projekta",{"$f":"B103/$R$30","v":{"$error":"#DIV/0!"}},{"$f":"C103/$R$30","v":{"$error":"#DIV/0!"}},{"$error":"#DIV/0!"},{"$error":"#DIV/0!"},{"$error":"#DIV/0!"},{"$error":"#DIV/0!"},null,null,null,null,null,"Skupni seštevek upravičenih stroškov mora biti enak  višini skupnih upravičenih stroškov projekta iz tabele  Viri financiranja.",{"$f":"IF(J103=R27,\"\",\"Znesek se mora ujemati z nečim!\")","v":""},{"$f":"IF(K103=R27,\"\",\"Znesek se mora ujemati z nečim!\")","v":""}]
[]
[]
[]
[]
[]
["Indikativni časovni načrt porabe sredstev"]
[]
["Za vsako obdobje navedite skupne upravičene stroške projekta. Višina nepovratnih sredstev in lastne udeležbe se izračuna samodejno."]
[]
[]
["Obdobje",null,null,"Skupni upravičeni stroški projekta, nastali v izbranem obdobju  ",null,null,"Znesek nepovratnih sredstev",null,null,"Znesek lastne udeležbe"]
["1.5.2014 do 31.8.2014",null,null,null,null,null,{"$f":"D116*$S$26","v":{"$error":"#DIV/0!"}},null,null,{"$f":"D116*$S$27","v":{"$error":"#DIV/0!"}}]
["1.9.2014 do 31.12.2014",null,null,null,null,null,{"$f":"D117*$S$26","v":{"$error":"#DIV/0!"}},null,null,{"$f":"D117*$S$27","v":{"$error":"#DIV/0!"}}]
["1.1.2015 do 30.4.2015",null,null,null,null,null,{"$error":"#DIV/0!"},null,null,{"$error":"#DIV/0!"}]
["1.5.2015 do 31.8.2015",null,null,null,null,null,{"$error":"#DIV/0!"},null,null,{"$error":"#DIV/0!"}]
["1.9.2015 do 31.12.2015",null,null,null,null,null,{"$error":"#DIV/0!"},null,null,{"$error":"#DIV/0!"}]
["1.1.2016 do 30.4.2016",null,null,null,null,null,{"$error":"#DIV/0!"},null,null,{"$error":"#DIV/0!"}]
["SKUPAJ",null,null,{"$f":"SUM(D116:F121)","v":0},null,null,{"$f":"SUM(G116:I121)","v":{"$error":"#DIV/0!"}},null,null,{"$f":"SUM(J116:K121)","v":{"$error":"#DIV/0!"}},null,null,"Seštevek skupnih upravičenih stroškov projekta mora biti enak višini skupnih upravičenih stroškov projekta iz tabele Viri financiranja."]

{"sheet":"Finančna vrzel","index":16,"n_rows":47,"n_cols":17,"rows_kept":47,"cut":false,"hidden":false,"merged":[[44,16,51,22],[4,0,4,6],[4,8,4,13],[42,0,42,3],[42,6,42,10],[43,0,43,3],[43,6,43,10],[41,10,41,11],[44,0,44,3],[44,6,44,10],[45,0,45,3],[45,6,45,10],[46,0,46,3],[46,6,46,10]]}
["Izračun finančne vrzeli"]
[]
[null,null,null,null,null,null,null,null,null,null,null,null,null,null,7.0000000000000007E-2]
[]
["VREDNOSTI V STALNIH CENAH (v EUR)",null,null,null,null,null,null,null,"DISKONTIRANE VREDNOSTI (v EUR)",null,null,null,null,null,7.0000000000000007E-2]
["Leto (zap.št.)","Leto (letnica)","Investicijski\nstroški v stalnih cenah","Operativni\nstroški","Prihodki","Ostanek\nvrednosti","Neto \ndenarni tok",null,"Leto (zap.št.)","Leto (letnica)","Investicijski\nstroški","Operativni\nstroški","Prihodki","Ostanek\nvrednosti","Neto \ndenarni tok"]
[0,"2014",null,null,null,null,{"$f":"-C7-D7+E7+F7","v":0},null,{"$f":"A7","v":0},{"$f":"B7","v":"2014"},{"$f":"C7/POWER(1+$O$3,A7)","v":0},{"$f":"D7/POWER(1+$O$3,A7)","v":0},{"$f":"E7/POWER(1+$O$3,A7)","v":0},{"$f":"F7/POWER(1+$O$3,A7)","v":0},{"$f":"-K7-L7+M7+N7","v":0}]
[1,"2015",null,null,null,null,0,null,{"$f":"A8","v":1},"2015",0,{"$f":"D8/POWER(1+$O$3,A8)","v":0},{"$f":"E8/POWER(1+$O$3,A8)","v":0},{"$f":"F8/POWER(1+$O$3,A8)","v":0},0]
[2,"2016",null,null,null,null,0,null,2,"2016",0,0,0,0,0]
[3,"2017",null,null,null,null,0,null,3,"2017",0,0,0,0,0]
[4,"2018",null,null,null,null,0,null,4,"2018",0,0,0,0,0]
[5,"2019",null,null,null,null,0,null,5,"2019",0,0,0,0,0]
[6,"2020",null,null,null,null,0,null,6,"2020",0,0,0,0,0]
[7,"2021",null,null,null,null,0,null,7,"2021",0,0,0,0,0]
[8,"2022",null,null,null,null,0,null,8,"2022",0,0,0,0,0]
[9,"2023",null,null,null,null,0,null,9,"2023",0,0,0,0,0]
[10,"2024",null,null,null,null,0,null,10,"2024",0,0,0,0,0]
[11,"2025",null,null,null,null,0,null,11,"2025",0,0,0,0,0]
[12,"2026",null,null,null,null,0,null,12,"2026",0,0,0,0,0]
[13,"2027",null,null,null,null,0,null,13,"2027",0,0,0,0,0]
[14,"2028",null,null,null,null,0,null,14,"2028",0,0,0,0,0]
[15,"2029",null,null,null,null,0,null,15,"2029",0,0,0,0,0]
[16,"2030",null,null,null,null,0,null,16,"2030",0,0,0,0,0]
[17,"2031",null,null,null,null,0,null,17,"2031",0,0,0,0,0]
[18,"2032",null,null,null,null,0,null,18,"2032",0,0,0,0,0]
[19,"2033",null,null,null,null,0,null,19,"2033",0,0,0,0,0]
[20,"2034",null,null,null,null,0,null,20,"2034",0,0,0,0,0]
[21,"2035",null,null,null,null,0,null,21,"2035",0,0,0,0,0]
[22,"2036",null,null,null,null,0,null,22,"2036",0,0,0,0,0]
[23,"2037",null,null,null,null,0,null,23,"2037",0,0,0,0,0]
[24,"2038",null,null,null,null,0,null,24,"2038",0,0,0,0,0]
[25,"2039",null,null,null,null,0,null,25,"2039",0,0,0,0,0]
[26,"2040",null,null,null,null,0,null,26,"2040",0,0,0,0,0]
[27,"2041",null,null,null,null,0,null,27,"2041",0,0,0,0,0]
[28,"2042",null,null,null,null,0,null,28,"2042",0,0,0,0,0]
[29,"2043",null,null,null,null,0,null,29,"2043",0,0,0,0,0]
[30,"2044",null,null,null,null,0,null,30,"2044",0,0,0,0,0]
[31,"2045",null,null,null,null,0,null,31,"2045",0,0,0,0,0]
[32,"2046",null,null,null,null,0,null,32,"2046",0,0,0,0,0]
[null,"Skupaj",{"$f":"SUM(C7:C39)","v":0},{"$f":"SUM(D7:D39)","v":0},{"$f":"SUM(E7:E39)","v":0},{"$f":"SUM(F7:F39)","v":0},{"$f":"SUM(G7:G39)","v":0},null,null,"Skupaj",{"$f":"SUM(K7:K39)","v":0},{"$f":"SUM(L7:L39)","v":0},{"$f":"SUM(M7:M39)","v":0},{"$f":"SUM(N7:N39)","v":0},{"$f":"SUM(O7:O39)","v":0}]
[]
[null,null,null,null,null,null,null,null,null,null,"če je DNR>0:",null,"če je DNR<0:"]
[null,null,null,null,"v EUR",null,"1a) Najvišji upravičeni izdatki (EE=DIC-DNR):",null,null,null,null,{"$f":"ROUND(E46-E47,2)","v":0},{"$f":"E46-E47","v":0}]
["Skupni investicijski stroški (nediskontirani)",null,null,null,{"$f":"C40","v":0},null,"1b) Finančna vrzel (R=EE/DIC):",null,null,null,null,{"$f":"L43/E46","v":{"$error":"#DIV/0!"}},1]
["Od tega upravičeni stroški (EC) ",null,null,null,null,null,"2) Izračun pripadajočega zneska (DA=EC*R):",null,null,null,null,{"$f":"E45*L44","v":{"$error":"#DIV/0!"}},{"$f":"M44*E45","v":0},null,null,null,"V kolikor je prijavitelj NVO, kot  najvišjo stopnjo nepovratnih sredstev vpišite 90%, v kolikor prijavitelj ni NVO, vpišite 95%. Višina nepovratnih sredstev sofinanciranja projekta je poleg tega izračuna odvisna tudi od najvišje in najnižje dopustne višine nepovratnih sredstev, ki velja za posamezno področje razpisa.  "]
["Diskontirani investicijski stroški (DIC)",null,null,null,{"$f":"K40","v":0},null,"3a) Najvišja stopnja nepovratnih sredstev (CRpa):"]
["Diskontirani neto prihodki (DNR)",null,null,null,{"$f":"M40+N40-L40","v":0},null,"3b) Izračun najvišjega zneska  nepovratnih sredstev sofinanciranja  (DA*Crpa):",null,null,null,null,{"$f":"ROUNDDOWN(L45*L46,2)","v":{"$error":"#DIV/0!"}},{"$f":"M45*M46","v":0}]

{"sheet":"Časovni načrt","index":17,"n_rows":71,"n_cols":35,"rows_kept":71,"cut":false,"hidden":false,"merged":[[4,1,4,8],[4,9,4,20],[4,21,4,24],[2,0,2,24],[3,1,3,24]]}
["10. Časovni načrt projekta",null,null,null,null,null,null,null,null,null,null,null,null,null,null,null,null,null,null,null,null,null,null,null,null,null,null,null,null,null,null,"podpodročje","ds v 1","ds v 2","ds v 3"]
[null,null,null,null,null,null,null,null,null,null,null,null,null,null,null,null,null,null,null,null,null,null,null,null,null,null,null,null,null,null,null,{"$f":"'Osnovne informacije'!B29","v":1},{"$f":"'Delovni načrt projekta (B1)'!I7 + 4","v":5},{"$f":"'Delovni načrt projekta (B2)'!I7 + 2","v":2},{"$f":"'Delovni načrt projekta (B3)'!I7 + 3","v":6}]
["Za vsako posamezno dejavnost iz zavihka Delovni načrt projekta označite obdobje, v katerem bo potekala.",null,null,null,null,null,null,null,null,null,null,null,null,null,null,null,null,null,null,null,null,null,null,null,null,null,null,null,null,null,"število sklopov",{"$f":"IF($AF$2 = 1,AG2,(IF($AF$2=2,AH2,IF($AF$2=3,AI2))))","v":5}]
[null,"Leto in mesec"]
["Dejavnost",2014,null,null,null,null,null,null,null,2015,null,null,null,null,null,null,null,null,null,null,null,2016,null,null,null,null,null,null,null,null,"dej v ds 1",{"$f":"IF($AF$2 = 1,AG5,(IF($AF$2=2,AH5,IF($AF$2=3,AI5))))","v":0},{"$f":"'Delovni načrt projekta (B1)'!I9","v":0},{"$f":"'Delovni načrt projekta (B2)'!I9","v":0},{"$f":"'Delovni načrt projekta (B3)'!I9","v":0}]
[null,5,6,7,8,9,10,11,12,1,2,3,4,5,6,7,8,9,10,11,12,1,2,3,4]
["DEJ 1.1",null,null,null,null,null,null,null,null,null,null,null,null,null,null,null,null,null,null,null,null,null,null,null,null,null,"Označite mesece z x"]
["DEJ 1.2"]
["DEJ 1.3"]
["DEJ 1.4"]
["DEJ 1.5"]
["DEJ 1.6"]
["DEJ 1.7"]
["DEJ 1.8"]
["DEJ 1.9"]
["DEJ 1.10"]
[null,null,null,null,null,null,null,null,null,null,null,null,null,null,null,null,null,null,null,null,null,null,null,null,null,null,null,null,null,null,"dej v ds 2",{"$f":"IF($AF$2 = 1,AG17,(IF($AF$2=2,AH17,IF($AF$2=3,AI17))))","v":0},{"$f":"'Delovni načrt projekta (B1)'!I25","v":0},{"$f":"'Delovni načrt projekta (B2)'!I25","v":0},{"$f":"'Delovni načrt projekta (B3)'!I25","v":0}]
["DEJ 2.1"]
["DEJ 2.2"]
["DEJ 2.3"]
["DEJ 2.4"]
["DEJ 2.5"]
["DEJ 2.6"]
["DEJ 2.7"]
["DEJ 2.8"]
["DEJ 2.9"]
["DEJ 2.10"]
[null,null,null,null,null,null,null,null,null,null,null,null,null,null,null,null,null,null,null,null,null,null,null,null,null,null,null,null,null,null,"dej v ds 3",0,{"$f":"'Delovni načrt projekta (B1)'!I41","v":0},{"$f":"'Delovni načrt projekta (B2)'!I41","v":0},{"$f":"'Delovni načrt projekta (B3)'!I41","v":0}]
["DEJ 3.1"]
["DEJ 3.2"]
["DEJ 3.3"]
["DEJ 3.4"]
["DEJ 3.5"]
["DEJ 3.6"]
["DEJ 3.7"]
["DEJ 3.8"]
["DEJ 3.9"]
["DEJ 3.10"]
[null,null,null,null,null,null,null,null,null,null,null,null,null,null,null,null,null,null,null,null,null,null,null,null,null,null,null,null,null,null,null,0,{"$f":"'Delovni načrt projekta (B1)'!I57","v":0},{"$f":"'Delovni načrt projekta (B2)'!I57","v":0},{"$f":"'Delovni načrt projekta (B3)'!I57","v":0}]
["DEJ 4.1"]
["DEJ 4.2"]
["DEJ 4.3"]
["DEJ 4.4"]
["DEJ 4.5"]
["DEJ 4.6"]
["DEJ 4.7"]
["DEJ 4.8"]
["DEJ 4.9"]
["DEJ 4.10"]
[null,null,null,null,null,null,null,null,null,null,null,null,null,null,null,null,null,null,null,null,null,null,null,null,null,null,null,null,null,null,null,0,{"$f":"'Delovni načrt projekta (B1)'!I73","v":0},{"$f":"'Delovni načrt projekta (B2)'!I73","v":0},{"$f":"'Delovni načrt projekta (B3)'!I73","v":0}]
["DEJ 5.1"]
["DEJ 5.2"]
["DEJ 5.3"]
["DEJ 5.4"]
["DEJ 5.5"]
["DEJ 5.6"]
["DEJ 5.7"]
["DEJ 5.8"]
["DEJ 5.9"]
["DEJ 5.10"]
[null,null,null,null,null,null,null,null,null,null,null,null,null,null,null,null,null,null,null,null,null,null,null,null,null,null,null,null,null,null,null,0,{"$f":"'Delovni načrt projekta (B1)'!I89","v":0},{"$f":"'Delovni načrt projekta (B2)'!I89","v":0},{"$f":"'Delovni načrt projekta (B3)'!I89","v":0}]
["DEJ 6.1"]
["DEJ 6.2"]
["DEJ 6.3"]
["DEJ 6.4"]
["DEJ 6.5"]
["DEJ 6.6"]
["DEJ 6.7"]
["DEJ 6.8"]
["DEJ 6.9"]
["DEJ 6.10"]

{"sheet":"Tveganja","index":18,"n_rows":27,"n_cols":11,"rows_kept":27,"cut":false,"hidden":false,"merged":[[19,1,19,2],[13,3,13,4],[19,3,19,4],[6,1,6,4],[7,1,7,4],[8,1,8,4],[15,1,15,2],[15,3,15,4],[2,0,2,4],[10,0,10,4],[18,1,18,2],[18,3,18,4],[16,1,16,2],[16,3,16,4],[17,1,17,2],[17,3,17,4],[14,1,14,2],[14,3,14,4],[13,1,13,2],[20,1,20,2],[20,3,20,4],[21,1,21,2],[21,3,21,4],[22,1,22,2],[22,3,22,4],[23,1,23,2],[23,3,23,4],[24,1,24,2],[24,3,24,4],[25,1,25,2],[25,3,25,4],[29,1,29,2],[29,3,29,4],[30,1,30,2],[30,3,30,4],[26,1,26,2],[26,3,26,4],[27,1,27,2],[27,3,27,4],[28,1,28,2],[28,3,28,4]]}
["11. Tveganje za izvedbo projekta",null,null,null,null,null,null,null,null,null,0]
[null,null,null,null,null,null,null,null,null,null,1]
["Opišite tveganja, ki lahko vplivajo na izvedbo projekta, in kako boste ukrepali, da se tveganju izognete oz. ga zmanjšate. Obvezno navedite ukrepe za zmanjšanje tveganja za splošna tveganja. V kolikor obstajajo tudi specifična tveganja, jih opredelite za posamezno dejavnost in navedite ukrepe za njihovo zmanjšanje. ",null,null,null,null,null,null,null,null,null,2]
[null,null,null,null,null,null,null,null,null,null,3]
["Splošna tveganja",null,null,null,null,null,null,null,null,null,4]
[null,null,null,null,null,null,null,null,null,null,5]
["Tveganje","Ukrep za zmanjšanje tveganja",null,null,null,null,null,null,null,null,6]
["Pomanjkanje likvidnostnih sredstev za nemoteno izvajanje projekta skozi celotno obdobje",null,null,null,null,null,"Obvezno polje, največ 500 znakov",null,null,null,7]
["Pomanjkanje ustreznih človeških virov znotraj organizacije prijavitelja in partnerjev",null,null,null,null,null,"Obvezno polje, največ 500 znakov",null,null,null,8]
[null,null,null,null,null,null,null,null,null,null,9]
["Specifična tveganja za glavne dejavnosti",null,null,null,null,null,null,null,null,null,10]
[null,null,null,null,null,null,null,null,null,null,11]
[null,null,null,"Število polj",9,null,"Izberite željeno število dodatnih polj iz seznama",null,null,null,12]
["Dejavnost","Tveganje",null,"Ukrep za zmanjšanje tveganja",null,null,null,null,null,null,13]
[null,null,null,null,null,null,"Največ 500 znakov za ukrep",null,null,null,14]
[null,null,null,null,null,null,null,null,null,null,15]
[]
[]
[]
[]
[null,null,null,null,null,null,null,null,null,null,14]
[null,null,null,null,null,null,null,null,null,null,15]
[]
[]
[]
[]
[null,null,null,null,null,null,null,null,null,null,15]

{"sheet":"Vpliv projekta","index":19,"n_rows":9,"n_cols":7,"rows_kept":9,"cut":false,"hidden":false,"merged":[[3,0,3,4]]}
["12. Vpliv projekta na horizontalne politike programa"]
[]
[]
["Označite kako velik vpliv ima projekt na posamezne horizontale politike. Opišite, kako projekt vpliva nanje, pri čemer navedite morebitne posebne modele, strukture oz. mehanizme, s katerimi prispeva k uresničevanju horizontalnih politik."]
[]
["Horizontalne politike","Ni vpliva","Srednji vpliv","Velik vpliv","Vpliv projekta na horizontalne politike "]
["Trajnostni razvoj",null,null,null,null,null,"Obvezno polje, največ 1000 znakov"]
["Dobro upravljanje",null,null,null,null,null,"Obvezno polje, največ 1000 znakov"]
["Enakost spolov",null,null,null,null,null,"Obvezno polje, največ 1000 znakov"]

{"sheet":"Načrt informiranja","index":20,"n_rows":5,"n_cols":9,"rows_kept":5,"cut":false,"hidden":false,"merged":[[2,0,2,6],[4,0,12,6]]}
["13. Načrt informiranja in obveščanja"]
[]
["Predstavite načrt informiranja in obveščanja."]
[]
[null,null,null,null,null,null,null,null,"Obvezno polje, največ 5000 znakov"]

{"sheet":"Kontrolni seznam","index":21,"n_rows":32,"n_cols":7,"rows_kept":32,"cut":false,"hidden":false,"merged":[[14,0,14,1],[26,0,26,1],[2,0,2,1]]}
["14. Kontrolni seznam"]
[]
["Spodnji seznam je kontrolni seznam za oddajo vloge in vam je v pomoč pri preverjanju popolnosti oddane vloge."]
[null,null,null,null,null,"Izbrano področje",{"$f":"'Osnovne informacije'!B29","v":1}]
["Vsaka vloga mora imeti vsaj naslednje:"]
[]
[null,"Prijavnica v slovenščini in angleščini je izpolnjena v celoti, podpisana in žigosana."]
[null,"Izjava prijavitelja je izpolnjena, podpisana in žigosana."]
[null,"Izjava o partnerstvu je izpolnjena, podpisana , žigosana in priložena za vsakega partnerja."]
[null,"Priložena je kopija ustanovnega dokumenta prijavitelja in vsakega partnerja."]
[null,"Priložena je bilanca stanja prijavitelja in partnerjev za leto 2012."]
[null,"Vloga je pripravljena v enem izvirniku v tiskani različici."]
[null,"Priložena je vloga v elektronski obliki na CD, DVD ali USB-ključku."]
[null,"Ovojnica je ustrezno označena, vključno z navedbo področja oz. pod-področja razpisa."]
["V kolikor so izpolnjeni določeni pogoji, mora vloga vključevati:"]
[null,"Originalno pooblastilo, dano s strani odgovorne osebe institucije, v kolikor podpisnik ni odgovorna oseba."]
[null,"Priložena je kopija investicijske dokumentacije z analizo stroškov in koristi oziroma izračunom finančne vrzeli."]
[null,"Priložena je kopija pravnomočnega gradbenega dovoljenja."]
[null,"Priložena je kopija dokazila o pravici izvajati dela na določeni nepremičnini."]
[null,"Priložena je kopija prodajne predpogodbe, iz katere je razvidno, da je zemljišče prosto vseh bremen, in kopija potrdila neodvisnega usposobljenega cenilca ali pooblaščenega organa, iz katerega je razvidno, da nakupna cena ne presega tržne cene."]
[null,"Priložena je izjava prijavitelja z oceno števila obiskovalcev naravne vrednote ali več naravnih vrednot v okviru državnega zavarovanega območja v zadnjih treh letih."]
[null,"Priložena je izjava o lastništvu kulturnega spomenika."]
[null,"Priložena je kopija pogodbe ali sklepa o upravljanju kulturnega spomenika."]
[null,"Priložena je izjava o ogroženosti kulturnega spomenika."]
[null,"Priložena je kopija programa ali načrta upravljanja kulturnega spomenika."]
[null,"Fotografska dokumentacija."]
["Bodite pozorni tudi na naslednje omejitve:"]
[" ","Projekt traja dlje kot 12 mesecev in se konča najpozneje 30. 4. 2016."]
[null,"Zaprošeni znesek nepovratnih sredstev za projekte na področju Biotska raznovrstnost in ekosistemske storitve ni manjši od 500.000 € in ne presega 700.000 € ter hkrati ne presega 95,00 % upravičenih stroškov projekta oz. 90,00% kadar je prijavitelj nevladna organizacija."]
[null,"Zaprošeni znesek nepovratnih sredstev za projekte na področju Naravna dediščina ni manjši od 250.000 € in ne presega 1.000.000 € ter hkrati ne presega 95,00 % upravičenih stroškov projekta oz. 90,00% kadar je prijavitelj nevladna organizacija."]
[null,"Zaprošeni znesek nepovratnih sredstev za projekte na področju Kulturna dediščina ni manjši od 1.000.000 € in ne presega 2.000.000 € ter hkrati ne presega 95,00 % upravičenih stroškov projekta oz. 90,00% kadar je prijavitelj nevladna organizacija."]
[null,"Lastno sofinanciranje se zagotavlja v višini najmanj 5,00 % celotnih upravičenih stroškov projekta oz. 10,00 % v kolikor je prijavitelj nevladna organizacija."]

{"sheet":"Izjava prijavitelja","index":22,"n_rows":17,"n_cols":8,"rows_kept":17,"cut":false,"hidden":false,"merged":[[14,2,14,5],[15,2,15,5],[5,0,5,5],[9,2,9,5],[10,2,10,5],[11,2,11,5],[12,2,12,5],[13,2,13,5]]}
["15. Izjava prijavitelja o digitalizaciji podatkov"]
[]
[]
[]
[]
["V imenu prijavitelja spodaj podpisani izjavljam, da bodo v okviru projekta zbrani podatki o stanju vrst in/ali habitatnih tipov digitalizirani."]
[]
["Kraj in datum",null,"Podpis odgovorne ali pooblaščene osebe"]
[]
[null,null,null,null,null,null,null,"Podpišite in žigosajte samo tiskano obliko prijavnice"]
[null,null,"podpis"]
[null,"ŽIG"]
[]
[null,null,"Ime in priimek"]
[]
[]
[null,null,"Službeni naziv"]

{"sheet":"Podpis prijavitelja","index":23,"n_rows":18,"n_cols":12,"rows_kept":18,"cut":false,"hidden":false,"merged":[[3,1,3,4],[4,1,4,4],[5,1,5,4]]}
["16. Podpis prijavitelja",null,null,null,null,null,null,null,null,null,null,{"$f":"'Osnovne informacije'!B29","v":1}]
["15. Podpis prijavitelja"]
[]
[null,"Potrjujem, da imam polna pooblastila institucije prijaviteljice za podpis te prijave, da sem temeljito preveril/a vse izjave in podatke navedene v tej prijavi, in da so ti pravilni in natančni."]
[]
[null,"Soglašam, da lahko MGRT objavi dele te prijavnice."]
[]
[null,"Kraj in datum",null,null,"Podpis odgovorne ali pooblaščene osebe"]
[]
[null,null,null,null,null,null,"Podpišite in žigosajte le tiskano različico prijavnice."]
[null,null,null,null,"podpis"]
[]
[]
[]
[null,null,null,null,"ime in priimek "]
[]
[]
[null,null,null,null,"službeni naziv"]